{"text_format":"1","workbook":"xlsx","n_sheets":7,"sheets":["Соответствие модификациям      ","    ↑↑↑↑   ОЛ ГАНК-4С    ↑↑↑↑  ","    ↑↑↑↑   ОЛ ГАНК-4М    ↑↑↑↑  ","    ↑↑↑↑  ОЛ ГАНК-4CEx   ↑↑↑↑  ","    ↑↑↑↑  ОЛ ГАНК-ФCEx   ↑↑↑↑  ","ИНСТРУКЦИЯ","Данные2"],"not_rendered":{"charts":0,"images":21,"macros":1,"external_links":1,"defined_names":7,"comments":0,"pivot_tables":0},"unopened":[],"bounds":{"document_bytes":16777216,"sheet_cells":100000,"rows_first":2000,"rows_last":500,"rows_between":2000,"halvings":0,"cell_chars":16384,"cell_head_chars":4096},"cells_cut":0,"cells_raw":0,"read":"whole","date_system":"1900"}

{"sheet":"Соответствие модификациям      ","index":0,"n_rows":14,"n_cols":5,"rows_kept":14,"cut":false,"hidden":false,"merged":[[0,1,0,2],[0,3,0,4],[0,0,1,0]]}
["Наименование вещества","ИСПОЛНЕНИЕ СТАЦИОНАРНОЕ ОБЩЕПРОМЫШЛЕННОЕ",null,"ИСПОЛНЕНИЕ СТАЦИОНАРНОЕ ВЗРЫВОЗВЩИЩЕННОЕ "]
[null,"ГАНК-4С (измерение на ХК) \n1 вещество в приборе","ГАНК-4М (измерение на Д) \nдо 3-х веществ в приборе","ГАНК-4СEx (2Exe[ib]dIIBT4Gc X) 1 вещество (Д или ХК)","ГАНК-4ФEx (с маркировкой взрывозащиты 1ExdIICT5Gb X)\nдо 4-х веществ в приборе"]
[null,{"$f":"IFERROR(VLOOKUP(A3,Данные2!A:AM,32,FALSE),\" \")","v":" "},{"$f":"IFERROR(VLOOKUP(A3,Данные2!A:AM,33,FALSE),\" \")","v":" "},{"$f":"IFERROR(VLOOKUP(A3,Данные2!A:AM,36,FALSE),\" \")","v":" "},{"$f":"IFERROR(VLOOKUP(A3,Данные2!A:AM,39,FALSE),\" \")","v":" "}]
[null,{"$f":"IFERROR(VLOOKUP(A4,Данные2!A:AM,32,FALSE),\" \")","v":" "},{"$f":"IFERROR(VLOOKUP(A4,Данные2!A:AM,33,FALSE),\" \")","v":" "},{"$f":"IFERROR(VLOOKUP(A4,Данные2!A:AM,36,FALSE),\" \")","v":" "},{"$f":"IFERROR(VLOOKUP(A4,Данные2!A:AM,39,FALSE),\" \")","v":" "}]
[null,{"$f":"IFERROR(VLOOKUP(A5,Данные2!A:AM,32,FALSE),\" \")","v":" "},{"$f":"IFERROR(VLOOKUP(A5,Данные2!A:AM,33,FALSE),\" \")","v":" "},{"$f":"IFERROR(VLOOKUP(A5,Данные2!A:AM,36,FALSE),\" \")","v":" "},{"$f":"IFERROR(VLOOKUP(A5,Данные2!A:AM,39,FALSE),\" \")","v":" "}]
[null,{"$f":"IFERROR(VLOOKUP(A6,Данные2!A:AM,32,FALSE),\" \")","v":" "},{"$f":"IFERROR(VLOOKUP(A6,Данные2!A:AM,33,FALSE),\" \")","v":" "},{"$f":"IFERROR(VLOOKUP(A6,Данные2!A:AM,36,FALSE),\" \")","v":" "},{"$f":"IFERROR(VLOOKUP(A6,Данные2!A:AM,39,FALSE),\" \")","v":" "}]
[null,{"$f":"IFERROR(VLOOKUP(A7,Данные2!A:AM,32,FALSE),\" \")","v":" "},{"$f":"IFERROR(VLOOKUP(A7,Данные2!A:AM,33,FALSE),\" \")","v":" "},{"$f":"IFERROR(VLOOKUP(A7,Данные2!A:AM,36,FALSE),\" \")","v":" "},{"$f":"IFERROR(VLOOKUP(A7,Данные2!A:AM,39,FALSE),\" \")","v":" "}]
[null,{"$f":"IFERROR(VLOOKUP(A8,Данные2!A:AM,32,FALSE),\" \")","v":" "},{"$f":"IFERROR(VLOOKUP(A8,Данные2!A:AM,33,FALSE),\" \")","v":" "},{"$f":"IFERROR(VLOOKUP(A8,Данные2!A:AM,36,FALSE),\" \")","v":" "},{"$f":"IFERROR(VLOOKUP(A8,Данные2!A:AM,39,FALSE),\" \")","v":" "}]
[null,{"$f":"IFERROR(VLOOKUP(A9,Данные2!A:AM,32,FALSE),\" \")","v":" "},{"$f":"IFERROR(VLOOKUP(A9,Данные2!A:AM,33,FALSE),\" \")","v":" "},{"$f":"IFERROR(VLOOKUP(A9,Данные2!A:AM,36,FALSE),\" \")","v":" "},{"$f":"IFERROR(VLOOKUP(A9,Данные2!A:AM,39,FALSE),\" \")","v":" "}]
[null,{"$f":"IFERROR(VLOOKUP(A10,Данные2!A:AM,32,FALSE),\" \")","v":" "},{"$f":"IFERROR(VLOOKUP(A10,Данные2!A:AM,33,FALSE),\" \")","v":" "},{"$f":"IFERROR(VLOOKUP(A10,Данные2!A:AM,36,FALSE),\" \")","v":" "},{"$f":"IFERROR(VLOOKUP(A10,Данные2!A:AM,39,FALSE),\" \")","v":" "}]
[null,{"$f":"IFERROR(VLOOKUP(A11,Данные2!A:AM,32,FALSE),\" \")","v":" "},{"$f":"IFERROR(VLOOKUP(A11,Данные2!A:AM,33,FALSE),\" \")","v":" "},{"$f":"IFERROR(VLOOKUP(A11,Данные2!A:AM,36,FALSE),\" \")","v":" "},{"$f":"IFERROR(VLOOKUP(A11,Данные2!A:AM,39,FALSE),\" \")","v":" "}]
[null,{"$f":"IFERROR(VLOOKUP(A12,Данные2!A:AM,32,FALSE),\" \")","v":" "},{"$f":"IFERROR(VLOOKUP(A12,Данные2!A:AM,33,FALSE),\" \")","v":" "},{"$f":"IFERROR(VLOOKUP(A12,Данные2!A:AM,36,FALSE),\" \")","v":" "},{"$f":"IFERROR(VLOOKUP(A12,Данные2!A:AM,39,FALSE),\" \")","v":" "}]
[null,"ОСОБЕННОСТИ ПРИБОРА\n• Широкий перечень контролируемых веществ (более 250);\n• Межкалибровочный и межповерочный интервал – 1год;\n• Свето-звуковая сигнализация;\n• Принудительный забор пробы (встроенный насос);\n• Возможность создания единой сети из 128 газоанализаторов\nпри помощи цифрового интерфейса RS485 Modbus RTU\nи программного обеспечения RbCenter.","ОСОБЕННОСТИ ПРИБОРА\n• Широкий перечень контролируемых веществ (более 250);\n• Одновременный контроль до 2х вредных и отравляющих веществ;\n• Межкалибровочный и межповерочный интервал – 1год;\n• Свето-звуковая сигнализация;\n• Принудительный забор пробы (встроенный насос);\n• Возможность создания единой сети из 128 газоанализаторов\nпри помощи цифрового интерфейса RS485 Modbus RTU\nи программного обеспечения RbCenter.","ОСОБЕННОСТИ ПРИБОРА\n• Широкий перечень контролируемых веществ (более 250);\n• Межкалибровочный и межповерочный интервал – 1год;\n• Взрывозащищённое исполнение 2Exe[ib]dIIBT4 X;\n• Свето-звуковая сигнализация;\n• Принудительный забор пробы (встроенный насос);","ОСОБЕННОСТИ ПРИБОРА\n• Широкий перечень контролируемых веществ (более 250);\n• Одновременный контроль до 4х вредных и отравляющих веществ;\n• Взрывозащищённое исполнение 1ExdIICТ5Gb X;\n• Коррозионностойкий алюминиево-кремниевый корпус;\n• Свето-звуковая сигнализация;\n• Принудительный забор пробы (встроенный насос);\n• Возможность создания единой сети из 128 газоанализаторов\nпри помощи цифрового интерфейса RS485 Modbus RTU\nи программного обеспечения RbCenter."]
[null,"Одно вещество (Химкассета)\nВых.сигналы: 3 реле - ПОРОГ1, ПОРОГ2, Отсутствие питания\n4-20 мА, RS485\n\n","Два вещества (Датчики)\nВых.сигналы: 3 реле - ПОРОГ1, ПОРОГ2, Отсутствие питания\n4-20 мА, RS485","Одно вещество (датчик или химкассета)\nБлок питания (выносится за пределы Ex зоны) с вых.сигналами: 1 реле, 4-20 мА","До 4 веществ (до 4-х датчиков или 3-х датчиков и одной химкассеты)\nВых. сигналы: RS485, до 2х реле на каждое вещество и 4-20мА по каждому каналу"]

{"sheet":"    ↑↑↑↑   ОЛ ГАНК-4С    ↑↑↑↑  ","index":1,"n_rows":36,"n_cols":47,"rows_kept":36,"cut":false,"hidden":false,"merged":[[7,3,7,4],[8,3,8,4],[10,3,10,4],[11,3,11,4]]}
["1. ВЫБРАТЬ: Наименование вещества↓↓↓","Наименование модификации","Стандартный порог срабатывания","СР-4",null,"2 КОЛ-ВО ГАНК-4 ЗАПОЛНИТЬ↓↓↓",null,null,null,null,null,null,null,null,null,null,null,null,null,null,null,null,null,null,null,null,null,null,null,null,null,null,null,null,{"$f":"IF(D2=\"Да\",\"Да\",\"\")","v":"Да"},"Да"]
["Р : Кислота серная (Р) 0,5 - 20 мг/м3",{"$f":"IFERROR(VLOOKUP(A2,Данные2!A:AM,32,FALSE),\" \")","v":"ГАНК-4С для определения: Кислота серная (Р)"},{"$f":"IFERROR(CONCATENATE(VLOOKUP(A2,Данные2!A:AM,26,FALSE),\" мг/м3\"),\" \")","v":"1 мг/м3"},{"$f":"IFERROR(VLOOKUP(A2,Данные2!A:AN,40,FALSE),\" \")","v":"Да"},null,null,null,null,null,null,null,null,null,null,null,null,null,null,null,null,null,null,null,null,null,null,null,null,null,null,null,null,null,null,{"$f":"IF(D2=\"Да\",\"Нет\",\"\")","v":"Нет"},"Нет"]
["Р : Азота оксид (оксид азота (II)) (Р) 2,5 - 100 мг/м3",null,null,null,null,null,null,null,null,null,null,null,null,null,null,null,null,null,null,null,null,null,null,null,null,null,null,null,null,null,null,null,null,null,"ВАРИАНТЫ ВЫПАДАЮЩЕГО СПИСКА ",null,null,null,null,null,null,"СЦЕПКА","ВОЗМОЖНЫЕ ВАР-ТЫ ДИНАМ. СПИСКОВ"]
["Р : Азота оксид (оксид азота (II)) (Р) 2,5 - 100 мг/м4",null,"3 ЗАПОЛНИТЬ↓↓↓"]
["Р : Азота оксид (оксид азота (II)) (Р) 2,5 - 100 мг/м5","Температура эксплуатации газоанализатора","от - 50 до + 50 ° С",null,null,null,null,null,null,null,null,null,null,null,null,null,null,null,null,null,null,null,null,null,null,null,null,null,null,null,null,null,null,null,"от +5 до +50° С","от - 50 до + 50 ° С",null,null,null,null,null,{"$f":"_xlfn.CONCAT(C5,\" и \",C6)","v":"от - 50 до + 50 ° С и Открытая площадка "},"от - 50 до + 50 ° С и Открытая площадка ","от +5 до +50° С и Открытая площадка ","от - 50 до + 50 ° С и В помещении","от +5 до +50° С и В помещении"]
["Р : Азота оксид (оксид азота (II)) (Р) 2,5 - 100 мг/м6","Место установки оборудования","Открытая площадка ",{"$f":"IF(C7=AJ7,\"ПОРОГ 1 не менее 1 ПДК р.з.\",\"\")","v":""},{"$f":"IF(C7=AJ7,\"ПОРОГ 2 не менее 3 ПДК р.з.\",\"\")","v":""},null,null,null,null,null,null,null,null,null,null,null,null,null,null,null,null,null,null,null,null,null,null,null,null,null,null,null,null,null,"Открытая площадка ","В помещении"]
["Р : Азота оксид (оксид азота (II)) (Р) 2,5 - 100 мг/м7","Пороги срабатывания сигн, реле","1 ПДК р.з. (По умолчанию)",null,null,null,null,null,null,null,null,null,null,null,null,null,null,null,null,null,null,null,null,null,null,null,null,null,null,null,null,null,null,null,"1 ПДК р.з. (По умолчанию)","Под заказ (уточнить какие)"]
["Р : Азота оксид (оксид азота (II)) (Р) 2,5 - 100 мг/м9","Питание прибора ",null,{"$f":"IF(C9=AJ9,\"Уточнить кабельный ввод\",\"\")","v":""},null,null,null,null,null,null,null,null,null,null,null,null,null,null,null,null,null,null,null,null,null,null,null,null,null,null,null,null,null,null,"220В (По умолчанию)","24В"]
["Р : Азота оксид (оксид азота (II)) (Р) 2,5 - 100 мг/м8","Подключение",null,null,null,null,null,null,null,null,null,null,null,null,null,null,null,null,null,null,null,null,null,null,null,null,null,null,null,null,null,null,null,null,"Ответные части разъемов типа MS-XS8/12 (По умолчанию)","Распределительная коробка с каб.вводами"]
[]
["Р : Азота оксид (оксид азота (II)) (Р) 2,5 - 100 мг/м13","Дополнительное оборудование","4 ЗАПОЛНИТЬ↓↓↓",{"$f":"IF(C12=\"Шкаф ЩГК с СЗО \",\"Уточнить кабельный ввод\",\"\")","v":""},null,"5 КОЛ-ВО ЗАПОЛНИТЬ↓↓↓"]
[null,"Способ размещения газоанализатора",null,null,null,null,null,null,null,null,null,null,null,null,null,null,null,null,null,null,null,null,null,null,null,null,null,null,null,null,null,null,null,null,{"$f":"IF(AP5=AQ5,AQ12,IF(AP5=AR5,AQ12,IF(AP5=AS5,AR12,IF(AP5=AT5,AS12,\"\"))))","v":"Термостат ТС-1 на стойке с козырьком"},{"$f":"IF(AP5=AT5,AT12,\"\")","v":""},{"$f":"IF(AP5=AT5,AU12,\"\")","v":""},null,"ТС-1*: На стойке с козырьком","на стойке без","тепло: стойка с распределительной коробкой*, СЗО","Стандартный (настенный, кронштейн)","Термостат ТС-1 на стойке с козырьком","Термостат ТС-1 на стойке","Стойка СТМГ с распред.коробкой и СЗО","Шкаф ЩГК с СЗО ","Настенный монтаж"]
[null,{"$f":"IF(OR(C12=AQ12,C12=AR12),\"Питание ТС-1 (потребляемая мощность 110Вт)\",\"\")","v":""},null,null,null,null,null,null,null,null,null,null,null,null,null,null,null,null,null,null,null,null,null,null,null,null,null,null,null,null,null,null,null,null,"220В (по умолчанию)","24В"]
["Р : Азота оксид (оксид азота (II)) (Р) 2,5 - 100 мг/м15","Комплект отбора пробы \n(рекомендовано для веществ тяжелее воздуха)",null,null,null,null,null,null,null,null,null,null,null,null,null,null,null,null,null,null,null,null,null,null,null,null,null,null,null,null,null,null,null,null,"шланг ПВД (до 7м), пробозаборная воронка","шланг ПВД (до 7м)","Не требуется"]
["Р : Азота оксид (оксид азота (II)) (Р) 2,5 - 100 мг/м16","комплект для проведения ПНР",null,null,null,null,null,null,null,null,null,null,null,null,null,null,null,null,null,null,null,null,null,null,null,null,null,null,null,null,null,null,null,null,"УПР (устройство проверки работоспособности)","Не требуется"]
["Р : Азота оксид (оксид азота (II)) (Р) 2,5 - 100 мг/м17","вторичный блок питания, сбора данных",null,null,null,null,null,null,null,null,null,null,null,null,null,null,null,null,null,null,null,null,null,null,null,null,null,null,null,null,null,null,null,null,"Блок информационный БИ-2 (вх.сигн: RS485, 4-20 mA; вых.сигн: RS485; Ethernet; реле)","Не требуется"]
["Р : Азота оксид (оксид азота (II)) (Р) 2,5 - 100 мг/м18","запасная хим кассета (реккомендуется в случае возможных частых первышениях ПДК)",null,null,null,null,null,null,null,null,null,null,null,null,null,null,null,null,null,null,null,null,null,null,null,null,null,null,null,null,null,null,null,null,"Требуется","Не требуется"]
["Р : Азота оксид (оксид азота (II)) (Р) 2,5 - 100 мг/м19","комплект для подключения к ПК",null,null,null,null,null,null,null,null,null,null,null,null,null,null,null,null,null,null,null,null,null,null,null,null,null,null,null,null,null,null,null,null,"ПО для работы с газоаналитической системой (по протоколу Modbus)","ПО для работы с архивом","Не требуется"]
["Р : Азота оксид (оксид азота (II)) (Р) 2,5 - 100 мг/м20","Требуется ли шильд с позиционым обозначением?"]
["Р : Азота оксид (оксид азота (II)) (Р) 2,5 - 100 мг/м22",{"$f":"IF(D2=\"ДА\",\"Требуется ли расширение системы датчиками разлива СР-4?\",\"\")","v":"Требуется ли расширение системы датчиками разлива СР-4?"}]
["Р : Азота оксид (оксид азота (II)) (Р) 2,5 - 100 мг/м23"]
["Р : Азота оксид (оксид азота (II)) (Р) 2,5 - 100 мг/м28"]
["Р : Азота оксид (оксид азота (II)) (Р) 2,5 - 100 мг/м29","Информация о проекте","6 ЗАПОЛНИТЬ↓↓↓"]
["Р : Азота оксид (оксид азота (II)) (Р) 2,5 - 100 мг/м30","Покупатель"]
["Р : Азота оксид (оксид азота (II)) (Р) 2,5 - 100 мг/м31","Конечный заказчик"]
["Р : Азота оксид (оксид азота (II)) (Р) 2,5 - 100 мг/м32","Объект"]
["Р : Азота оксид (оксид азота (II)) (Р) 2,5 - 100 мг/м34","Статус проекта"]
["Р : Азота оксид (оксид азота (II)) (Р) 2,5 - 100 мг/м35","Контактное лицо"]
["Р : Азота оксид (оксид азота (II)) (Р) 2,5 - 100 мг/м36","Телефон"]
["Р : Азота оксид (оксид азота (II)) (Р) 2,5 - 100 мг/м37","e-mail"]
["Р : Азота оксид (оксид азота (II)) (Р) 2,5 - 100 мг/м38"]
["Р : Азота оксид (оксид азота (II)) (Р) 2,5 - 100 мг/м39"]
["Р : Азота оксид (оксид азота (II)) (Р) 2,5 - 100 мг/м40"]
["Р : Азота оксид (оксид азота (II)) (Р) 2,5 - 100 мг/м41"]
["Р : Азота оксид (оксид азота (II)) (Р) 2,5 - 100 мг/м42"]
["Р : Азота оксид (оксид азота (II)) (Р) 2,5 - 100 мг/м43"]

{"sheet":"    ↑↑↑↑   ОЛ ГАНК-4М    ↑↑↑↑  ","index":2,"n_rows":40,"n_cols":47,"rows_kept":40,"cut":false,"hidden":false,"merged":[[10,3,10,4],[11,3,11,4]]}
["1. ВЫБРАТЬ вещества в приборе: Наименование вещества↓↓↓","Тип датчика: до двух (Д)","Стандартный порог срабатывания","Кол-во датчиков в приборе",null,"2 КОЛ-ВО ГАНК-4 ЗАПОЛНИТЬ↓↓↓",null,null,null,null,null,null,null,null,null,null,null,null,null,null,null,null,null,null,null,null,null,null,null,null,null,null,null,null,"Да"]
["Р : Аммиак (Р) 10 - 400 мг/м3",{"$f":"IFERROR(VLOOKUP(A2,Данные2!A:AM,37,FALSE),\" \")","v":"Д"},{"$f":"IFERROR(CONCATENATE(VLOOKUP(A2,Данные2!A:AM,26,FALSE),\" мг/м3\"),\" \")","v":"20 мг/м3"},{"$f":"COUNTIF(B2:B3,\"Д\")","v":1},null,null,null,null,null,null,null,null,null,null,null,null,null,null,null,null,null,null,null,null,null,null,null,null,null,null,null,null,null,null,"Нет"]
[null,{"$f":"IFERROR(VLOOKUP(A3,Данные2!A:AM,37,FALSE),\" \")","v":" "},{"$f":"IFERROR(CONCATENATE(VLOOKUP(A3,Данные2!A:AM,26,FALSE),\" мг/м3\"),\" \")","v":" "}]
["Р : Азота оксид (оксид азота (II)) (Р) 2,5 - 100 мг/м3",null,null,null,null,null,null,null,null,null,null,null,null,null,null,null,null,null,null,null,null,null,null,null,null,null,null,null,null,null,null,null,null,null,"ВАРИАНТЫ ВЫПАДАЮЩЕГО СПИСКА ",null,null,null,null,null,null,"СЦЕПКА","ВОЗМОЖНЫЕ ВАР-ТЫ ДИНАМ. СПИСКОВ"]
["Р : Азота оксид (оксид азота (II)) (Р) 2,5 - 100 мг/м4",null,"3 ЗАПОЛНИТЬ↓↓↓"]
["Р : Азота оксид (оксид азота (II)) (Р) 2,5 - 100 мг/м5","Температура эксплуатации газоанализатора",null,null,null,null,null,null,null,null,null,null,null,null,null,null,null,null,null,null,null,null,null,null,null,null,null,null,null,null,null,null,null,null,"от +5 до +50° С","от - 50 до + 50 ° С",null,null,null,null,null,{"$f":"_xlfn.CONCAT(C6,\" и \",C7)","v":" и "},"от - 50 до + 50 ° С и Открытая площадка ","от +5 до +50° С и Открытая площадка ","от - 50 до + 50 ° С и В помещении","от +5 до +50° С и В помещении"]
["Р : Азота оксид (оксид азота (II)) (Р) 2,5 - 100 мг/м6","Место установки оборудования",null,{"$f":"IF(C8=AJ8,\"ПОРОГ 1 не менее 1 ПДК р.з.\",\"\")","v":""},{"$f":"IF(C8=AJ8,\"ПОРОГ 2 не менее 3 ПДК р.з.\",\"\")","v":""},null,null,null,null,null,null,null,null,null,null,null,null,null,null,null,null,null,null,null,null,null,null,null,null,null,null,null,null,null,"Открытая площадка ","В помещении"]
["Р : Азота оксид (оксид азота (II)) (Р) 2,5 - 100 мг/м7","Пороги срабатывания сигн, реле",null,null,null,null,null,null,null,null,null,null,null,null,null,null,null,null,null,null,null,null,null,null,null,null,null,null,null,null,null,null,null,null,{"$f":"IF(D2=1,\"1 реле - 1 ПДК р.з., 2 реле - 2 ПДК р.з. (По умолчанию)\",IF(D2=2,\"реле 1 (ПОРОГ 1 - 1ПДК по любому из в-в)\nреле 2 (ПОРОГ 2 - 2 ПДК по любому из в-в) \",\"\"))","v":"1 реле - 1 ПДК р.з., 2 реле - 2 ПДК р.з. (По умолчанию)"},"Под заказ (уточнить значения)"]
[null,{"$f":"IF(D2=2,\"Выбор вещества для 4-20 мА (только 1 вых 4-20 мА)\",\"\")","v":""}]
[]
["Р : Азота оксид (оксид азота (II)) (Р) 2,5 - 100 мг/м13","Дополнительное оборудование","4 ЗАПОЛНИТЬ↓↓↓",{"$f":"IF(C12=\"Шкаф ЩГК с СЗО \",\"Уточнить кабельный ввод\",\"\")","v":""},null,"5 КОЛ-ВО ЗАПОЛНИТЬ↓↓↓"]
[null,"Способ размещения газоанализатора",null,null,null,null,null,null,null,null,null,null,null,null,null,null,null,null,null,null,null,null,null,null,null,null,null,null,null,null,null,null,null,null,{"$f":"IF(AP6=AQ6,AQ12,IF(AP6=AR6,AQ12,IF(AP6=AS6,AR12,IF(AP6=AT6,AS12,\"\"))))","v":""},{"$f":"IF(AP6=AT6,AT12,\"\")","v":""},{"$f":"IF(AP6=AT6,AU12,\"\")","v":""},null,"ТС-1*: На стойке с козырьком","на стойке без","тепло: стойка с распределительной коробкой*, СЗО","Стандартный (настенный, кронштейн)","Термостат ТС-1 на стойке с козырьком","Термостат ТС-1 на стойке","Стойка СТМГ с распред.коробкой и СЗО","Шкаф ЩГК с СЗО ","Настенный монтаж"]
[null,{"$f":"IF(OR(C12=AQ12,C12=AR12),\"Питание ТС-1 (потребляемая мощность 110Вт)\",\"\")","v":""},null,null,null,null,null,null,null,null,null,null,null,null,null,null,null,null,null,null,null,null,null,null,null,null,null,null,null,null,null,null,null,null,"220В (по умолчанию)","24В"]
["Р : Азота оксид (оксид азота (II)) (Р) 2,5 - 100 мг/м15","Комплект отбора пробы \n(рекомендовано для веществ тяжелее воздуха)",null,null,null,null,null,null,null,null,null,null,null,null,null,null,null,null,null,null,null,null,null,null,null,null,null,null,null,null,null,null,null,null,"шланг ПВД (до 7м), пробозаборная воронка","шланг ПВД (до 7м)","Не требуется"]
["Р : Азота оксид (оксид азота (II)) (Р) 2,5 - 100 мг/м16","Комплект для проведения ПНР",null,null,null,null,null,null,null,null,null,null,null,null,null,null,null,null,null,null,null,null,null,null,null,null,null,null,null,null,null,null,null,null,"УПР (устройство проверки работоспособности)","Не требуется"]
["Р : Азота оксид (оксид азота (II)) (Р) 2,5 - 100 мг/м17","Вторичный блок питания, сбора данных",null,null,null,null,null,null,null,null,null,null,null,null,null,null,null,null,null,null,null,null,null,null,null,null,null,null,null,null,null,null,null,null,"Блок информационный БИ-2 (вх.сигн: RS485, 4-20 mA; вых.сигн: RS485; Ethernet; реле)","Не требуется"]
["Р : Азота оксид (оксид азота (II)) (Р) 2,5 - 100 мг/м19","Комплект для подключения к ПК",null,null,null,null,null,null,null,null,null,null,null,null,null,null,null,null,null,null,null,null,null,null,null,null,null,null,null,null,null,null,null,null,"ПО для работы с газоаналитической системой","ПО для работы с архивом","Не требуется"]
["Р : Азота оксид (оксид азота (II)) (Р) 2,5 - 100 мг/м20",{"$f":"IF(OR(C6=AJ6,C7=AI7,C12=AQ12,C12=AR12,C15=AI15,\"\",C14=AI14,C14=AJ14),\"\",\"Принцип отбора пробы\")","v":"Принцип отбора пробы"},null,null,null,null,null,null,null,null,null,null,null,null,null,null,null,null,null,null,null,null,null,null,null,null,null,null,null,null,null,null,null,null,{"$f":"IF(OR(C6=AJ6,C7=AI7,C12=AQ12,C12=AR12,C15=AI15,\"\",C14=AI14,C14=AJ14),\"\",\"Диффузионный\")","v":"Диффузионный"},{"$f":"IF(OR(C6=AJ6,C7=AI7,C12=AQ12,C12=AR12,C15=AI15,\"\",C14=AI14,C14=AJ14),\"\",\"Принудительный\")","v":"Принудительный"}]
["Р : Азота оксид (оксид азота (II)) (Р) 2,5 - 100 мг/м22","Требуется ли шильд с позиционым обозначением?"]
["Р : Азота оксид (оксид азота (II)) (Р) 2,5 - 100 мг/м23"]
["Р : Азота оксид (оксид азота (II)) (Р) 2,5 - 100 мг/м24","Информация о проекте","6 ЗАПОЛНИТЬ↓↓↓"]
["Р : Азота оксид (оксид азота (II)) (Р) 2,5 - 100 мг/м25","Покупатель"]
["Р : Азота оксид (оксид азота (II)) (Р) 2,5 - 100 мг/м26","Конечный заказчик"]
["Р : Азота оксид (оксид азота (II)) (Р) 2,5 - 100 мг/м27","Объект"]
["Р : Азота оксид (оксид азота (II)) (Р) 2,5 - 100 мг/м28","Статус проекта"]
["Р : Азота оксид (оксид азота (II)) (Р) 2,5 - 100 мг/м29","Контактное лицо"]
["Р : Азота оксид (оксид азота (II)) (Р) 2,5 - 100 мг/м30","Телефон"]
["Р : Азота оксид (оксид азота (II)) (Р) 2,5 - 100 мг/м31","e-mail"]
["Р : Азота оксид (оксид азота (II)) (Р) 2,5 - 100 мг/м32"]
["Р : Азота оксид (оксид азота (II)) (Р) 2,5 - 100 мг/м33"]
["Р : Азота оксид (оксид азота (II)) (Р) 2,5 - 100 мг/м34"]
["Р : Азота оксид (оксид азота (II)) (Р) 2,5 - 100 мг/м35"]
["Р : Азота оксид (оксид азота (II)) (Р) 2,5 - 100 мг/м36"]
["Р : Азота оксид (оксид азота (II)) (Р) 2,5 - 100 мг/м37"]
["Р : Азота оксид (оксид азота (II)) (Р) 2,5 - 100 мг/м38"]
["Р : Азота оксид (оксид азота (II)) (Р) 2,5 - 100 мг/м39"]
["Р : Азота оксид (оксид азота (II)) (Р) 2,5 - 100 мг/м40"]
["Р : Азота оксид (оксид азота (II)) (Р) 2,5 - 100 мг/м41"]
["Р : Азота оксид (оксид азота (II)) (Р) 2,5 - 100 мг/м42"]
["Р : Азота оксид (оксид азота (II)) (Р) 2,5 - 100 мг/м43"]

{"sheet":"    ↑↑↑↑  ОЛ ГАНК-4CEx   ↑↑↑↑  ","index":3,"n_rows":41,"n_cols":46,"rows_kept":41,"cut":false,"hidden":false,"merged":[[7,3,7,4],[8,3,8,4],[12,3,12,4],[13,3,13,4],[5,3,5,4],[6,3,6,4],[9,3,9,4],[10,3,10,4]]}
["1. ВЫБРАТЬ: Наименование вещества↓↓↓","Наименование модификации","Стандартный порог срабатывания","Тип датчика","СР-4 Ex","2 КОЛ-ВО ГАНК-4 ЗАПОЛНИТЬ↓↓↓",null,null,null,null,null,null,null,null,null,null,null,null,null,null,null,null,null,null,null,null,null,null,null,null,null,null,null,null,{"$f":"IF(E2=\"Да\",\"Да\",\"\")","v":"Да"},"Да"]
["Р : Кислота серная (Р) 0,5 - 20 мг/м3",{"$f":"IFERROR(VLOOKUP(A2,Данные2!A:AM,36,FALSE),\" \")","v":"ГАНК-4СEx (Х) для определения: Кислота серная (Р)"},{"$f":"IFERROR(CONCATENATE(VLOOKUP(A2,Данные2!A:AM,26,FALSE),\" мг/м3\"),\" \")","v":"1 мг/м3"},{"$f":"IFERROR(VLOOKUP(A2,Данные2!A:AM,37,FALSE),\" \")","v":"Х"},{"$f":"IFERROR(VLOOKUP(A2,Данные2!A:AN,40,FALSE),\" \")","v":"Да"},null,null,null,null,null,null,null,null,null,null,null,null,null,null,null,null,null,null,null,null,null,null,null,null,null,null,null,null,null,{"$f":"IF(E2=\"Да\",\"Нет\",\"\")","v":"Нет"},"Нет"]
["Р : Азота оксид (оксид азота (II)) (Р) 2,5 - 100 мг/м3",null,null,null,null,null,null,null,null,null,null,null,null,null,null,null,null,null,null,null,null,null,null,null,null,null,null,null,null,null,null,null,null,null,"ВАРИАНТЫ ВЫПАДАЮЩЕГО СПИСКА ",null,null,null,null,null,null,"СЦЕПКА","ВОЗМОЖНЫЕ ВАР-ТЫ ДИНАМ. СПИСКОВ"]
["Р : Азота оксид (оксид азота (II)) (Р) 2,5 - 100 мг/м4",null,"3 ЗАПОЛНИТЬ↓↓↓"]
["Р : Азота оксид (оксид азота (II)) (Р) 2,5 - 100 мг/м5","Температура эксплуатации газоанализатора","от +5 до +50° С",null,null,null,null,null,null,null,null,null,null,null,null,null,null,null,null,null,null,null,null,null,null,null,null,null,null,null,null,null,null,null,"от +5 до +50° С","от - 50 до + 50 ° С",null,null,null,null,null,{"$f":"_xlfn.CONCAT(C5,\" и \",C6)","v":"от +5 до +50° С и Открытая площадка "},"от - 50 до + 50 ° С и Открытая площадка ","от +5 до +50° С и Открытая площадка ","от - 50 до + 50 ° С и В помещении","от +5 до +50° С и В помещении"]
["Р : Азота оксид (оксид азота (II)) (Р) 2,5 - 100 мг/м6","Место установки оборудования","Открытая площадка ",{"$f":"IF(C7=AJ7,\"УТОЧНИТЬ ПОРОГ (не менее 1 ПДК р.з.)\",\"\")","v":"УТОЧНИТЬ ПОРОГ (не менее 1 ПДК р.з.)"},null,null,null,null,null,null,null,null,null,null,null,null,null,null,null,null,null,null,null,null,null,null,null,null,null,null,null,null,null,null,"Открытая площадка ","В помещении"]
["Р : Азота оксид (оксид азота (II)) (Р) 2,5 - 100 мг/м7","Пороги срабатывания сигн, реле (на блоке питания)","Под заказ (уточнить какие)",null,null,{"$f":"IF(C15=\"ДА\",\"Будет занято СЗО\",\"\")","v":""},null,null,null,null,null,null,null,null,null,null,null,null,null,null,null,null,null,null,null,null,null,null,null,null,null,null,null,null,"1 ПДК р.з. (По умолчанию)","Под заказ (уточнить какие)"]
["Р : Азота оксид (оксид азота (II)) (Р) 2,5 - 100 мг/м9","Питание прибора (на блоке питания)","24В",{"$f":"IF(C9=AJ9,\"Уточнить кабельный ввод\",\"\")","v":"Уточнить кабельный ввод"},null,null,null,null,null,null,null,null,null,null,null,null,null,null,null,null,null,null,null,null,null,null,null,null,null,null,null,null,null,null,"220В (По умолчанию)","24В"]
["Р : Азота оксид (оксид азота (II)) (Р) 2,5 - 100 мг/м8","Подключение","Распределительная коробка с каб.вводами под заказ",null,null,null,null,null,null,null,null,null,null,null,null,null,null,null,null,null,null,null,null,null,null,null,null,null,null,null,null,null,null,null,"Распределительная коробка с каб.вводами M20*1.5 (По умолчанию)","Распределительная коробка с каб.вводами под заказ"]
[null,null,null,{"$f":"IF(C11=AJ11,\"Уточнить кабельный ввод\",\"\")","v":"Уточнить кабельный ввод"}]
[null,"Длина кабеля между блоком питания и прибором","Под заказ (уточнить)",null,null,null,null,null,null,null,null,null,null,null,null,null,null,null,null,null,null,null,null,null,null,null,null,null,null,null,null,null,null,null,"20м (по умолчанию)","Под заказ (уточнить)"]
[]
["Р : Азота оксид (оксид азота (II)) (Р) 2,5 - 100 мг/м13","Дополнительное оборудование","4 ЗАПОЛНИТЬ↓↓↓",{"$f":"IF(C14=\"Шкаф ЩГК с СЗО \",\"Уточнить кабельный ввод\",\"\")","v":""},null,"5 КОЛ-ВО ЗАПОЛНИТЬ↓↓↓"]
[null,"Способ размещения газоанализатора","Термостат ТС-1 на стойке с козырьком",null,null,null,null,null,null,null,null,null,null,null,null,null,null,null,null,null,null,null,null,null,null,null,null,null,null,null,null,null,null,null,{"$f":"IF(AP5=AQ5,AQ14,IF(AP5=AR5,AQ14,IF(AP5=AS5,AR14,IF(AP5=AT5,AS14,\"\"))))","v":"Термостат ТС-1 на стойке с козырьком"},{"$f":"IF(AP5=AT5,AT14,\"\")","v":""},null,null,"ТС-1*: На стойке с козырьком","на стойке без","тепло: стойка с распределительной коробкой*","Стандартный (настенный, кронштейн)","Термостат ТС-1 на стойке с козырьком","Термостат ТС-1 на стойке","Стойка СТМГ с распред.коробкой","Настенный монтаж"]
[null,{"$f":"IF(OR(C14=AQ14,C14=AR14),\"Питание ТС-1 (потребляемая мощность 110Вт)\",IF(C14=\"Стойка СТМГ с распред.коробкой\",\"Требуется ли установка СЗО на стойку (реле в этом случае будет занято СЗО)?\",\"\"))","v":"Питание ТС-1 (потребляемая мощность 110Вт)"},null,null,null,null,null,null,null,null,null,null,null,null,null,null,null,null,null,null,null,null,null,null,null,null,null,null,null,null,null,null,null,null,{"$f":"IF(B15=\"Питание ТС-1 (потребляемая мощность 110Вт)\",\"220В (по умолчанию)\",IF(B15=\"Требуется ли установка СЗО на стойку (реле в этом случае будет занято СЗО)?\",\"Да\",\"\"))","v":"220В (по умолчанию)"},{"$f":"IF(B15=\"Питание ТС-1 (потребляемая мощность 110Вт)\",\"24В\",IF(B15=\"Требуется ли установка СЗО на стойку (реле в этом случае будет занято СЗО)?\",\"Нет\",\"\"))","v":"24В"}]
["Р : Азота оксид (оксид азота (II)) (Р) 2,5 - 100 мг/м15","Комплект отбора пробы \n(рекомендовано для веществ тяжелее воздуха)","шланг ПВД (до 7м)",null,null,null,null,null,null,null,null,null,null,null,null,null,null,null,null,null,null,null,null,null,null,null,null,null,null,null,null,null,null,null,"шланг ПВД (до 7м), пробозаборная воронка","шланг ПВД (до 7м)","Не требуется"]
["Р : Азота оксид (оксид азота (II)) (Р) 2,5 - 100 мг/м18",{"$f":"IF(D2=\"Х\",\"запасная хим кассета (реккомендуется в случае возможных частых первышениях ПДК)\",\"\")","v":"запасная хим кассета (реккомендуется в случае возможных частых первышениях ПДК)"},"Требуется",null,null,null,null,null,null,null,null,null,null,null,null,null,null,null,null,null,null,null,null,null,null,null,null,null,null,null,null,null,null,null,{"$f":"IF(D2=\"Х\",\"Требуется\",\"\")","v":"Требуется"},{"$f":"IF(D2=\"Х\",\"Не требуется\",\"\")","v":"Не требуется"}]
["Р : Азота оксид (оксид азота (II)) (Р) 2,5 - 100 мг/м20"]
[null,"Требуется ли шильд с позиционым обозначением?"]
["Р : Азота оксид (оксид азота (II)) (Р) 2,5 - 100 мг/м22",{"$f":"IF(E2=\"ДА\",\"Требуется ли расширение системы датчиками разлива СР-4?\",\"\")","v":"Требуется ли расширение системы датчиками разлива СР-4?"},"Да"]
["Р : Азота оксид (оксид азота (II)) (Р) 2,5 - 100 мг/м23"]
["Р : Азота оксид (оксид азота (II)) (Р) 2,5 - 100 мг/м24"]
["Р : Азота оксид (оксид азота (II)) (Р) 2,5 - 100 мг/м25"]
["Р : Азота оксид (оксид азота (II)) (Р) 2,5 - 100 мг/м26","Информация о проекте","6 ЗАПОЛНИТЬ↓↓↓"]
["Р : Азота оксид (оксид азота (II)) (Р) 2,5 - 100 мг/м27","Покупатель"]
["Р : Азота оксид (оксид азота (II)) (Р) 2,5 - 100 мг/м28","Конечный заказчик"]
["Р : Азота оксид (оксид азота (II)) (Р) 2,5 - 100 мг/м29","Объект"]
["Р : Азота оксид (оксид азота (II)) (Р) 2,5 - 100 мг/м30","Статус проекта"]
["Р : Азота оксид (оксид азота (II)) (Р) 2,5 - 100 мг/м31","Контактное лицо"]
["Р : Азота оксид (оксид азота (II)) (Р) 2,5 - 100 мг/м32","Телефон"]
["Р : Азота оксид (оксид азота (II)) (Р) 2,5 - 100 мг/м33","e-mail"]
["Р : Азота оксид (оксид азота (II)) (Р) 2,5 - 100 мг/м34"]
["Р : Азота оксид (оксид азота (II)) (Р) 2,5 - 100 мг/м35"]
["Р : Азота оксид (оксид азота (II)) (Р) 2,5 - 100 мг/м36"]
["Р : Азота оксид (оксид азота (II)) (Р) 2,5 - 100 мг/м37"]
["Р : Азота оксид (оксид азота (II)) (Р) 2,5 - 100 мг/м38"]
["Р : Азота оксид (оксид азота (II)) (Р) 2,5 - 100 мг/м39"]
["Р : Азота оксид (оксид азота (II)) (Р) 2,5 - 100 мг/м40"]
["Р : Азота оксид (оксид азота (II)) (Р) 2,5 - 100 мг/м41"]
["Р : Азота оксид (оксид азота (II)) (Р) 2,5 - 100 мг/м42"]
["Р : Азота оксид (оксид азота (II)) (Р) 2,5 - 100 мг/м43"]

{"sheet":"    ↑↑↑↑  ОЛ ГАНК-ФCEx   ↑↑↑↑  ","index":4,"n_rows":45,"n_cols":47,"rows_kept":45,"cut":false,"hidden":false,"merged":[]}
["1. ВЫБРАТЬ: Наименование вещества↓↓↓","Стандартный порог срабатывания","Типы датчиков (до 1 Х и 3 Д или 4 Д)","Кол-во Химкассет","СР-4","4 КОЛ-ВО ГАНК-4 ЗАПОЛНИТЬ↓↓↓",null,null,null,null,null,null,null,null,null,null,null,null,null,null,null,null,null,null,null,null,null,null,null,null,null,null,null,null,"СР-4",{"$f":"COUNTIF(E2:E5,\"Да\")","v":1},{"$f":"IF(AJ1>0,\"Да\",\"\")","v":"Да"},{"$f":"IF(AJ1>0,\"Нет\",\"\")","v":"Нет"}]
["Р : Азота диоксид (оксид азота (IV)) (Р) 1 - 40 мг/м3",{"$f":"IFERROR(CONCATENATE(VLOOKUP(A2,Данные2!A:AM,26,FALSE),\" мг/м3\"),\" \")","v":"2 мг/м3"},{"$f":"IFERROR(VLOOKUP(A2,Данные2!A:AM,37,FALSE),\" \")","v":"Д"},{"$f":"COUNTIF(C2:C5,\"Х\")","v":1},{"$f":"IFERROR(VLOOKUP(A2,Данные2!A:AN,40,FALSE),\" \")","v":"Нет"}]
["Р : Кислота серная (Р) 0,5 - 20 мг/м3",{"$f":"IFERROR(CONCATENATE(VLOOKUP(A3,Данные2!A:AM,26,FALSE),\" мг/м3\"),\" \")","v":"1 мг/м3"},{"$f":"IFERROR(VLOOKUP(A3,Данные2!A:AM,37,FALSE),\" \")","v":"Х"},"Кол-во датчиков",{"$f":"IFERROR(VLOOKUP(A3,Данные2!A:AN,40,FALSE),\" \")","v":"Да"}]
["Р : Азота оксиды (Р) 2,5 - 100 мг/м3",{"$f":"IFERROR(CONCATENATE(VLOOKUP(A4,Данные2!A:AM,26,FALSE),\" мг/м3\"),\" \")","v":"5 мг/м3"},{"$f":"IFERROR(VLOOKUP(A4,Данные2!A:AM,37,FALSE),\" \")","v":"Д"},{"$f":"COUNTIF(C2:C5,\"Д\")","v":3},{"$f":"IFERROR(VLOOKUP(A4,Данные2!A:AN,40,FALSE),\" \")","v":"Нет"}]
["Р : Амины алифатические (Р) 0,5 - 20 мг/м3",{"$f":"IFERROR(CONCATENATE(VLOOKUP(A5,Данные2!A:AM,26,FALSE),\" мг/м3\"),\" \")","v":"1 мг/м3"},{"$f":"IFERROR(VLOOKUP(A5,Данные2!A:AM,37,FALSE),\" \")","v":"Д"},null,{"$f":"IFERROR(VLOOKUP(A5,Данные2!A:AN,40,FALSE),\" \")","v":"Нет"}]
["Р : Азота оксид (оксид азота (II)) (Р) 2,5 - 100 мг/м3",null,null,null,null,null,null,null,null,null,null,null,null,null,null,null,null,null,null,null,null,null,null,null,null,null,null,null,null,null,null,null,null,null,"ВАРИАНТЫ ВЫПАДАЮЩЕГО СПИСКА ",null,null,null,null,null,null,"СЦЕПКА","ВОЗМОЖНЫЕ ВАР-ТЫ ДИНАМ. СПИСКОВ"]
["Р : Азота оксид (оксид азота (II)) (Р) 2,5 - 100 мг/м4",null,"2 ЗАПОЛНИТЬ↓↓↓"]
["Р : Азота оксид (оксид азота (II)) (Р) 2,5 - 100 мг/м5","Температура эксплуатации газоанализатора","от - 50 до + 50 ° С",null,null,null,null,null,null,null,null,null,null,null,null,null,null,null,null,null,null,null,null,null,null,null,null,null,null,null,null,null,null,null,"от +5 до +50° С","от - 50 до + 50 ° С",null,null,null,null,null,{"$f":"_xlfn.CONCAT(C8,\" и \",C9)","v":"от - 50 до + 50 ° С и Открытая площадка "},"от - 50 до + 50 ° С и Открытая площадка ","от +5 до +50° С и Открытая площадка ","от - 50 до + 50 ° С и В помещении","от +5 до +50° С и В помещении"]
["Р : Азота оксид (оксид азота (II)) (Р) 2,5 - 100 мг/м6","Место установки оборудования","Открытая площадка ",{"$f":"IF(C10=AJ10,\"ПОРОГ 1 не менее 1 ПДК р.з.\",\"\")","v":"ПОРОГ 1 не менее 1 ПДК р.з."},{"$f":"IF(C10=AJ10,\"ПОРОГ 2 не менее 3 ПДК р.з.\",\"\")","v":"ПОРОГ 2 не менее 3 ПДК р.з."},null,null,null,null,null,null,null,null,null,null,null,null,null,null,null,null,null,null,null,null,null,null,null,null,null,null,null,null,null,"Открытая площадка ","В помещении"]
["Р : Азота оксид (оксид азота (II)) (Р) 2,5 - 100 мг/м7","Пороги срабатывания сигн, реле","Под заказ (уточнить какие)",null,null,null,null,null,null,null,null,null,null,null,null,null,null,null,null,null,null,null,null,null,null,null,null,null,null,null,null,null,null,null,"1 ПДК р.з. (По умолчанию)","Под заказ (уточнить какие)"]
[null,"Выходные сигналы: 4-20 мА","Требуется по каждому веществу (4)",null,null,null,null,null,null,null,null,null,null,null,null,null,null,null,null,null,null,null,null,null,null,null,null,null,null,null,null,null,null,null,{"$f":"CONCATENATE(\"Требуется по каждому веществу (\",SUM(D2,D4),\")\")","v":"Требуется по каждому веществу (4)"},"Не требуется"]
[null,"Выходные сигналы: реле \"Сухие контакты\"",null,null,null,null,null,null,null,null,null,null,null,null,null,null,null,null,null,null,null,null,null,null,null,null,null,null,null,null,null,null,null,null,"Реле 1 (ПОРОГ 1 по любому из в-в) (по умолчанию)","реле 1 (ПОРОГ 1 по любому из в-в)\nреле 2 (ПОРОГ 2 по любому из в-в)",{"$f":"CONCATENATE(\"реле 1 для каждого вещества - при превышении ПОРОГА 1 (\",SUM(D2,D4),\"реле)\")","v":"реле 1 для каждого вещества - при превышении ПОРОГА 1 (4реле)"},{"$f":"CONCATENATE(\"2 реле для каждого из веществ - при превышении ПОРОГА 1, ПОРОГА 2 (\",SUM(D2,D4)*2,\"реле)\")","v":"2 реле для каждого из веществ - при превышении ПОРОГА 1, ПОРОГА 2 (8реле)"}]
[null,"Выходные сигналы: RS-485 (Общее)",null,null,null,null,null,null,null,null,null,null,null,null,null,null,null,null,null,null,null,null,null,null,null,null,null,null,null,null,null,null,null,null,"Требуется ","Не требуется"]
[]
["Р : Азота оксид (оксид азота (II)) (Р) 2,5 - 100 мг/м13","Дополнительное оборудование","3 ЗАПОЛНИТЬ↓↓↓",{"$f":"IF(C16=\"Шкаф ЩГК с СЗО \",\"Уточнить кабельный ввод\",\"\")","v":"Уточнить кабельный ввод"},null,"5 КОЛ-ВО ЗАПОЛНИТЬ↓↓↓"]
[null,"Способ размещения газоанализатора","Шкаф ЩГК с СЗО ",null,null,null,null,null,null,null,null,null,null,null,null,null,null,null,null,null,null,null,null,null,null,null,null,null,null,null,null,null,null,null,{"$f":"IF(AP8=AQ8,AQ16,IF(AP8=AR8,AQ16,IF(AP8=AS8,AR16,IF(AP8=AT8,AS16,\"\"))))","v":"Термостат ТС-1 на стойке с козырьком"},{"$f":"IF(AP8=AT8,AT16,\"\")","v":""},{"$f":"IF(AP8=AT8,AU16,\"\")","v":""},null,"ТС-1*: На стойке с козырьком","на стойке без","тепло: стойка с распределительной коробкой*, СЗО","Стандартный (настенный, кронштейн)","Термостат ТС-1 на стойке с козырьком","Термостат ТС-1 на стойке","Стойка СТМГ с распред.коробкой и СЗО","Шкаф ЩГК с СЗО ","Настенный монтаж"]
[null,{"$f":"IF(OR(C16=AQ16,C16=AR16),\"Питание ТС-1 (потребляемая мощность 110Вт)\",\"\")","v":""},null,null,null,null,null,null,null,null,null,null,null,null,null,null,null,null,null,null,null,null,null,null,null,null,null,null,null,null,null,null,null,null,"220В (по умолчанию)","24В"]
["Р : Азота оксид (оксид азота (II)) (Р) 2,5 - 100 мг/м15","Комплект отбора пробы \n(рекомендовано для веществ тяжелее воздуха)",null,null,null,null,null,null,null,null,null,null,null,null,null,null,null,null,null,null,null,null,null,null,null,null,null,null,null,null,null,null,null,null,"шланг ПВД (до 7м), пробозаборная воронка","шланг ПВД (до 7м)","Не требуется"]
["Р : Азота оксид (оксид азота (II)) (Р) 2,5 - 100 мг/м16","комплект для проведения ПНР","УПР (устройство проверки работоспособности)",null,null,null,null,null,null,null,null,null,null,null,null,null,null,null,null,null,null,null,null,null,null,null,null,null,null,null,null,null,null,null,"УПР (устройство проверки работоспособности)","Не требуется"]
["Р : Азота оксид (оксид азота (II)) (Р) 2,5 - 100 мг/м17","вторичный блок сбора данных (устанавливается вне взрывоопасной зоны)","Блок информационный БИ-2 (вх.сигн: RS485, 4-20 mA; вых.сигн: RS485; Ethernet; реле)",null,null,null,null,null,null,null,null,null,null,null,null,null,null,null,null,null,null,null,null,null,null,null,null,null,null,null,null,null,null,null,"Блок информационный БИ-2 (вх.сигн: RS485, 4-20 mA; вых.сигн: RS485; Ethernet; реле)","Не требуется"]
["Р : Азота оксид (оксид азота (II)) (Р) 2,5 - 100 мг/м18",{"$f":"IF(D2>0,\"запасная хим кассета (реккомендуется в случае возможных частых первышениях ПДК)\",\"\")","v":"запасная хим кассета (реккомендуется в случае возможных частых первышениях ПДК)"},null,null,null,null,null,null,null,null,null,null,null,null,null,null,null,null,null,null,null,null,null,null,null,null,null,null,null,null,null,null,null,null,"Требуется","Не требуется"]
["Р : Азота оксид (оксид азота (II)) (Р) 2,5 - 100 мг/м19","комплект для подключения к ПК",null,null,null,null,null,null,null,null,null,null,null,null,null,null,null,null,null,null,null,null,null,null,null,null,null,null,null,null,null,null,null,null,"ПО для работы с газоаналитической системой","Не требуется"]
["Р : Азота оксид (оксид азота (II)) (Р) 2,5 - 100 мг/м20","Внешняя свето-звуковая сигнализация "]
["Р : Азота оксид (оксид азота (II)) (Р) 2,5 - 100 мг/м22","Требуется ли шильд с позиционым обозначением?"]
["Р : Азота оксид (оксид азота (II)) (Р) 2,5 - 100 мг/м23",{"$f":"IF(AJ1>0,\"Требуется ли расширение системы датчиками разлива СР-4?\",\"\")","v":"Требуется ли расширение системы датчиками разлива СР-4?"}]
["Р : Азота оксид (оксид азота (II)) (Р) 2,5 - 100 мг/м24"]
["Р : Азота оксид (оксид азота (II)) (Р) 2,5 - 100 мг/м25"]
["Р : Азота оксид (оксид азота (II)) (Р) 2,5 - 100 мг/м26","Информация о проекте","6 ЗАПОЛНИТЬ↓↓↓"]
["Р : Азота оксид (оксид азота (II)) (Р) 2,5 - 100 мг/м27","Покупатель"]
["Р : Азота оксид (оксид азота (II)) (Р) 2,5 - 100 мг/м28","Конечный заказчик"]
["Р : Азота оксид (оксид азота (II)) (Р) 2,5 - 100 мг/м29","Объект"]
["Р : Азота оксид (оксид азота (II)) (Р) 2,5 - 100 мг/м30","Статус проекта"]
["Р : Азота оксид (оксид азота (II)) (Р) 2,5 - 100 мг/м31","Контактное лицо"]
["Р : Азота оксид (оксид азота (II)) (Р) 2,5 - 100 мг/м32","Телефон"]
["Р : Азота оксид (оксид азота (II)) (Р) 2,5 - 100 мг/м33","e-mail"]
["Р : Азота оксид (оксид азота (II)) (Р) 2,5 - 100 мг/м34"]
["Р : Азота оксид (оксид азота (II)) (Р) 2,5 - 100 мг/м35"]
["Р : Азота оксид (оксид азота (II)) (Р) 2,5 - 100 мг/м36"]
["Р : Азота оксид (оксид азота (II)) (Р) 2,5 - 100 мг/м37"]
["Р : Азота оксид (оксид азота (II)) (Р) 2,5 - 100 мг/м38"]
["Р : Азота оксид (оксид азота (II)) (Р) 2,5 - 100 мг/м39"]
["Р : Азота оксид (оксид азота (II)) (Р) 2,5 - 100 мг/м40"]
["Р : Азота оксид (оксид азота (II)) (Р) 2,5 - 100 мг/м41"]
["Р : Азота оксид (оксид азота (II)) (Р) 2,5 - 100 мг/м42"]
["Р : Азота оксид (оксид азота (II)) (Р) 2,5 - 100 мг/м43"]

{"sheet":"ИНСТРУКЦИЯ","index":5,"n_rows":23,"n_cols":1,"rows_kept":23,"cut":false,"hidden":false,"merged":[]}
["1. Нажать кнопку \"Разрешить редактирование\""]
[]
["2. Нажать кнопку \"Включить содержимое\""]
[]
["3. Перейти на лист \"Соответствие модификациям\""]
[]
["4. В первой строке выбрать вещество (для удобства можно ввести часть названия)"]
[]
["5. Из выпадающего списка выбрать нужное вещество"]
[]
["После выбора вещества отобразятся подходящие модификации приборов."]
[]
["Под каждой модификацией указаны особенности исполнения, помогающие определиться с выбором модели."]
[]
["6. Выбрать наиболее подходящую модификацию и перейти на опросный лист модификации"]
[]
["7. В первой строке выбрать вещество (для удобства можно ввести часть названия)"]
[]
["8. Заполнить опросный лист (основные требования и дополнительное оборудование)"]
[]
["9. Заполнить количество"]
["10. Заполнить информацию о проекте"]
["11. Ненужные опросные листы можно скрыть или удалить"]

{"sheet":"Данные2","index":6,"n_rows":324,"n_cols":40,"rows_kept":324,"cut":false,"hidden":true,"merged":[]}
["Nazvanie pribora","Арт0","Диапазон измерений","А/Р/АР","Х/Д",null,null,"МВИ А","МВИ Р","МВИ АР","Тип номенкл.","А","Р","АР","АEx","РEx","АРEx","РБ","Название вещества","Дож","Пусто2","Пусто3","Пусто4 ","Пусто5","Формула","ПДК","Товар","МВИ ПВ","М/С","СExД/СExХ","Стационарные исполнения","ГАНК-4С","ГАНК-4М","Артикул (С/Мд)","Арт.Мприн","Сex","ТИП Д для Сex","Артикул","Фex","СР-4"]
["Р : Азота диоксид (оксид азота (IV)) (Р) 1 - 40 мг/м3",20012,"1 - 40 мг/м3","Р","Х",null,null,null,null,null,"В-во","Нет","Х","Х","Нет","Х","Х","Д","Азота диоксид (оксид азота (IV)) (Р)",null,null,null,null,null,"NO2",2,null,"Да","М",{"$f":"IF(AC2=\"НЕТ\",\"Нет\",IF(AC2=\"С\",\"Cex (Х)\",IF(AC2=\"М\",\"Cex (Д)\",\" \")))","v":"Cex (Д)"},{"$f":"CONCATENATE(IF(AC2=\"Нет\",\"\",CONCATENATE(AC2,\";\")),IF(AD2=\"Нет\",\"\",AD2))","v":"М;Cex (Д)"},"Нет","ГАНК-4М для определения: Азота диоксид (оксид азота (IV)) (Р)",{"$f":"102000+(B2-2)/10-2000","v":102001},{"$f":"IF(AC2=\"Нет\",\"Нет\",AH2*10+2)","v":1020012},{"$f":"IF(AC2=\"М\",CONCATENATE(\"ГАНК-4СEx (Д) для определения: \",S2),IF(AC2=\"С\",CONCATENATE(\"ГАНК-4СEx (Х) для определения: \",S2),\"Нет\"))","v":"ГАНК-4СEx (Д) для определения: Азота диоксид (оксид азота (IV)) (Р)"},"Д",{"$f":"IF(AC2=\"нет\",\"Нет\",1026000+(B2-2)/10-2000)","v":1026001},{"$f":"IF(AC2=\"М\",CONCATENATE(\"ГАНК-4ФEx (Д) для определения: \",S2),IF(AC2=\"С\",CONCATENATE(\"ГАНК-4ФEx (Х) для определения: \",S2),\"Нет\"))","v":"ГАНК-4ФEx (Д) для определения: Азота диоксид (оксид азота (IV)) (Р)"},"Нет"]
["Р : Азота оксид (оксид азота (II)) (Р) 2,5 - 100 мг/м3",20022,"2,5 - 100 мг/м3","Р","Х",null,null,null,null,null,"В-во","Нет","Х","Х","Нет","Х","Х","Д","Азота оксид (оксид азота (II)) (Р)",null,null,null,null,null,"NO",5,null,"Да","М",{"$f":"IF(AC3=\"НЕТ\",\"Нет\",IF(AC3=\"С\",\"Cex (Х)\",IF(AC3=\"М\",\"Cex (Д)\",\" \")))","v":"Cex (Д)"},{"$f":"CONCATENATE(IF(AC3=\"Нет\",\"\",CONCATENATE(AC3,\";\")),IF(AD3=\"Нет\",\"\",AD3))","v":"М;Cex (Д)"},"Нет","ГАНК-4М для определения: Азота оксид (оксид азота (II)) (Р)",102002,1020022,"ГАНК-4СEx (Д) для определения: Азота оксид (оксид азота (II)) (Р)","Д",1026002,"ГАНК-4ФEx (Д) для определения: Азота оксид (оксид азота (II)) (Р)","Нет"]
["Р : Азота оксиды (Р) 2,5 - 100 мг/м3",20032,"2,5 - 100 мг/м3","Р","Х",null,null,null,null,"АР5","В-во","Нет","Х","Х","Нет","Х","Х","Д","Азота оксиды (Р)",null,null,null,null,null,"NOx",5,null,null,"М","Cex (Д)","М;Cex (Д)","Нет","ГАНК-4М для определения: Азота оксиды (Р)",102003,1020032,"ГАНК-4СEx (Д) для определения: Азота оксиды (Р)","Д",1026003,"ГАНК-4ФEx (Д) для определения: Азота оксиды (Р)","Нет"]
["Р : Кислота азотная (Р) 1 - 40 мг/м3",20042,"1 - 40 мг/м3","Р","Х",null,null,null,"Р03",null,"В-во","Нет","Х","Х","Нет","Х","Х","Нет","Кислота азотная (Р)",null,null,null,null,null,"HNO3",2,null,"Да","С","Cex (Х)","С;Cex (Х)","ГАНК-4С для определения: Кислота азотная (Р)","Нет",102004,1020042,"ГАНК-4СEx (Х) для определения: Кислота азотная (Р)","Х",1026004,"ГАНК-4ФEx (Х) для определения: Кислота азотная (Р)","Да"]
["Р : Амины алифатические (Р) 0,5 - 20 мг/м3",20052,"0,5 - 20 мг/м3","Р","Х",null,null,null,"Р03",null,"В-во","Нет","Х","Х","Нет","Х","Х","Д","Амины алифатические (Р)",null,null,null,null,null,"С15-С20",1,null,null,"М","Cex (Д)","М;Cex (Д)","Нет","ГАНК-4М для определения: Амины алифатические (Р)",102005,1020052,"ГАНК-4СEx (Д) для определения: Амины алифатические (Р)","Д",1026005,"ГАНК-4ФEx (Д) для определения: Амины алифатические (Р)","Нет"]
["Р : Анилин (аминобензол) (Р) 0,05 - 2 мг/м3",20062,"0,05 - 2 мг/м3","Р","Д",null,null,null,"Р04",null,"В-во","Нет","Д","Д","Нет","Д","Д","Д","Анилин (аминобензол) (Р)",null,null,null,null,null,"С6Н5NН2",0.1,null,null,"М","Cex (Д)","М;Cex (Д)","Нет","ГАНК-4М для определения: Анилин (аминобензол) (Р)",102006,1020062,"ГАНК-4СEx (Д) для определения: Анилин (аминобензол) (Р)","Д",1026006,"ГАНК-4ФEx (Д) для определения: Анилин (аминобензол) (Р)","Нет"]
["Р : 2-Аминоэтанол (Моноэтаноламин, 2-аминоэтан-1-ол) (Р) 0,25 - 10 мг/м3",20072,"0,25 - 10 мг/м3","Р","Х",null,null,null,null,null,"В-во","Нет","Х","Х","Нет","Х","Х","Д","2-Аминоэтанол (Моноэтаноламин, 2-аминоэтан-1-ол) (Р)",null,null,null,null,null,"C2H7NO",0.5,null,"ОТ","М","Cex (Д)","М;Cex (Д)","Нет","ГАНК-4М для определения: 2-Аминоэтанол (Моноэтаноламин, 2-аминоэтан-1-ол) (Р)",102007,1020072,"ГАНК-4СEx (Д) для определения: 2-Аминоэтанол (Моноэтаноламин, 2-аминоэтан-1-ол) (Р)","Д",1026007,"ГАНК-4ФEx (Д) для определения: 2-Аминоэтанол (Моноэтаноламин, 2-аминоэтан-1-ол) (Р)","Нет"]
["Р : Аммиак (Р) 10 - 400 мг/м3",20082,"10 - 400 мг/м3","Р","Х",null,null,null,null,null,"В-во","Нет","Х","Х","Нет","Х","Х","Д","Аммиак (Р)",null,null,null,null,null,"NH3",20,null,"Да","М","Cex (Д)","М;Cex (Д)","Нет","ГАНК-4М для определения: Аммиак (Р)",102008,1020082,"ГАНК-4СEx (Д) для определения: Аммиак (Р)","Д",1026008,"ГАНК-4ФEx (Д) для определения: Аммиак (Р)","Нет"]
["Р : Ацетальдегид (этаналь, уксусный альдегид) (Р) 2,5 - 100 мг/м3",20092,"2,5 - 100 мг/м3","Р","Д",null,null,null,null,null,"В-во","Нет","Д","Д","Нет","Д","Д","Д","Ацетальдегид (этаналь, уксусный альдегид) (Р)",null,null,null,null,null,"C2H3OH",5,null,"Да","М","Cex (Д)","М;Cex (Д)","Нет","ГАНК-4М для определения: Ацетальдегид (этаналь, уксусный альдегид) (Р)",102009,1020092,"ГАНК-4СEx (Д) для определения: Ацетальдегид (этаналь, уксусный альдегид) (Р)","Д",1026009,"ГАНК-4ФEx (Д) для определения: Ацетальдегид (этаналь, уксусный альдегид) (Р)","Нет"]
["Р : Ацетонитрил (уксусной кислоты нитрил) (Р) 5 - 200 мг/м3",20102,"5 - 200 мг/м3","Р","Д",null,null,null,null,null,"В-во","Нет","Д","Д","Нет","Д","Д","Д","Ацетонитрил (уксусной кислоты нитрил) (Р)",null,null,null,null,null,"C2H3N",10,null,"ОТ","М","Cex (Д)","М;Cex (Д)","Нет","ГАНК-4М для определения: Ацетонитрил (уксусной кислоты нитрил) (Р)",102010,1020102,"ГАНК-4СEx (Д) для определения: Ацетонитрил (уксусной кислоты нитрил) (Р)","Д",1026010,"ГАНК-4ФEx (Д) для определения: Ацетонитрил (уксусной кислоты нитрил) (Р)","Нет"]
["Р : Аэрозоль краски (по ксилолу) (Р) 25 - 1000 мг/м3",20112,"25 - 1000 мг/м3","Р","Д",null,null,null,null,null,"В-во","Нет","Д","Д","Нет","Д","Д","Д","Аэрозоль краски (по ксилолу) (Р)",null,null,null,null,null,null,50,null,"ОТ","М","Cex (Д)","М;Cex (Д)","Нет","ГАНК-4М для определения: Аэрозоль краски (по ксилолу) (Р)",102011,1020112,"ГАНК-4СEx (Д) для определения: Аэрозоль краски (по ксилолу) (Р)","Д",1026011,"ГАНК-4ФEx (Д) для определения: Аэрозоль краски (по ксилолу) (Р)","Нет"]
["Р : Бензальдегид (бензойный альдегид) (Р) 2,5 - 100 мг/м3",20122,"2,5 - 100 мг/м3","Р","Д",null,null,null,"Р05",null,"В-во","Нет","Д","Д","Нет","Д","Д","Д","Бензальдегид (бензойный альдегид) (Р)",null,null,null,null,null,"C₇H₆O",5,null,null,"М","Cex (Д)","М;Cex (Д)","Нет","ГАНК-4М для определения: Бензальдегид (бензойный альдегид) (Р)",102012,1020122,"ГАНК-4СEx (Д) для определения: Бензальдегид (бензойный альдегид) (Р)","Д",1026012,"ГАНК-4ФEx (Д) для определения: Бензальдегид (бензойный альдегид) (Р)","Нет"]
["Р : Бензилацетат (Р) 2,5 - 100 мг/м3",20132,"2,5 - 100 мг/м3","Р","Д",null,null,null,"Р06",null,"В-во","Нет","Д","Д","Нет","Д","Д","Д","Бензилацетат (Р)",null,null,null,null,null,"С9Н10О2",5,null,null,"М","Cex (Д)","М;Cex (Д)","Нет","ГАНК-4М для определения: Бензилацетат (Р)",102013,1020132,"ГАНК-4СEx (Д) для определения: Бензилацетат (Р)","Д",1026013,"ГАНК-4ФEx (Д) для определения: Бензилацетат (Р)","Нет"]
["Р : Бензин (Р) 50 - 2000 мг/м3",20142,"50 - 2000 мг/м3","Р","Д",null,null,null,null,null,"В-во","Нет","Д","Д","Нет","Д","Д","Д","Бензин (Р)",null,null,null,null,null,null,100,null,"Да","М","Cex (Д)","М;Cex (Д)","Нет","ГАНК-4М для определения: Бензин (Р)",102014,1020142,"ГАНК-4СEx (Д) для определения: Бензин (Р)","Д",1026014,"ГАНК-4ФEx (Д) для определения: Бензин (Р)","Нет"]
["Р : Бензол (Р) 2,5 - 100 мг/м3",20152,"2,5 - 100 мг/м3","Р","Д",null,null,null,null,null,"В-во","Нет","Д","Д","Нет","Д","Д","Д","Бензол (Р)",null,null,null,null,null,"C6H6",5,null,"ОТ","М","Cex (Д)","М;Cex (Д)","Нет","ГАНК-4М для определения: Бензол (Р)",102015,1020152,"ГАНК-4СEx (Д) для определения: Бензол (Р)","Д",1026015,"ГАНК-4ФEx (Д) для определения: Бензол (Р)","Нет"]
["Р : Динил (смесь дифенила и дефинилового эфира) (Р) 5 - 200 мг/м3",20162,"5 - 200 мг/м3","Р","Д",null,null,null,"Р05",null,"В-во","Нет","Д","Д","Нет","Д","Д","Д","Динил (смесь дифенила и дефинилового эфира) (Р)",null,null,null,null,null,"C12H10O · C12H10",10,null,null,"М","Cex (Д)","М;Cex (Д)","Нет","ГАНК-4М для определения: Динил (смесь дифенила и дефинилового эфира) (Р)",102016,1020162,"ГАНК-4СEx (Д) для определения: Динил (смесь дифенила и дефинилового эфира) (Р)","Д",1026016,"ГАНК-4ФEx (Д) для определения: Динил (смесь дифенила и дефинилового эфира) (Р)","Нет"]
["Р : Бромбензол (Р) 1,5 - 60 мг/м3",20172,"1,5 - 60 мг/м3","Р","Д",null,null,null,"Р08",null,"В-во","Нет","Д","Д","Нет","Д","Д","Д","Бромбензол (Р)",null,null,null,null,null,"С6Н5Вr",3,null,null,"М","Cex (Д)","М;Cex (Д)","Нет","ГАНК-4М для определения: Бромбензол (Р)",102017,1020172,"ГАНК-4СEx (Д) для определения: Бромбензол (Р)","Д",1026017,"ГАНК-4ФEx (Д) для определения: Бромбензол (Р)","Нет"]
["Р : 1-Бромгексан (Р) 0,15 - 6 мг/м3",20182,"0,15 - 6 мг/м3","Р","Д",null,null,null,"Р08",null,"В-во","Нет","Д","Д","Нет","Д","Д","Д","1-Бромгексан (Р)",null,null,null,null,null,"C6H13Br",0.3,null,null,"М","Cex (Д)","М;Cex (Д)","Нет","ГАНК-4М для определения: 1-Бромгексан (Р)",102018,1020182,"ГАНК-4СEx (Д) для определения: 1-Бромгексан (Р)","Д",1026018,"ГАНК-4ФEx (Д) для определения: 1-Бромгексан (Р)","Нет"]
["Р : Бромметан (Р) 0,5 - 20 мг/м3",20192,"0,5 - 20 мг/м3","Р","Д",null,null,null,"Р08",null,"В-во","Нет","Д","Д","Нет","Д","Д","Д","Бромметан (Р)",null,null,null,null,null,"СН3Вr",1,null,null,"М","Cex (Д)","М;Cex (Д)","Нет","ГАНК-4М для определения: Бромметан (Р)",102019,1020192,"ГАНК-4СEx (Д) для определения: Бромметан (Р)","Д",1026019,"ГАНК-4ФEx (Д) для определения: Бромметан (Р)","Нет"]
["Р : Бромфенол (Р) 0,15 - 6 мг/м3",20202,"0,15 - 6 мг/м3","Р","Д",null,null,null,"Р08",null,"В-во","Нет","Д","Д","Нет","Д","Д","Д","Бромфенол (Р)",null,null,null,null,null,"ВrС6Н4ОН",0.3,null,null,"М","Cex (Д)","М;Cex (Д)","Нет","ГАНК-4М для определения: Бромфенол (Р)",102020,1020202,"ГАНК-4СEx (Д) для определения: Бромфенол (Р)","Д",1026020,"ГАНК-4ФEx (Д) для определения: Бромфенол (Р)","Нет"]
["Р : Бутадиен (Р) 50 - 2000 мг/м3",20212,"50 - 2000 мг/м3","Р","Д",null,null,null,"Р06",null,"В-во","Нет","Д","Д","Нет","Д","Д","Д","Бутадиен (Р)",null,null,null,null,null,"С4Н6",100,null,null,"М","Cex (Д)","М;Cex (Д)","Нет","ГАНК-4М для определения: Бутадиен (Р)",102021,1020212,"ГАНК-4СEx (Д) для определения: Бутадиен (Р)","Д",1026021,"ГАНК-4ФEx (Д) для определения: Бутадиен (Р)","Нет"]
["Р : Бутан (Р) 150 - 6000 мг/м3",20222,"150 - 6000 мг/м3","Р","Д",null,null,null,"Р07",null,"В-во","Нет","Д","Д","Нет","Д","Д","Д","Бутан (Р)",null,null,null,null,null,"С4Н10",300,null,null,"М","Cex (Д)","М;Cex (Д)","Нет","ГАНК-4М для определения: Бутан (Р)",102022,1020222,"ГАНК-4СEx (Д) для определения: Бутан (Р)","Д",1026022,"ГАНК-4ФEx (Д) для определения: Бутан (Р)","Нет"]
["Р : Масляный альдегид (бутаналь) (Р) 2,5 - 100 мг/м3",20232,"2,5 - 100 мг/м3","Р","Д",null,null,null,"Р05",null,"В-во","Нет","Д","Д","Нет","Д","Д","Д","Масляный альдегид (бутаналь) (Р)",null,null,null,null,null,"C4H8O",5,null,null,"М","Cex (Д)","М;Cex (Д)","Нет","ГАНК-4М для определения: Масляный альдегид (бутаналь) (Р)",102023,1020232,"ГАНК-4СEx (Д) для определения: Масляный альдегид (бутаналь) (Р)","Д",1026023,"ГАНК-4ФEx (Д) для определения: Масляный альдегид (бутаналь) (Р)","Нет"]
["Р : Бутандиол (Р) 2,5 - 100 мг/м3",20242,"2,5 - 100 мг/м3","Р","Д",null,null,null,"Р09",null,"В-во","Нет","Д","Д","Нет","Д","Д","Д","Бутандиол (Р)",null,null,null,null,null,"С4Н8(ОН)2",5,null,null,"М","Cex (Д)","М;Cex (Д)","Нет","ГАНК-4М для определения: Бутандиол (Р)",102024,1020242,"ГАНК-4СEx (Д) для определения: Бутандиол (Р)","Д",1026024,"ГАНК-4ФEx (Д) для определения: Бутандиол (Р)","Нет"]
["Р : Бутанол (бутан-1-ол, 1-бутанол, бутиловый спирт) (Р) 5 - 200 мг/м3",20252,"5 - 200 мг/м3","Р","Д",null,null,null,null,null,"В-во","Нет","Д","Д","Нет","Д","Д","Д","Бутанол (бутан-1-ол, 1-бутанол, бутиловый спирт) (Р)",null,null,null,null,null,"C4H9OH",10,null,"Да","М","Cex (Д)","М;Cex (Д)","Нет","ГАНК-4М для определения: Бутанол (бутан-1-ол, 1-бутанол, бутиловый спирт) (Р)",102025,1020252,"ГАНК-4СEx (Д) для определения: Бутанол (бутан-1-ол, 1-бутанол, бутиловый спирт) (Р)","Д",1026025,"ГАНК-4ФEx (Д) для определения: Бутанол (бутан-1-ол, 1-бутанол, бутиловый спирт) (Р)","Нет"]
["Р : Изобутанол (бутан-2-ол, 2-метилпропанол-1) (Р) 5 - 200 мг/м3",20262,"5 - 200 мг/м3","Р","Д",null,null,null,null,null,"В-во","Нет","Д","Д","Нет","Д","Д","Д","Изобутанол (бутан-2-ол, 2-метилпропанол-1) (Р)",null,null,null,null,null,"C4H10O",10,null,"ОТ","М",{"$f":"IF(AC27=\"НЕТ\",\"Нет\",IF(AC27=\"С\",\"Cex (Х)\",IF(AC27=\"М\",\"Cex (Д)\",\" \")))","v":"Cex (Д)"},{"$f":"CONCATENATE(IF(AC27=\"Нет\",\"\",CONCATENATE(AC27,\";\")),IF(AD27=\"Нет\",\"\",AD27))","v":"М;Cex (Д)"},"Нет","ГАНК-4М для определения: Изобутанол (бутан-2-ол, 2-метилпропанол-1) (Р)",102026,1020262,"ГАНК-4СEx (Д) для определения: Изобутанол (бутан-2-ол, 2-метилпропанол-1) (Р)","Д",1026026,"ГАНК-4ФEx (Д) для определения: Изобутанол (бутан-2-ол, 2-метилпропанол-1) (Р)","Нет"]
["Р : Метилэтилкетон  Бутанон-2 (Р) 100 - 4000 мг/м3",20272,"100 - 4000 мг/м3","Р","Д",null,null,null,"Р05",null,"В-во","Нет","Д","Д","Нет","Д","Д","Д","Метилэтилкетон  Бутанон-2 (Р)",null,null,null,null,null,"C4H8O",200,null,null,"М","Cex (Д)","М;Cex (Д)","Нет","ГАНК-4М для определения: Метилэтилкетон  Бутанон-2 (Р)",102027,1020272,"ГАНК-4СEx (Д) для определения: Метилэтилкетон  Бутанон-2 (Р)","Д",1026027,"ГАНК-4ФEx (Д) для определения: Метилэтилкетон  Бутанон-2 (Р)","Нет"]
["Р : Диэтилсульфид (Р) 25 - 1000 мг/м3",20282,"25 - 1000 мг/м3","Р","Д",null,null,null,"Р04",null,"В-во","Нет","Д","Д","Нет","Д","Д","Д","Диэтилсульфид (Р)",null,null,null,null,null,"С4Н10S",50,null,null,"М","Cex (Д)","М;Cex (Д)","Нет","ГАНК-4М для определения: Диэтилсульфид (Р)",102028,1020282,"ГАНК-4СEx (Д) для определения: Диэтилсульфид (Р)","Д",1026028,"ГАНК-4ФEx (Д) для определения: Диэтилсульфид (Р)","Нет"]
["Р : Бутилакрилат (Р) 5 - 200 мг/м3",20292,"5 - 200 мг/м3","Р","Д",null,null,null,"Р05",null,"В-во","Нет","Д","Д","Нет","Д","Д","Д","Бутилакрилат (Р)",null,null,null,null,null,"C7H12O2",10,null,null,"М","Cex (Д)","М;Cex (Д)","Нет","ГАНК-4М для определения: Бутилакрилат (Р)",102029,1020292,"ГАНК-4СEx (Д) для определения: Бутилакрилат (Р)","Д",1026029,"ГАНК-4ФEx (Д) для определения: Бутилакрилат (Р)","Нет"]
["Р : Бутилацетат (уксусный кислоты бутиловый эфир) (Р) 25 - 1000 мг/м3",20302,"25 - 1000 мг/м3","Р","Д",null,null,null,null,null,"В-во","Нет","Д","Д","Нет","Д","Д","Д","Бутилацетат (уксусный кислоты бутиловый эфир) (Р)",null,null,null,null,null,"C6H12O2",50,null,"ОТ","М","Cex (Д)","М;Cex (Д)","Нет","ГАНК-4М для определения: Бутилацетат (уксусный кислоты бутиловый эфир) (Р)",102030,1020302,"ГАНК-4СEx (Д) для определения: Бутилацетат (уксусный кислоты бутиловый эфир) (Р)","Д",1026030,"ГАНК-4ФEx (Д) для определения: Бутилацетат (уксусный кислоты бутиловый эфир) (Р)","Нет"]
["Р : Бутилен (2-метилпроп-1-ен, бут-1-ен) (Р) 50 - 2000 мг/м3",20312,"50 - 2000 мг/м3","Р","Д",null,null,null,null,null,"В-во","Нет","Д","Д","Нет","Д","Д","Д","Бутилен (2-метилпроп-1-ен, бут-1-ен) (Р)",null,null,null,null,null,"С4Н8",100,null,"ОТ","М","Cex (Д)","М;Cex (Д)","Нет","ГАНК-4М для определения: Бутилен (2-метилпроп-1-ен, бут-1-ен) (Р)",102031,1020312,"ГАНК-4СEx (Д) для определения: Бутилен (2-метилпроп-1-ен, бут-1-ен) (Р)","Д",1026031,"ГАНК-4ФEx (Д) для определения: Бутилен (2-метилпроп-1-ен, бут-1-ен) (Р)","Нет"]
["Р : Природный газ в пересчете на метан (Р) 3500 - 35000 мг/м3",20322,"3500 - 35000 мг/м3","Р","Д",null,null,null,"Р07",null,"В-во","Нет","Д","Д","Нет","Д","Д","Д","Природный газ в пересчете на метан (Р)",null,null,null,null,null,null,7000,null,null,"М","Cex (Д)","М;Cex (Д)","Нет","ГАНК-4М для определения: Природный газ в пересчете на метан (Р)",102032,1020322,"ГАНК-4СEx (Д) для определения: Природный газ в пересчете на метан (Р)","Д",1026032,"ГАНК-4ФEx (Д) для определения: Природный газ в пересчете на метан (Р)","Нет"]
["Р : Топливный газ в пересчете на пропан (Р) 50 - 2000 мг/м3",20332,"50 - 2000 мг/м3","Р","Д",null,null,null,"Р07",null,"В-во","Нет","Д","Д","Нет","Д","Д","Д","Топливный газ в пересчете на пропан (Р)",null,null,null,null,null,null,100,null,null,"М","Cex (Д)","М;Cex (Д)","Нет","ГАНК-4М для определения: Топливный газ в пересчете на пропан (Р)",{"$f":"102000+(B34-2)/10-2000","v":102033},{"$f":"IF(AC34=\"Нет\",\"Нет\",AH34*10+2)","v":1020332},"ГАНК-4СEx (Д) для определения: Топливный газ в пересчете на пропан (Р)","Д",1026033,"ГАНК-4ФEx (Д) для определения: Топливный газ в пересчете на пропан (Р)","Нет"]
["Р : Капролактам (Гексагидро-2Н-азепин-2-он) (Р) 5 - 200 мг/м3",20342,"5 - 200 мг/м3","Р","Д",null,null,null,"Р04",null,"В-во","Нет","Д","Д","Нет","Д","Д","Д","Капролактам (Гексагидро-2Н-азепин-2-он) (Р)",null,null,null,null,null,"С6Н11NО",10,null,null,"М","Cex (Д)","М;Cex (Д)","Нет","ГАНК-4М для определения: Капролактам (Гексагидро-2Н-азепин-2-он) (Р)",102034,1020342,"ГАНК-4СEx (Д) для определения: Капролактам (Гексагидро-2Н-азепин-2-он) (Р)","Д",1026034,"ГАНК-4ФEx (Д) для определения: Капролактам (Гексагидро-2Н-азепин-2-он) (Р)","Нет"]
["Р : Гексан (Р) 150 - 6000 мг/м3",20352,"150 - 6000 мг/м3","Р","Д",null,null,null,"Р07",null,"В-во","Нет","Д","Д","Нет","Д","Д","Д","Гексан (Р)",null,null,null,null,null,"C6H14",300,null,"Да","М","Cex (Д)","М;Cex (Д)","Нет","ГАНК-4М для определения: Гексан (Р)",102035,1020352,"ГАНК-4СEx (Д) для определения: Гексан (Р)","Д",1026035,"ГАНК-4ФEx (Д) для определения: Гексан (Р)","Нет"]
["Р : Гексан-1-ол (Р) 5 - 200 мг/м3",20362,"5 - 200 мг/м3","Р","Д",null,null,null,"Р09",null,"В-во","Нет","Д","Д","Нет","Д","Д","Д","Гексан-1-ол (Р)",null,null,null,null,null,"С6Н13ОН",10,null,null,"М","Cex (Д)","М;Cex (Д)","Нет","ГАНК-4М для определения: Гексан-1-ол (Р)",102036,1020362,"ГАНК-4СEx (Д) для определения: Гексан-1-ол (Р)","Д",1026036,"ГАНК-4ФEx (Д) для определения: Гексан-1-ол (Р)","Нет"]
["Р : Гептан в пересчете на гексан (Р) 150 - 6000 мг/м3",20372,"150 - 6000 мг/м3","Р","Д",null,null,null,"Р07",null,"В-во","Нет","Д","Д","Нет","Д","Д","Д","Гептан в пересчете на гексан (Р)",null,null,null,null,null,"С7Н16",300,null,null,"М","Cex (Д)","М;Cex (Д)","Нет","ГАНК-4М для определения: Гептан в пересчете на гексан (Р)",102037,1020372,"ГАНК-4СEx (Д) для определения: Гептан в пересчете на гексан (Р)","Д",1026037,"ГАНК-4ФEx (Д) для определения: Гептан в пересчете на гексан (Р)","Нет"]
["Р : Гептан-1-ол по изоамиловому спирту (Р) 5 - 200 мг/м3",20382,"5 - 200 мг/м3","Р","Д",null,null,null,"Р09",null,"В-во","Нет","Д","Д","Нет","Д","Д","Д","Гептан-1-ол по изоамиловому спирту (Р)",null,null,null,null,null,"С7Н15ОН",10,null,null,"М","Cex (Д)","М;Cex (Д)","Нет","ГАНК-4М для определения: Гептан-1-ол по изоамиловому спирту (Р)",102038,1020382,"ГАНК-4СEx (Д) для определения: Гептан-1-ол по изоамиловому спирту (Р)","Д",1026038,"ГАНК-4ФEx (Д) для определения: Гептан-1-ол по изоамиловому спирту (Р)","Нет"]
["Р : Гидразин (Р) 0,05 - 2 мг/м3",20392,"0,05 - 2 мг/м3","Р","Х",null,null,null,"Р03",null,"В-во","Нет","Х","Х","Нет","Х","Х","Нет","Гидразин (Р)",null,null,null,null,null,"N2H4",0.1,null,null,"С","Cex (Х)","С;Cex (Х)","ГАНК-4С для определения: Гидразин (Р)","Нет",102039,1020392,"ГАНК-4СEx (Х) для определения: Гидразин (Р)","Х",1026039,"ГАНК-4ФEx (Х) для определения: Гидразин (Р)","Нет"]
["Р : Гидроксибензол (фенол) (Р) 0,15 - 6 мг/м3",20402,"0,15 - 6 мг/м3","Р","Х",null,null,null,null,null,"В-во","Нет","Х","Х","Нет","Х","Х","Д","Гидроксибензол (фенол) (Р)",null,null,null,null,null,"C6H5OH",0.3,null,"Да","М","Cex (Д)","М;Cex (Д)","Нет","ГАНК-4М для определения: Гидроксибензол (фенол) (Р)",102040,1020402,"ГАНК-4СEx (Д) для определения: Гидроксибензол (фенол) (Р)","Д",1026040,"ГАНК-4ФEx (Д) для определения: Гидроксибензол (фенол) (Р)","Нет"]
["Р : Крезолы (Р) 0,25 - 10 мг/м3",20412,"0,25 - 10 мг/м3","Р","Д",null,null,null,"Р06",null,"В-во","Нет","Д","Д","Нет","Д","Д","Д","Крезолы (Р)",null,null,null,null,null,"С7Н8О",0.5,null,null,"М","Cex (Д)","М;Cex (Д)","Нет","ГАНК-4М для определения: Крезолы (Р)",102041,1020412,"ГАНК-4СEx (Д) для определения: Крезолы (Р)","Д",1026041,"ГАНК-4ФEx (Д) для определения: Крезолы (Р)","Нет"]
["Р : Гидрофторид (фтороводород) (Р) 0,25 - 10 мг/м3",20422,"0,25 - 10 мг/м3","Р","Х",null,null,null,null,null,"В-во","Нет","Х","Х","Нет","Х","Х","Д","Гидрофторид (фтороводород) (Р)",null,null,null,null,null,"HF",0.5,null,"Да","М","Cex (Д)","М;Cex (Д)","Нет","ГАНК-4М для определения: Гидрофторид (фтороводород) (Р)",102042,1020422,"ГАНК-4СEx (Д) для определения: Гидрофторид (фтороводород) (Р)","Д",1026042,"ГАНК-4ФEx (Д) для определения: Гидрофторид (фтороводород) (Р)","Нет"]
["Р : Гидрохлорид (хлороводород) (Р) 2,5 - 100 мг/м3",20432,"2,5 - 100 мг/м3","Р","Х",null,null,null,null,null,"В-во","Нет","Х","Х","Нет","Х","Х","Д","Гидрохлорид (хлороводород) (Р)",null,null,null,null,null,"HCl",5,null,"Да","М","Cex (Д)","М;Cex (Д)","Нет","ГАНК-4М для определения: Гидрохлорид (хлороводород) (Р)",102043,1020432,"ГАНК-4СEx (Д) для определения: Гидрохлорид (хлороводород) (Р)","Д",1026043,"ГАНК-4ФEx (Д) для определения: Гидрохлорид (хлороводород) (Р)","Да"]
["Р : Этилендиамин (Р) 1 - 40 мг/м3",20442,"1 - 40 мг/м3","Р","Х",null,null,null,"Р03",null,"В-во","Нет","Х","Х","Нет","Х","Х","Д","Этилендиамин (Р)",null,null,null,null,null,"C2H8N2",2,null,null,"М","Cex (Д)","М;Cex (Д)","Нет","ГАНК-4М для определения: Этилендиамин (Р)",102044,1020442,"ГАНК-4СEx (Д) для определения: Этилендиамин (Р)","Д",1026044,"ГАНК-4ФEx (Д) для определения: Этилендиамин (Р)","Нет"]
["Р : Дибутилфталат (Р) 0,25 - 10 мг/м3",20452,"0,25 - 10 мг/м3","Р","Д",null,null,null,"Р05",null,"В-во","Нет","Д","Д","Нет","Д","Д","Д","Дибутилфталат (Р)",null,null,null,null,null,"C16H22O4",0.5,null,null,"М","Cex (Д)","М;Cex (Д)","Нет","ГАНК-4М для определения: Дибутилфталат (Р)",102045,1020452,"ГАНК-4СEx (Д) для определения: Дибутилфталат (Р)","Д",1026045,"ГАНК-4ФEx (Д) для определения: Дибутилфталат (Р)","Нет"]
["Р : Дигидросульфид (сероводород, сульфид водорода) (Р) 5 - 200 мг/м3",20462,"5 - 200 мг/м3","Р","Х",null,null,null,null,null,"В-во","Нет","Х","Х","Нет","Х","Х","Д","Дигидросульфид (сероводород, сульфид водорода) (Р)",null,null,null,null,null,"H2S",10,null,"ОТ","М","Cex (Д)","М;Cex (Д)","Нет","ГАНК-4М для определения: Дигидросульфид (сероводород, сульфид водорода) (Р)",102046,1020462,"ГАНК-4СEx (Д) для определения: Дигидросульфид (сероводород, сульфид водорода) (Р)","Д",1026046,"ГАНК-4ФEx (Д) для определения: Дигидросульфид (сероводород, сульфид водорода) (Р)","Нет"]
["Р : Дизельное топливо (Р) 150 - 6000 мг/м3",20482,"150 - 6000 мг/м3","Р","Д",null,null,null,null,null,"В-во","Нет","Д","Д","Нет","Д","Д","Д","Дизельное топливо (Р)",null,null,null,null,null,null,300,null,"ОТ","М","Cex (Д)","М;Cex (Д)","Нет","ГАНК-4М для определения: Дизельное топливо (Р)",102048,1020482,"ГАНК-4СEx (Д) для определения: Дизельное топливо (Р)","Д",1026048,"ГАНК-4ФEx (Д) для определения: Дизельное топливо (Р)","Нет"]
["Р : Диметиламин (Р) 0,5 - 20 мг/м3",20492,"0,5 - 20 мг/м3","Р","Х",null,null,null,"Р03",null,"В-во","Нет","Х","Х","Нет","Х","Х","Д","Диметиламин (Р)",null,null,null,null,null,"C2H7N",1,null,null,"М",{"$f":"IF(AC49=\"НЕТ\",\"Нет\",IF(AC49=\"С\",\"Cex (Х)\",IF(AC49=\"М\",\"Cex (Д)\",\" \")))","v":"Cex (Д)"},{"$f":"CONCATENATE(IF(AC49=\"Нет\",\"\",CONCATENATE(AC49,\";\")),IF(AD49=\"Нет\",\"\",AD49))","v":"М;Cex (Д)"},"Нет","ГАНК-4М для определения: Диметиламин (Р)",102049,1020492,"ГАНК-4СEx (Д) для определения: Диметиламин (Р)","Д",1026049,"ГАНК-4ФEx (Д) для определения: Диметиламин (Р)","Нет"]
["Р : Диметилсульфид (Р) 25 - 1000 мг/м3",20522,"25 - 1000 мг/м3","Р","Д",null,null,null,"Р04",null,"В-во","Нет","Д","Д","Нет","Д","Д","Д","Диметилсульфид (Р)",null,null,null,null,null,"С2Н6S",50,null,null,"М","Cex (Д)","М;Cex (Д)","Нет","ГАНК-4М для определения: Диметилсульфид (Р)",102052,1020522,"ГАНК-4СEx (Д) для определения: Диметилсульфид (Р)","Д",1026052,"ГАНК-4ФEx (Д) для определения: Диметилсульфид (Р)","Нет"]
["Р : Диметилсульфоксид (Р) 10 - 400 мг/м3",20532,"10 - 400 мг/м3","Р","Д",null,null,null,"Р04",null,"В-во","Нет","Д","Д","Нет","Д","Д","Д","Диметилсульфоксид (Р)",null,null,null,null,null,"(СН3)2 SO",20,null,null,"М","Cex (Д)","М;Cex (Д)","Нет","ГАНК-4М для определения: Диметилсульфоксид (Р)",102053,1020532,"ГАНК-4СEx (Д) для определения: Диметилсульфоксид (Р)","Д",1026053,"ГАНК-4ФEx (Д) для определения: Диметилсульфоксид (Р)","Нет"]
["Р : N-N-Диметилформамид (Р) 5 - 200 мг/м3",20542,"5 - 200 мг/м3","Р","Д",null,null,null,"Р04",null,"В-во","Нет","Д","Д","Нет","Д","Д","Д","N-N-Диметилформамид (Р)",null,null,null,null,null," С3Н7ON",10,null,null,"М","Cex (Д)","М;Cex (Д)","Нет","ГАНК-4М для определения: N-N-Диметилформамид (Р)",102054,1020542,"ГАНК-4СEx (Д) для определения: N-N-Диметилформамид (Р)","Д",1026054,"ГАНК-4ФEx (Д) для определения: N-N-Диметилформамид (Р)","Нет"]
["Р : Ксилидины (Р) 1,5 - 60 мг/м3",20552,"1,5 - 60 мг/м3","Р","Д",null,null,null,"Р03",null,"В-во","Нет","Д","Д","Нет","Д","Д","Д","Ксилидины (Р)",null,null,null,null,null,"C8H11N",3,null,null,"М","Cex (Д)","М;Cex (Д)","Нет","ГАНК-4М для определения: Ксилидины (Р)",102055,1020552,"ГАНК-4СEx (Д) для определения: Ксилидины (Р)","Д",1026055,"ГАНК-4ФEx (Д) для определения: Ксилидины (Р)","Нет"]
["Р : Диметилфталат (Р) 0,15 - 6 мг/м3",20562,"0,15 - 6 мг/м3","Р","Д",null,null,null,"Р05",null,"В-во","Нет","Д","Д","Нет","Д","Д","Д","Диметилфталат (Р)",null,null,null,null,null,"C10H10O4",0.3,null,null,"М","Cex (Д)","М;Cex (Д)","Нет","ГАНК-4М для определения: Диметилфталат (Р)",102056,1020562,"ГАНК-4СEx (Д) для определения: Диметилфталат (Р)","Д",1026056,"ГАНК-4ФEx (Д) для определения: Диметилфталат (Р)","Нет"]
["Р : Ксилол (диметилбензол) (Р) 25 - 1000 мг/м3",20572,"25 - 1000 мг/м3","Р","Д",null,null,null,null,null,"В-во","Нет","Д","Д","Нет","Д","Д","Д","Ксилол (диметилбензол) (Р)",null,null,null,null,null,"C8H10",50,null,"Да","М","Cex (Д)","М;Cex (Д)","Нет","ГАНК-4М для определения: Ксилол (диметилбензол) (Р)",102057,1020572,"ГАНК-4СEx (Д) для определения: Ксилол (диметилбензол) (Р)","Д",1026057,"ГАНК-4ФEx (Д) для определения: Ксилол (диметилбензол) (Р)","Нет"]
["Р : Метилаль (диметоксиметан) (Р) 5 - 200 мг/м3",20592,"5 - 200 мг/м3","Р","Д",null,null,null,"Р05",null,"В-во","Нет","Д","Д","Нет","Д","Д","Д","Метилаль (диметоксиметан) (Р)",null,null,null,null,null,"CH2(OCH3)2",10,null,null,"М","Cex (Д)","М;Cex (Д)","Нет","ГАНК-4М для определения: Метилаль (диметоксиметан) (Р)",102059,1020592,"ГАНК-4СEx (Д) для определения: Метилаль (диметоксиметан) (Р)","Д",1026059,"ГАНК-4ФEx (Д) для определения: Метилаль (диметоксиметан) (Р)","Нет"]
["Р : Диоктилфталат (Р) 0,5 - 20 мг/м3",20612,"0,5 - 20 мг/м3","Р","Д",null,null,null,"Р05",null,"В-во","Нет","Д","Д","Нет","Д","Д","Д","Диоктилфталат (Р)",null,null,null,null,null,"C₁₆H₂₂O₄",1,null,null,"М","Cex (Д)","М;Cex (Д)","Нет","ГАНК-4М для определения: Диоктилфталат (Р)",102061,1020612,"ГАНК-4СEx (Д) для определения: Диоктилфталат (Р)","Д",1026061,"ГАНК-4ФEx (Д) для определения: Диоктилфталат (Р)","Нет"]
["Р : Дихлорметан (Р) 25 - 1000 мг/м3",20622,"25 - 1000 мг/м3","Р","Д",null,null,null,"Р08",null,"В-во","Нет","Д","Д","Нет","Д","Д","Д","Дихлорметан (Р)",null,null,null,null,null,"СН2Cl2",50,null,null,"М","Cex (Д)","М;Cex (Д)","Нет","ГАНК-4М для определения: Дихлорметан (Р)",102062,1020622,"ГАНК-4СEx (Д) для определения: Дихлорметан (Р)","Д",1026062,"ГАНК-4ФEx (Д) для определения: Дихлорметан (Р)","Нет"]
["Р : 1,2-Дихлорэтан (Р) 5 - 200 мг/м3",20632,"5 - 200 мг/м3","Р","Д",null,null,null,null,null,"В-во","Нет","Д","Д","Нет","Д","Д","Д","1,2-Дихлорэтан (Р)",null,null,null,null,null,"C2H4Cl2",10,null,"ОТ","М","Cex (Д)","М;Cex (Д)","Нет","ГАНК-4М для определения: 1,2-Дихлорэтан (Р)",102063,1020632,"ГАНК-4СEx (Д) для определения: 1,2-Дихлорэтан (Р)","Д",1026063,"ГАНК-4ФEx (Д) для определения: 1,2-Дихлорэтан (Р)","Нет"]
["Р : Дихлорэтилен (Р) 25 - 1000 мг/м3",20642,"25 - 1000 мг/м3","Р","Д",null,null,null,"Р08",null,"В-во","Нет","Д","Д","Нет","Д","Д","Д","Дихлорэтилен (Р)",null,null,null,null,null,"С2Н2Cl2",50,null,null,"М","Cex (Д)","М;Cex (Д)","Нет","ГАНК-4М для определения: Дихлорэтилен (Р)",102064,1020642,"ГАНК-4СEx (Д) для определения: Дихлорэтилен (Р)","Д",1026064,"ГАНК-4ФEx (Д) для определения: Дихлорэтилен (Р)","Нет"]
["Р : Диэтиламин (Р) 15 - 600 мг/м3",20652,"15 - 600 мг/м3","Р","Х",null,null,null,"Р03",null,"В-во","Нет","Х","Х","Нет","Х","Х","Д","Диэтиламин (Р)",null,null,null,null,null,"C4H11N",30,null,null,"М","Cex (Д)","М;Cex (Д)","Нет","ГАНК-4М для определения: Диэтиламин (Р)",102065,1020652,"ГАНК-4СEx (Д) для определения: Диэтиламин (Р)","Д",1026065,"ГАНК-4ФEx (Д) для определения: Диэтиламин (Р)","Нет"]
["Р : Диэтилбензол (Р) 5 - 200 мг/м3",20662,"5 - 200 мг/м3","Р","Д",null,null,null,"Р06",null,"В-во","Нет","Д","Д","Нет","Д","Д","Д","Диэтилбензол (Р)",null,null,null,null,null,"С10Н14",10,null,null,"М","Cex (Д)","М;Cex (Д)","Нет","ГАНК-4М для определения: Диэтилбензол (Р)",102066,1020662,"ГАНК-4СEx (Д) для определения: Диэтилбензол (Р)","Д",1026066,"ГАНК-4ФEx (Д) для определения: Диэтилбензол (Р)","Нет"]
["Р : Диэтилфталат (Р) 0,25 - 10 мг/м3",20672,"0,25 - 10 мг/м3","Р","Д",null,null,null,"Р05",null,"В-во","Нет","Д","Д","Нет","Д","Д","Д","Диэтилфталат (Р)",null,null,null,null,null,"C12H14O4",0.5,null,null,"М","Cex (Д)","М;Cex (Д)","Нет","ГАНК-4М для определения: Диэтилфталат (Р)",102067,1020672,"ГАНК-4СEx (Д) для определения: Диэтилфталат (Р)","Д",1026067,"ГАНК-4ФEx (Д) для определения: Диэтилфталат (Р)","Нет"]
["Р :  Ди-Железо триоксид (Р) 3 - 120 мг/м3",20682,"3 - 120 мг/м3","Р","Х",null,null,null,"Р10",null,"В-во","Нет","Х","Х","Нет","Х","Х","Нет","Ди-Железо триоксид (Р)",null,null,null,null,null,"Fe2О3",6,null,"Да","С","Cex (Х)","С;Cex (Х)","ГАНК-4С для определения: Ди-Железо триоксид (Р)","Нет",102068,1020682,"ГАНК-4СEx (Х) для определения: Ди-Железо триоксид (Р)","Х",1026068,"ГАНК-4ФEx (Х) для определения: Ди-Железо триоксид (Р)","Нет"]
["Р : Зола (угольная) (Р) 2 - 80 мг/м3",20692,"2 - 80 мг/м3","Р","Х",null,null,null,"Р11",null,"В-во","Нет","Х","Х","Нет","Х","Х","Нет","Зола (угольная) (Р)",null,null,null,null,null,null,4,null,null,"С","Cex (Х)","С;Cex (Х)","ГАНК-4С для определения: Зола (угольная) (Р)","Нет",102069,1020692,"ГАНК-4СEx (Х) для определения: Зола (угольная) (Р)","Х",1026069,"ГАНК-4ФEx (Х) для определения: Зола (угольная) (Р)","Нет"]
["Р : Изобутан (Р) 150 - 6000 мг/м3",20702,"150 - 6000 мг/м3","Р","Д",null,null,null,"Р07",null,"В-во","Нет","Д","Д","Нет","Д","Д","Д","Изобутан (Р)",null,null,null,null,null,"С4Н10",300,null,null,"М","Cex (Д)","М;Cex (Д)","Нет","ГАНК-4М для определения: Изобутан (Р)",102070,{"$f":"IF(AC66=\"Нет\",\"Нет\",AH66*10+2)","v":1020702},{"$f":"IF(AC66=\"М\",CONCATENATE(\"ГАНК-4СEx (Д) для определения: \",S66),IF(AC66=\"С\",CONCATENATE(\"ГАНК-4СEx (Х) для определения: \",S66),\"Нет\"))","v":"ГАНК-4СEx (Д) для определения: Изобутан (Р)"},"Д",{"$f":"IF(AC66=\"нет\",\"Нет\",1026000+(B66-2)/10-2000)","v":1026070},{"$f":"IF(AC66=\"М\",CONCATENATE(\"ГАНК-4ФEx (Д) для определения: \",S66),IF(AC66=\"С\",CONCATENATE(\"ГАНК-4ФEx (Х) для определения: \",S66),\"Нет\"))","v":"ГАНК-4ФEx (Д) для определения: Изобутан (Р)"},"Нет"]
["Р : Изопропилбензол (1-метилэтил-бензол, кумол, 2-фенилпропан) (Р) 25 - 1000 мг/м3",20712,"25 - 1000 мг/м3","Р","Д",null,null,null,null,null,"В-во","Нет","Д","Д","Нет","Д","Д","Д","Изопропилбензол (1-метилэтил-бензол, кумол, 2-фенилпропан) (Р)",null,null,null,null,null,"C9H12",50,null,"ОТ","М","Cex (Д)","М;Cex (Д)","Нет","ГАНК-4М для определения: Изопропилбензол (1-метилэтил-бензол, кумол, 2-фенилпропан) (Р)",102071,1020712,"ГАНК-4СEx (Д) для определения: Изопропилбензол (1-метилэтил-бензол, кумол, 2-фенилпропан) (Р)","Д",1026071,"ГАНК-4ФEx (Д) для определения: Изопропилбензол (1-метилэтил-бензол, кумол, 2-фенилпропан) (Р)","Нет"]
["Р : Канифоль (Р) 2 - 80 мг/м3",20722,"2 - 80 мг/м3","Р","Д",null,null,null,null,"АР4","В-во","Нет","Д","Д","Нет","Д","Д","Д","Канифоль (Р)",null,null,null,null,null,"Канифоль ",4,null,null,"М","Cex (Д)","М;Cex (Д)","Нет","ГАНК-4М для определения: Канифоль (Р)",{"$f":"102000+(B68-2)/10-2000","v":102072},1020722,"ГАНК-4СEx (Д) для определения: Канифоль (Р)","Д",1026072,"ГАНК-4ФEx (Д) для определения: Канифоль (Р)","Нет"]
["Р : Керосин (Р) 150 - 6000 мг/м3",20732,"150 - 6000 мг/м3","Р","Д",null,null,null,"Р07",null,"В-во","Нет","Д","Д","Нет","Д","Д","Д","Керосин (Р)",null,null,null,null,null,null,300,null,"Да","М","Cex (Д)","М;Cex (Д)","Нет","ГАНК-4М для определения: Керосин (Р)",{"$f":"102000+(B69-2)/10-2000","v":102073},1020732,"ГАНК-4СEx (Д) для определения: Керосин (Р)","Д",1026073,"ГАНК-4ФEx (Д) для определения: Керосин (Р)","Нет"]
["АР : Кислород (АР) 0,2% об. - 30% об.",20743,"0,2% об. - 30% об.","АР","Д",null,null,null,null,"АР1","В-во","Нет","Нет","Д","Нет","Нет","Д","Д","Кислород (АР)",null,null,null,null,null,"О2",0.18,null,null,"М","Cex (Д)","М;Cex (Д)","Нет","ГАНК-4М для определения: Кислород",null,null,"ГАНК-4СEx (Д) для определения: Кислород (АР)","Д",1026074.1,"ГАНК-4ФEx (Д) для определения: Кислород (АР)","Нет"]
["Р : Марганец в сварочном аэрозоле (с содержанием до 20 %) (Р) 0,1 - 4 мг/м3",20752,"0,1 - 4 мг/м3","Р","Х",null,null,null,"Р13",null,"В-во","Нет","Х","Х","Нет","Х","Х","Нет","Марганец в сварочном аэрозоле (с содержанием до 20 %) (Р)",null,null,null,null,null,"Mn (до 20%)",0.2,null,null,"С","Cex (Х)","С;Cex (Х)","ГАНК-4С для определения: Марганец в сварочном аэрозоле (с содержанием до 20 %) (Р)","Нет",{"$f":"102000+(B71-2)/10-2000","v":102075},{"$f":"IF(AC71=\"Нет\",\"Нет\",AH71*10+2)","v":1020752},"ГАНК-4СEx (Х) для определения: Марганец в сварочном аэрозоле (с содержанием до 20 %) (Р)","Х",1026075,"ГАНК-4ФEx (Х) для определения: Марганец в сварочном аэрозоле (с содержанием до 20 %) (Р)","Нет"]
["Р : Масло минеральное (Р) 2,5 - 100 мг/м3",20762,"2,5 - 100 мг/м3","Р","Д",null,null,null,"Р07",null,"В-во","Нет","Д","Д","Нет","Д","Д","Д","Масло минеральное (Р)",null,null,null,null,null,null,5,null,"Да","М",{"$f":"IF(AC72=\"НЕТ\",\"Нет\",IF(AC72=\"С\",\"Cex (Х)\",IF(AC72=\"М\",\"Cex (Д)\",\" \")))","v":"Cex (Д)"},{"$f":"CONCATENATE(IF(AC72=\"Нет\",\"\",CONCATENATE(AC72,\";\")),IF(AD72=\"Нет\",\"\",AD72))","v":"М;Cex (Д)"},"Нет","ГАНК-4М для определения: Масло минеральное (Р)",102076,1020762,"ГАНК-4СEx (Д) для определения: Масло минеральное (Р)","Д",1026076,"ГАНК-4ФEx (Д) для определения: Масло минеральное (Р)","Нет"]
["Р : Медь (Р) 0,25 - 10 мг/м3",20772,"0,25 - 10 мг/м3","Р","Х",null,null,null,"Р10",null,"В-во","Нет","Х","Х","Нет","Х","Х","Нет","Медь (Р)",null,null,null,null,null,"Сu",0.5,null,null,"С","Cex (Х)","С;Cex (Х)","ГАНК-4С для определения: Медь (Р)","Нет",102077,1020772,"ГАНК-4СEx (Х) для определения: Медь (Р)","Х",1026077,"ГАНК-4ФEx (Х) для определения: Медь (Р)","Нет"]
["Р : Метакриловая кислота (Р) 5 - 200 мг/м3",20782,"5 - 200 мг/м3","Р","Д",null,null,null,"Р03",null,"В-во","Нет","Д","Д","Нет","Д","Д","Д","Метакриловая кислота (Р)",null,null,null,null,null,"C4H6O2",10,null,null,"М","Cex (Д)","М;Cex (Д)","Нет","ГАНК-4М для определения: Метакриловая кислота (Р)",102078,1020782,"ГАНК-4СEx (Д) для определения: Метакриловая кислота (Р)","Д",1026078,"ГАНК-4ФEx (Д) для определения: Метакриловая кислота (Р)","Нет"]
["Р : Метан (Р) 3500 - 35000 мг/м3",20792,"3500 - 35000 мг/м3","Р","Д",null,null,null,"Р07",null,"В-во","Нет","Д","Д","Нет","Д","Д","Д","Метан (Р)",null,null,null,null,null,"СН4",7000,null,"Да","М","Cex (Д)","М;Cex (Д)","Нет","ГАНК-4М для определения: Метан (Р)",102079,1020792,"ГАНК-4СEx (Д) для определения: Метан (Р)","Д",1026079,"ГАНК-4ФEx (Д) для определения: Метан (Р)","Нет"]
["Р : Кислота муравьиная (метановая кислота) (Р) 0,5 - 20 мг/м3",20802,"0,5 - 20 мг/м3","Р","Х",null,null,null,null,null,"В-во","Нет","Х","Х","Нет","Х","Х","Д","Кислота муравьиная (метановая кислота) (Р)",null,null,null,null,null,"CH2O2",1,null,"ОТ","М","Cex (Д)","М;Cex (Д)","Нет","ГАНК-4М для определения: Кислота муравьиная (метановая кислота) (Р)",102080,1020802,"ГАНК-4СEx (Д) для определения: Кислота муравьиная (метановая кислота) (Р)","Д",1026080,"ГАНК-4ФEx (Д) для определения: Кислота муравьиная (метановая кислота) (Р)","Да"]
["Р : Метанол (метиловый спирт) (Р) 2,5 - 100 мг/м3",20812,"2,5 - 100 мг/м3","Р","Д",null,null,null,null,null,"В-во","Нет","Д","Д","Нет","Д","Д","Д","Метанол (метиловый спирт) (Р)",null,null,null,null,null,"CH3OH",5,null,"ОТ","М","Cex (Д)","М;Cex (Д)","Нет","ГАНК-4М для определения: Метанол (метиловый спирт) (Р)",102081,1020812,"ГАНК-4СEx (Д) для определения: Метанол (метиловый спирт) (Р)","Д",1026081,"ГАНК-4ФEx (Д) для определения: Метанол (метиловый спирт) (Р)","Нет"]
["Р : Метантиол (метилмеркаптан) (Р) 0,4 - 16 мг/м3",20822,"0,4 - 16 мг/м3","Р","Х",null,null,null,null,null,"В-во","Нет","Х","Х","Нет","Х","Х","Д","Метантиол (метилмеркаптан) (Р)",null,null,null,null,null,"CH3SH",0.8,null,"Да","М","Cex (Д)","М;Cex (Д)","Нет","ГАНК-4М для определения: Метантиол (метилмеркаптан) (Р)",102082,1020822,"ГАНК-4СEx (Д) для определения: Метантиол (метилмеркаптан) (Р)","Д",1026082,"ГАНК-4ФEx (Д) для определения: Метантиол (метилмеркаптан) (Р)","Нет"]
["Р : Меркаптаны (Р) 0,4 - 16 мг/м3",20832,"0,4 - 16 мг/м3","Р","Х",null,null,null,"Р04",null,"В-во","Нет","Х","Х","Нет","Х","Х","Д","Меркаптаны (Р)",null,null,null,null,null,"R-SН",0.8,null,null,"М","Cex (Д)","М;Cex (Д)","Нет","ГАНК-4М для определения: Меркаптаны (Р)",102083,1020832,"ГАНК-4СEx (Д) для определения: Меркаптаны (Р)","Д",1026083,"ГАНК-4ФEx (Д) для определения: Меркаптаны (Р)","Нет"]
["Р : Изопрен (Р) 20 - 800 мг/м3",20842,"20 - 800 мг/м3","Р","Д",null,null,null,"Р06",null,"В-во","Нет","Д","Д","Нет","Д","Д","Д","Изопрен (Р)",null,null,null,null,null,"С5Н8",40,null,null,"М","Cex (Д)","М;Cex (Д)","Нет","ГАНК-4М для определения: Изопрен (Р)",null,null,"ГАНК-4СEx (Д) для определения: Изопрен (Р)","Д",1026084,"ГАНК-4ФEx (Д) для определения: Изопрен (Р)","Нет"]
["Р : Метилакрилат (метилпроп-2-еноат) (Р) 2,5 - 100 мг/м3",20852,"2,5 - 100 мг/м3","Р","Д",null,null,null,"Р05",null,"В-во","Нет","Д","Д","Нет","Д","Д","Д","Метилакрилат (метилпроп-2-\nеноат) (Р)",null,null,null,null,null,"C4H6O2",5,null,null,"М","Cex (Д)","М;Cex (Д)","Нет","ГАНК-4М для определения: Метилакрилат (метилпроп-2-\nеноат) (Р)",102085,1020852,"ГАНК-4СEx (Д) для определения: Метилакрилат (метилпроп-2-\nеноат) (Р)","Д",1026085,"ГАНК-4ФEx (Д) для определения: Метилакрилат (метилпроп-2-\nеноат) (Р)","Нет"]
["Р : Метил-2-метилпроп-2-еноат (Метилметакрилат, метиловый эфир метакриловой кислоты) (Р) 5 - 200 мг/м3",20862,"5 - 200 мг/м3","Р","Д",null,null,null,null,null,"В-во","Нет","Д","Д","Нет","Д","Д","Д","Метил-2-метилпроп-2-еноат (Метилметакрилат, метиловый эфир метакриловой кислоты) (Р)",null,null,null,null,null,"C5H8O2",10,null,"ОТ","М","Cex (Д)","М;Cex (Д)","Нет","ГАНК-4М для определения: Метил-2-метилпроп-2-еноат (Метилметакрилат, метиловый эфир метакриловой кислоты) (Р)",102086,1020862,"ГАНК-4СEx (Д) для определения: Метил-2-метилпроп-2-еноат (Метилметакрилат, метиловый эфир метакриловой кислоты) (Р)","Д",1026086,"ГАНК-4ФEx (Д) для определения: Метил-2-метилпроп-2-еноат (Метилметакрилат, метиловый эфир метакриловой кислоты) (Р)","Нет"]
["Р : Метилацетат (Р) 50 - 2000 мг/м3",20872,"50 - 2000 мг/м3","Р","Д",null,null,null,"Р06",null,"В-во","Нет","Д","Д","Нет","Д","Д","Д","Метилацетат (Р)",null,null,null,null,null,"С3Н6О2",100,null,null,"М","Cex (Д)","М;Cex (Д)","Нет","ГАНК-4М для определения: Метилацетат (Р)",102087,1020872,"ГАНК-4СEx (Д) для определения: Метилацетат (Р)","Д",1026087,"ГАНК-4ФEx (Д) для определения: Метилацетат (Р)","Нет"]
["Р : Метилбензол (толуол) (Р) 25 - 1000 мг/м3",20882,"25 - 1000 мг/м3","Р","Д",null,null,null,null,null,"В-во","Нет","Д","Д","Нет","Д","Д","Д","Метилбензол (толуол) (Р)",null,null,null,null,null,"C7H8",50,null,"Да","М","Cex (Д)","М;Cex (Д)","Нет","ГАНК-4М для определения: Метилбензол (толуол) (Р)",102088,1020882,"ГАНК-4СEx (Д) для определения: Метилбензол (толуол) (Р)","Д",1026088,"ГАНК-4ФEx (Д) для определения: Метилбензол (толуол) (Р)","Нет"]
["Р : Метилхлорид (Р) 2,5 - 100 мг/м3",20892,"2,5 - 100 мг/м3","Р","Д",null,null,null,"Р08",null,"В-во","Нет","Д","Д","Нет","Д","Д","Д","Метилхлорид (Р)",null,null,null,null,null,"СН3Cl",5,null,null,"М","Cex (Д)","М;Cex (Д)","Нет","ГАНК-4М для определения: Метилхлорид (Р)",102089,1020892,"ГАНК-4СEx (Д) для определения: Метилхлорид (Р)","Д",1026089,"ГАНК-4ФEx (Д) для определения: Метилхлорид (Р)","Нет"]
["Р : Метиламин (Р) 0,5 - 20 мг/м3",20902,"0,5 - 20 мг/м3","Р","Х",null,null,null,"Р04",null,"В-во","Нет","Х","Х","Нет","Х","Х","Д","Метиламин (Р)",null,null,null,null,null,"СН3NН2",1,null,null,"М","Cex (Д)","М;Cex (Д)","Нет","ГАНК-4М для определения: Метиламин (Р)",102090,1020902,"ГАНК-4СEx (Д) для определения: Метиламин (Р)","Д",1026090,"ГАНК-4ФEx (Д) для определения: Метиламин (Р)","Нет"]
["Р : Этилтолуол (Р) 25 - 1000 мг/м3",20912,"25 - 1000 мг/м3","Р","Д",null,null,null,"Р06",null,"В-во","Нет","Д","Д","Нет","Д","Д","Д","Этилтолуол (Р)",null,null,null,null,null,"С9Н12",50,null,null,"М","Cex (Д)","М;Cex (Д)","Нет","ГАНК-4М для определения: Этилтолуол (Р)",102091,1020912,"ГАНК-4СEx (Д) для определения: Этилтолуол (Р)","Д",1026091,"ГАНК-4ФEx (Д) для определения: Этилтолуол (Р)","Нет"]
["Р : Щелочь (гидроокись натрия, гидроокись калия) (Р) 0,25 - 10 мг/м3",20922,"0,25 - 10 мг/м3","Р","Х",null,null,null,"Р03",null,"В-во","Нет","Х","Х","Нет","Х","Х","Нет","Щелочь (гидроокись натрия, гидроокись калия) (Р)",null,null,null,null,null,"NaOH, KOH",0.5,null,null,"С","Cex (Х)","С;Cex (Х)","ГАНК-4С для определения: Щелочь (гидроокись натрия, гидроокись калия) (Р)","Нет",102092,1020922,"ГАНК-4СEx (Х) для определения: Щелочь (гидроокись натрия, гидроокись калия) (Р)","Х",1026092,"ГАНК-4ФEx (Х) для определения: Щелочь (гидроокись натрия, гидроокись калия) (Р)","Да"]
["Р : Нафталин (Р) 10 - 400 мг/м3",20932,"10 - 400 мг/м3","Р","Д",null,null,null,null,null,"В-во","Нет","Д","Д","Нет","Д","Д","Д","Нафталин (Р)",null,null,null,null,null,"C10H8",20,null,"ОТ","М","Cex (Д)","М;Cex (Д)","Нет","ГАНК-4М для определения: Нафталин (Р)",102093,1020932,"ГАНК-4СEx (Д) для определения: Нафталин (Р)","Д",1026093,"ГАНК-4ФEx (Д) для определения: Нафталин (Р)","Нет"]
["Р : Нефрас (гептановая фракция) (Р) 50 - 2000 мг/м3",20942,"50 - 2000 мг/м3","Р","Д",null,null,null,"Р07",null,"В-во","Нет","Д","Д","Нет","Д","Д","Д","Нефрас (гептановая фракция) (Р)",null,null,null,null,null,null,100,null,null,"М","Cex (Д)","М;Cex (Д)","Нет","ГАНК-4М для определения: Нефрас (гептановая фракция) (Р)",102094,1020942,"ГАНК-4СEx (Д) для определения: Нефрас (гептановая фракция) (Р)","Д",1026094,"ГАНК-4ФEx (Д) для определения: Нефрас (гептановая фракция) (Р)","Нет"]
["Р : Никель и соединения (Р) 0,025 - 1 мг/м3",20952,"0,025 - 1 мг/м3","Р","Х",null,null,null,null,"АР5","В-во","Нет","Х","Х","Нет","Х","Х","Нет","Никель и соединения (Р)",null,null,null,null,null,"NiО, Ni2О3",0.05,null,null,"С","Cex (Х)","С;Cex (Х)","ГАНК-4С для определения: Никель и соединения (Р)","Нет",102095,1020952,"ГАНК-4СEx (Х) для определения: Никель и соединения (Р)","Х",1026095,"ГАНК-4ФEx (Х) для определения: Никель и соединения (Р)","Нет"]
["Р : Нитробензол (Р) 1,5 - 60 мг/м3",20962,"1,5 - 60 мг/м3","Р","Д",null,null,null,"Р04",null,"В-во","Нет","Д","Д","Нет","Д","Д","Д","Нитробензол (Р)",null,null,null,null,null,"С6Н5NО2",3,null,null,"М","Cex (Д)","М;Cex (Д)","Нет","ГАНК-4М для определения: Нитробензол (Р)",102096,1020962,"ГАНК-4СEx (Д) для определения: Нитробензол (Р)","Д",1026096,"ГАНК-4ФEx (Д) для определения: Нитробензол (Р)","Нет"]
["Р : Нитрометан (Р) 15 - 600 мг/м3",20972,"15 - 600 мг/м3","Р","Д",null,null,null,"Р04",null,"В-во","Нет","Д","Д","Нет","Д","Д","Д","Нитрометан (Р)",null,null,null,null,null,"СН3NО2  ",30,null,null,"М","Cex (Д)","М;Cex (Д)","Нет","ГАНК-4М для определения: Нитрометан (Р)",102097,1020972,"ГАНК-4СEx (Д) для определения: Нитрометан (Р)","Д",1026097,"ГАНК-4ФEx (Д) для определения: Нитрометан (Р)","Нет"]
["Р : Нитроэтан по нитрометану (Р) 15 - 600 мг/м3",20982,"15 - 600 мг/м3","Р","Д",null,null,null,"Р04",null,"В-во","Нет","Д","Д","Нет","Д","Д","Д","Нитроэтан по нитрометану (Р)",null,null,null,null,null,"С2Н5NО2 ",30,null,null,"М","Cex (Д)","М;Cex (Д)","Нет","ГАНК-4М для определения: Нитроэтан по нитрометану (Р)",102098,1020982,"ГАНК-4СEx (Д) для определения: Нитроэтан по нитрометану (Р)","Д",1026098,"ГАНК-4ФEx (Д) для определения: Нитроэтан по нитрометану (Р)","Нет"]
["Р : Нитропропан по нитрометану (Р) 15 - 600 мг/м3",20992,"15 - 600 мг/м3","Р","Д",null,null,null,"Р04",null,"В-во","Нет","Д","Д","Нет","Д","Д","Д","Нитропропан по нитрометану (Р)",null,null,null,null,null,"С3Н7NО2",30,null,null,"М",{"$f":"IF(AC95=\"НЕТ\",\"Нет\",IF(AC95=\"С\",\"Cex (Х)\",IF(AC95=\"М\",\"Cex (Д)\",\" \")))","v":"Cex (Д)"},{"$f":"CONCATENATE(IF(AC95=\"Нет\",\"\",CONCATENATE(AC95,\";\")),IF(AD95=\"Нет\",\"\",AD95))","v":"М;Cex (Д)"},"Нет","ГАНК-4М для определения: Нитропропан по нитрометану (Р)",102099,1020992,"ГАНК-4СEx (Д) для определения: Нитропропан по нитрометану (Р)","Д",1026099,"ГАНК-4ФEx (Д) для определения: Нитропропан по нитрометану (Р)","Нет"]
["Р : Озон (трикислород) (Р) 0,05 - 2 мг/м3",21002,"0,05 - 2 мг/м3","Р","Х",null,null,null,null,null,"В-во","Нет","Х","Х","Нет","Х","Х","Д","Озон (трикислород) (Р)",null,null,null,null,null,"O3",0.1,null,"ОТ","М","Cex (Д)","М;Cex (Д)","Нет","ГАНК-4М для определения: Озон (трикислород) (Р)",102100,1021002,"ГАНК-4СEx (Д) для определения: Озон (трикислород) (Р)","Д",1026100,"ГАНК-4ФEx (Д) для определения: Озон (трикислород) (Р)","Нет"]
["Р : Диизопропиловый эфир (Р) 50 - 2000 мг/м3",21012,"50 - 2000 мг/м3","Р","Д",null,null,null,"Р05",null,"В-во","Нет","Д","Д","Нет","Д","Д","Д","Диизопропиловый эфир (Р)",null,null,null,null,null,"C5H12O2",100,null,null,"М","Cex (Д)","М;Cex (Д)","Нет","ГАНК-4М для определения: Диизопропиловый эфир (Р)",102101,1021012,"ГАНК-4СEx (Д) для определения: Диизопропиловый эфир (Р)","Д",1026101,"ГАНК-4ФEx (Д) для определения: Диизопропиловый эфир (Р)","Нет"]
["Р : Диметиловый эфир (Р) 150 - 4000 мг/м3",21022,"150 - 4000 мг/м3","Р","Д",null,null,null,"Р05",null,"В-во","Нет","Д","Д","Нет","Д","Д","Д","Диметиловый эфир (Р)",null,null,null,null,null,"C2H6O",300,null,null,"М","Cex (Д)","М;Cex (Д)","Нет","ГАНК-4М для определения: Диметиловый эфир (Р)",102102,1021022,"ГАНК-4СEx (Д) для определения: Диметиловый эфир (Р)","Д",1026102,"ГАНК-4ФEx (Д) для определения: Диметиловый эфир (Р)","Нет"]
["Р : Диэтиленгликоль (Р) 5 - 200 мг/м3",21032,"5 - 200 мг/м3","Р","Д",null,null,null,"Р09",null,"В-во","Нет","Д","Д","Нет","Д","Д","Д","Диэтиленгликоль (Р)",null,null,null,null,null,"(С2Н4ОН)2О",10,null,null,"М","Cex (Д)","М;Cex (Д)","Нет","ГАНК-4М для определения: Диэтиленгликоль (Р)",102103,1021032,"ГАНК-4СEx (Д) для определения: Диэтиленгликоль (Р)","Д",1026103,"ГАНК-4ФEx (Д) для определения: Диэтиленгликоль (Р)","Нет"]
["Р : Оксид алюминия (Р) 1 - 40 мг/м3",21042,"1 - 40 мг/м3","Р","Х",null,null,null,"Р15",null,"В-во","Нет","Х","Х","Нет","Х","Х","Нет","Оксид алюминия (Р)",null,null,null,null,null,"Al2O3",2,null,null,"С","Cex (Х)","С;Cex (Х)","ГАНК-4С для определения: Оксид алюминия (Р)","Нет",102104,1021042,"ГАНК-4СEx (Х) для определения: Оксид алюминия (Р)","Х",1026104,"ГАНК-4ФEx (Х) для определения: Оксид алюминия (Р)","Нет"]
["Р : Оксиды железа (в сварочном аэрозоле) (Р) 3 - 120 мг/м3",21052,"3 - 120 мг/м3","Р","Х",null,null,null,null,"АР5","В-во","Нет","Х","Х","Нет","Х","Х","Нет","Оксиды железа (в сварочном аэрозоле) (Р)",null,null,null,null,null,"FexOy",6,null,null,"С","Cex (Х)","С;Cex (Х)","ГАНК-4С для определения: Оксиды железа (в сварочном аэрозоле) (Р)","Нет",102105,1021052,"ГАНК-4СEx (Х) для определения: Оксиды железа (в сварочном аэрозоле) (Р)","Х",1026105,"ГАНК-4ФEx (Х) для определения: Оксиды железа (в сварочном аэрозоле) (Р)","Нет"]
["Р : Оксиды марганца (Р) 0,15 - 6 мг/м3",21062,"0,15 - 6 мг/м3","Р","Х",null,null,null,"Р15",null,"В-во","Нет","Х","Х","Нет","Х","Х","Нет","Оксиды марганца (Р)",null,null,null,null,null,"MnxОy",0.3,null,null,"С","Cex (Х)","С;Cex (Х)","ГАНК-4С для определения: Оксиды марганца (Р)","Нет",102106,1021062,"ГАНК-4СEx (Х) для определения: Оксиды марганца (Р)","Х",1026106,"ГАНК-4ФEx (Х) для определения: Оксиды марганца (Р)","Нет"]
["Р : Оксид меди (Р) 0,25 - 10 мг/м3",21072,"0,25 - 10 мг/м3","Р","Х",null,null,null,"Р15",null,"В-во","Нет","Х","Х","Нет","Х","Х","Нет","Оксид меди (Р)",null,null,null,null,null,"CuO",0.5,null,null,"С","Cex (Х)","С;Cex (Х)","ГАНК-4С для определения: Оксид меди (Р)","Нет",{"$f":"102000+(B103-2)/10-2000","v":102107},{"$f":"IF(AC103=\"Нет\",\"Нет\",AH103*10+2)","v":1021072},"ГАНК-4СEx (Х) для определения: Оксид меди (Р)","Х",1026107,"ГАНК-4ФEx (Х) для определения: Оксид меди (Р)","Нет"]
["Р : Оксиды никеля (Р) 0,025 - 1 мг/м3",21082,"0,025 - 1 мг/м3","Р","Х",null,null,null,"Р15",null,"В-во","Нет","Х","Х","Нет","Х","Х","Нет","Оксиды никеля (Р)",null,null,null,null,null,"NixOy",0.05,null,null,"С","Cex (Х)","С;Cex (Х)","ГАНК-4С для определения: Оксиды никеля (Р)","Нет",102108,1021082,"ГАНК-4СEx (Х) для определения: Оксиды никеля (Р)","Х",1026108,"ГАНК-4ФEx (Х) для определения: Оксиды никеля (Р)","Нет"]
["Р : Оксиды хрома (в сварочном аэрозоле) (Р) 0,5 - 20 мг/м3",21092,"0,5 - 20 мг/м3","Р","Х",null,null,null,null,"АР5","В-во","Нет","Х","Х","Нет","Х","Х","Нет","Оксиды хрома (в сварочном аэрозоле) (Р)",null,null,null,null,null,"CrxOy",1,null,null,"С","Cex (Х)","С;Cex (Х)","ГАНК-4С для определения: Оксиды хрома (в сварочном аэрозоле) (Р)","Нет",102109,1021092,"ГАНК-4СEx (Х) для определения: Оксиды хрома (в сварочном аэрозоле) (Р)","Х",1026109,"ГАНК-4ФEx (Х) для определения: Оксиды хрома (в сварочном аэрозоле) (Р)","Нет"]
["Р : Оксид цинка (Р) 0,25 - 10 мг/м3",21102,"0,25 - 10 мг/м3","Р","Х",null,null,null,"Р15",null,"В-во","Нет","Х","Х","Нет","Х","Х","Нет","Оксид цинка (Р)",null,null,null,null,null,"ZnO",0.5,null,null,"С","Cex (Х)","С;Cex (Х)","ГАНК-4С для определения: Оксид цинка (Р)","Нет",102110,1021102,"ГАНК-4СEx (Х) для определения: Оксид цинка (Р)","Х",1026110,"ГАНК-4ФEx (Х) для определения: Оксид цинка (Р)","Нет"]
["Р : Кислота ортофосфорная (Р) 0,5 - 20 мг/м3",21112,"0,5 - 20 мг/м3","Р","Х",null,null,null,"Р03",null,"В-во","Нет","Х","Х","Нет","Х","Х","Нет","Кислота ортофосфорная (Р)",null,null,null,null,null,"H3PO4",1,null,null,"С","Cex (Х)","С;Cex (Х)","ГАНК-4С для определения: Кислота ортофосфорная (Р)","Нет",102111,1021112,"ГАНК-4СEx (Х) для определения: Кислота ортофосфорная (Р)","Х",1026111,"ГАНК-4ФEx (Х) для определения: Кислота ортофосфорная (Р)","Да"]
["Р : Пентан (Р) 150 - 6000 мг/м3",21122,"150 - 6000 мг/м3","Р","Д",null,null,null,"Р07",null,"В-во","Нет","Д","Д","Нет","Д","Д","Д","Пентан (Р)",null,null,null,null,null,"С5Н12",300,null,null,"М","Cex (Д)","М;Cex (Д)","Нет","ГАНК-4М для определения: Пентан (Р)",102112,1021122,"ГАНК-4СEx (Д) для определения: Пентан (Р)","Д",1026112,"ГАНК-4ФEx (Д) для определения: Пентан (Р)","Нет"]
["Р : Глутаровый альдегид (пентандиаль) (Р) 2,5 - 100 мг/м3",21132,"2,5 - 100 мг/м3","Р","Д",null,null,null,"Р05",null,"В-во","Нет","Д","Д","Нет","Д","Д","Д","Глутаровый альдегид (пентандиаль) (Р)",null,null,null,null,null,"C5H8O2",5,null,null,"М","Cex (Д)","М;Cex (Д)","Нет","ГАНК-4М для определения: Глутаровый альдегид (пентандиаль) (Р)",102113,1021132,"ГАНК-4СEx (Д) для определения: Глутаровый альдегид (пентандиаль) (Р)","Д",1026113,"ГАНК-4ФEx (Д) для определения: Глутаровый альдегид (пентандиаль) (Р)","Нет"]
["Р : Пентан-1-ол (спирт амиловый) (Р) 5 - 200 мг/м3",21142,"5 - 200 мг/м3","Р","Д",null,null,null,null,null,"В-во","Нет","Д","Д","Нет","Д","Д","Д","Пентан-1-ол (спирт амиловый) (Р)",null,null,null,null,null,"С5H11OH",10,null,"ОТ","М","Cex (Д)","М;Cex (Д)","Нет","ГАНК-4М для определения: Пентан-1-ол (спирт амиловый) (Р)",102114,1021142,"ГАНК-4СEx (Д) для определения: Пентан-1-ол (спирт амиловый) (Р)","Д",1026114,"ГАНК-4ФEx (Д) для определения: Пентан-1-ол (спирт амиловый) (Р)","Нет"]
["Р : Диэтилендиамин (пиперазин) (Р) 0,5 - 20 мг/м3",21152,"0,5 - 20 мг/м3","Р","Д",null,null,null,"Р04",null,"В-во","Нет","Д","Д","Нет","Д","Д","Д","Диэтилендиамин (пиперазин) (Р)",null,null,null,null,null,"С4Н10N2",1,null,null,"М","Cex (Д)","М;Cex (Д)","Нет","ГАНК-4М для определения: Диэтилендиамин (пиперазин) (Р)",102115,1021152,"ГАНК-4СEx (Д) для определения: Диэтилендиамин (пиперазин) (Р)","Д",1026115,"ГАНК-4ФEx (Д) для определения: Диэтилендиамин (пиперазин) (Р)","Нет"]
["Р : Пиридин (Р) 2,5 - 100 мг/м3",21162,"2,5 - 100 мг/м3","Р","Д",null,null,null,"Р04",null,"В-во","Нет","Д","Д","Нет","Д","Д","Д","Пиридин (Р)",null,null,null,null,null,"С5Н5N",5,null,null,"М","Cex (Д)","М;Cex (Д)","Нет","ГАНК-4М для определения: Пиридин (Р)",102116,1021162,"ГАНК-4СEx (Д) для определения: Пиридин (Р)","Д",1026116,"ГАНК-4ФEx (Д) для определения: Пиридин (Р)","Нет"]
["Р : Пропан (Р) 50 - 2000 мг/м3",21172,"50 - 2000 мг/м3","Р","Д",null,null,null,"Р07",null,"В-во","Нет","Д","Д","Нет","Д","Д","Д","Пропан (Р)",null,null,null,null,null,"С3Н8",100,null,null,"М","Cex (Д)","М;Cex (Д)","Нет","ГАНК-4М для определения: Пропан (Р)",102117,1021172,"ГАНК-4СEx (Д) для определения: Пропан (Р)","Д",1026117,"ГАНК-4ФEx (Д) для определения: Пропан (Р)","Нет"]
["Р : Пропан-1-ол (Р) 5 - 200 мг/м3",21182,"5 - 200 мг/м3","Р","Д",null,null,null,"Р09",null,"В-во","Нет","Д","Д","Нет","Д","Д","Д","Пропан-1-ол (Р)",null,null,null,null,null,"С3Н7ОН",10,null,null,"М","Cex (Д)","М;Cex (Д)","Нет","ГАНК-4М для определения: Пропан-1-ол (Р)",102118,1021182,"ГАНК-4СEx (Д) для определения: Пропан-1-ол (Р)","Д",1026118,"ГАНК-4ФEx (Д) для определения: Пропан-1-ол (Р)","Нет"]
["Р : Пропан-2-ол (изопропанол, изопропиловый спирт) (Р) 5 - 200 мг/м3",21192,"5 - 200 мг/м3","Р","Д",null,null,null,null,null,"В-во","Нет","Д","Д","Нет","Д","Д","Д","Пропан-2-ол (изопропанол, изопропиловый спирт) (Р)",null,null,null,null,null,"C3H8O",10,null,"ОТ","М","Cex (Д)","М;Cex (Д)","Нет","ГАНК-4М для определения: Пропан-2-ол (изопропанол, изопропиловый спирт) (Р)",102119,1021192,"ГАНК-4СEx (Д) для определения: Пропан-2-ол (изопропанол, изопропиловый спирт) (Р)","Д",1026119,"ГАНК-4ФEx (Д) для определения: Пропан-2-ол (изопропанол, изопропиловый спирт) (Р)","Нет"]
["Р : Ацетон (пропан-2он) (Р) 100 - 4000 мг/м3",21202,"100 - 4000 мг/м3","Р","Д",null,null,null,null,null,"В-во","Нет","Д","Д","Нет","Д","Д","Д","Ацетон (пропан-2он) (Р)",null,null,null,null,null,"C3H6O",200,null,"Да","М","Cex (Д)","М;Cex (Д)","Нет","ГАНК-4М для определения: Ацетон (пропан-2он) (Р)",null,null,"ГАНК-4СEx (Д) для определения: Ацетон (пропан-2он) (Р)","Д",1026120,"ГАНК-4ФEx (Д) для определения: Ацетон (пропан-2он) (Р)","Нет"]
["Р : Акрилонитрил (проп-2-енонитрил) (Р) 0,25 - 10 мг/м3",21212,"0,25 - 10 мг/м3","Р","Д",null,null,null,null,null,"В-во","Нет","Д","Д","Нет","Д","Д","Д","Акрилонитрил (проп-2-енонитрил) (Р)",null,null,null,null,null,"C3H3N",0.5,null,"ОТ","М","Cex (Д)","М;Cex (Д)","Нет","ГАНК-4М для определения: Акрилонитрил (проп-2-енонитрил) (Р)",102121,1021212,"ГАНК-4СEx (Д) для определения: Акрилонитрил (проп-2-енонитрил) (Р)","Д",1026121,"ГАНК-4ФEx (Д) для определения: Акрилонитрил (проп-2-енонитрил) (Р)","Нет"]
["Р : Акролеин (проп-2ен-1-аль) (Р) 0,1 - 4 мг/м3",21222,"0,1 - 4 мг/м3","Р","Д",null,null,null,null,null,"В-во","Нет","Д","Д","Нет","Д","Д","Д","Акролеин (проп-2ен-1-аль) (Р)",null,null,null,null,null,"C3H4O",0.2,null,"Да","М","Cex (Д)","М;Cex (Д)","Нет","ГАНК-4М для определения: Акролеин (проп-2ен-1-аль) (Р)",102122,1021222,"ГАНК-4СEx (Д) для определения: Акролеин (проп-2ен-1-аль) (Р)","Д",1026122,"ГАНК-4ФEx (Д) для определения: Акролеин (проп-2ен-1-аль) (Р)","Нет"]
["Р : Кислота акриловая (Р) 2,5 - 100 мг/м3",21232,"2,5 - 100 мг/м3","Р","Д",null,null,null,"Р03",null,"В-во","Нет","Д","Д","Нет","Д","Д","Д","Кислота акриловая (Р)",null,null,null,null,null,"C3H4O2",5,null,null,"М","Cex (Д)","М;Cex (Д)","Нет","ГАНК-4М для определения: Кислота акриловая (Р)",102123,1021232,"ГАНК-4СEx (Д) для определения: Кислота акриловая (Р)","Д",1026123,"ГАНК-4ФEx (Д) для определения: Кислота акриловая (Р)","Нет"]
["Р : Пропен (пропилен) (Р) 25 - 1000 мг/м3",21242,"25 - 1000 мг/м3","Р","Д",null,null,null,null,null,"В-во","Нет","Д","Д","Нет","Д","Д","Д","Пропен (пропилен) (Р)",null,null,null,null,null,"С3H6",50,null,"ОТ","М",{"$f":"IF(AC120=\"НЕТ\",\"Нет\",IF(AC120=\"С\",\"Cex (Х)\",IF(AC120=\"М\",\"Cex (Д)\",\" \")))","v":"Cex (Д)"},{"$f":"CONCATENATE(IF(AC120=\"Нет\",\"\",CONCATENATE(AC120,\";\")),IF(AD120=\"Нет\",\"\",AD120))","v":"М;Cex (Д)"},"Нет","ГАНК-4М для определения: Пропен (пропилен) (Р)",102124,1021242,"ГАНК-4СEx (Д) для определения: Пропен (пропилен) (Р)","Д",1026124,"ГАНК-4ФEx (Д) для определения: Пропен (пропилен) (Р)","Нет"]
["Р : Пыль (бумажная) (Р) 1 - 40 мг/м3",21252,"1 - 40 мг/м3","Р","Х",null,null,null,"Р11",null,"В-во","Нет","Х","Х","Нет","Х","Х","Нет","Пыль (бумажная) (Р)",null,null,null,null,null,null,2,null,null,"С","Cex (Х)","С;Cex (Х)","ГАНК-4С для определения: Пыль (бумажная) (Р)","Нет",102125,1021252,"ГАНК-4СEx (Х) для определения: Пыль (бумажная) (Р)","Х",1026125,"ГАНК-4ФEx (Х) для определения: Пыль (бумажная) (Р)","Нет"]
["Р : Пыль (взвешенные вещества) (Р) 1 - 40 мг/м3",21272,"1 - 40 мг/м3","Р","Х",null,null,null,"Р11",null,"В-во","Нет","Х","Х","Нет","Х","Х","Нет","Пыль (взвешенные вещества) (Р)",null,null,null,null,null,null,2,null,null,"С","Cex (Х)","С;Cex (Х)","ГАНК-4С для определения: Пыль (взвешенные вещества) (Р)","Нет",102127,1021272,"ГАНК-4СEx (Х) для определения: Пыль (взвешенные вещества) (Р)","Х",1026127,"ГАНК-4ФEx (Х) для определения: Пыль (взвешенные вещества) (Р)","Нет"]
["Р : Пыль (10 %>SiO2>2 %) (Р) 2 - 80 мг/м3",21282,"2 - 80 мг/м3","Р","Х",null,null,null,"Р11",null,"В-во","Нет","Х","Х","Нет","Х","Х","Нет","Пыль (10 %>SiO2>2 %) (Р)",null,null,null,null,null,null,4,null,null,"С","Cex (Х)","С;Cex (Х)","ГАНК-4С для определения: Пыль (10 %>SiO2>2 %) (Р)","Нет",102128,1021282,"ГАНК-4СEx (Х) для определения: Пыль (10 %>SiO2>2 %) (Р)","Х",1026128,"ГАНК-4ФEx (Х) для определения: Пыль (10 %>SiO2>2 %) (Р)","Нет"]
["Р : Пыль (20 %>SiO2>10 %) (Р) 1 - 40 мг/м3",21292,"1 - 40 мг/м3","Р","Х",null,null,null,"Р11",null,"В-во","Нет","Х","Х","Нет","Х","Х","Нет","Пыль (20 %>SiO2>10 %) (Р)",null,null,null,null,null,null,2,null,null,"С","Cex (Х)","С;Cex (Х)","ГАНК-4С для определения: Пыль (20 %>SiO2>10 %) (Р)","Нет",102129,1021292,"ГАНК-4СEx (Х) для определения: Пыль (20 %>SiO2>10 %) (Р)","Х",1026129,"ГАНК-4ФEx (Х) для определения: Пыль (20 %>SiO2>10 %) (Р)","Нет"]
["Р : Пыль (70 %>SiO2>20 %) (Р) 1 - 40 мг/м3",21302,"1 - 40 мг/м3","Р","Х",null,null,null,"Р11",null,"В-во","Нет","Х","Х","Нет","Х","Х","Нет","Пыль (70 %>SiO2>20 %) (Р)",null,null,null,null,null,null,2,null,"Да","С","Cex (Х)","С;Cex (Х)","ГАНК-4С для определения: Пыль (70 %>SiO2>20 %) (Р)","Нет",102130,1021302,"ГАНК-4СEx (Х) для определения: Пыль (70 %>SiO2>20 %) (Р)","Х",1026130,"ГАНК-4ФEx (Х) для определения: Пыль (70 %>SiO2>20 %) (Р)","Нет"]
["Р : Пыль (SiO2<2%) (Р) 3 - 120 мг/м3",21312,"3 - 120 мг/м3","Р","Х",null,null,null,"Р11",null,"В-во","Нет","Х","Х","Нет","Х","Х","Нет","Пыль (SiO2<2%) (Р)",null,null,null,null,null,null,6,null,null,"С","Cex (Х)","С;Cex (Х)","ГАНК-4С для определения: Пыль (SiO2<2%) (Р)","Нет",102131,1021312,"ГАНК-4СEx (Х) для определения: Пыль (SiO2<2%) (Р)","Х",1026131,"ГАНК-4ФEx (Х) для определения: Пыль (SiO2<2%) (Р)","Нет"]
["Р : Пыль (SiO2>70%) (Р) 1 - 40 мг/м3",21322,"1 - 40 мг/м3","Р","Х",null,null,null,"Р11",null,"В-во","Нет","Х","Х","Нет","Х","Х","Нет","Пыль (SiO2>70%) (Р)",null,null,null,null,null,null,2,null,null,"С","Cex (Х)","С;Cex (Х)","ГАНК-4С для определения: Пыль (SiO2>70%) (Р)","Нет",102132,1021322,"ГАНК-4СEx (Х) для определения: Пыль (SiO2>70%) (Р)","Х",1026132,"ГАНК-4ФEx (Х) для определения: Пыль (SiO2>70%) (Р)","Нет"]
["Р : Пыль (доменного шлака) (Р) 3 - 120 мг/м3",21332,"3 - 120 мг/м3","Р","Х",null,null,null,"Р11",null,"В-во","Нет","Х","Х","Нет","Х","Х","Нет","Пыль (доменного шлака) (Р)",null,null,null,null,null,null,6,null,null,"С","Cex (Х)","С;Cex (Х)","ГАНК-4С для определения: Пыль (доменного шлака) (Р)","Нет",102133,1021332,"ГАНК-4СEx (Х) для определения: Пыль (доменного шлака) (Р)","Х",1026133,"ГАНК-4ФEx (Х) для определения: Пыль (доменного шлака) (Р)","Нет"]
["Р : Пыль (древесная) (Р) 3 - 120 мг/м3",21342,"3 - 120 мг/м3","Р","Х",null,null,null,"Р11",null,"В-во","Нет","Х","Х","Нет","Х","Х","Нет","Пыль (древесная) (Р)",null,null,null,null,null,null,6,null,null,"С","Cex (Х)","С;Cex (Х)","ГАНК-4С для определения: Пыль (древесная) (Р)","Нет",102134,1021342,{"$f":"IF(AC129=\"М\",CONCATENATE(\"ГАНК-4СEx (Д) для определения: \",S129),IF(AC129=\"С\",CONCATENATE(\"ГАНК-4СEx (Х) для определения: \",S129),\"Нет\"))","v":"ГАНК-4СEx (Х) для определения: Пыль (древесная) (Р)"},"Х",{"$f":"IF(AC129=\"нет\",\"Нет\",1026000+(B129-2)/10-2000)","v":1026134},{"$f":"IF(AC129=\"М\",CONCATENATE(\"ГАНК-4ФEx (Д) для определения: \",S129),IF(AC129=\"С\",CONCATENATE(\"ГАНК-4ФEx (Х) для определения: \",S129),\"Нет\"))","v":"ГАНК-4ФEx (Х) для определения: Пыль (древесная) (Р)"},"Нет"]
["Р : Пыль (зерновая) (Р) 2 - 80 мг/м3",21352,"2 - 80 мг/м3","Р","Х",null,null,null,"Р11",null,"В-во","Нет","Х","Х","Нет","Х","Х","Нет","Пыль (зерновая) (Р)",null,null,null,null,null,null,4,null,"Да","С","Cex (Х)","С;Cex (Х)","ГАНК-4С для определения: Пыль (зерновая) (Р)","Нет",102135,1021352,"ГАНК-4СEx (Х) для определения: Пыль (зерновая) (Р)","Х",1026135,"ГАНК-4ФEx (Х) для определения: Пыль (зерновая) (Р)","Нет"]
["Р : Пыль (мучная) (Р) 3 - 120 мг/м3",21362,"3 - 120 мг/м3","Р","Х",null,null,null,"Р11",null,"В-во","Нет","Х","Х","Нет","Х","Х","Нет","Пыль (мучная) (Р)",null,null,null,null,null,null,6,null,null,"С","Cex (Х)","С;Cex (Х)","ГАНК-4С для определения: Пыль (мучная) (Р)","Нет",102136,1021362,"ГАНК-4СEx (Х) для определения: Пыль (мучная) (Р)","Х",1026136,"ГАНК-4ФEx (Х) для определения: Пыль (мучная) (Р)","Нет"]
["Р : Пыль (хлопковая) (Р) 0,25 - 10 мг/м3",21372,"0,25 - 10 мг/м3","Р","Х",null,null,null,"Р11",null,"В-во","Нет","Х","Х","Нет","Х","Х","Нет","Пыль (хлопковая) (Р)",null,null,null,null,null,null,0.5,null,null,"С","Cex (Х)","С;Cex (Х)","ГАНК-4С для определения: Пыль (хлопковая) (Р)","Нет",102137,1021372,"ГАНК-4СEx (Х) для определения: Пыль (хлопковая) (Р)","Х",1026137,"ГАНК-4ФEx (Х) для определения: Пыль (хлопковая) (Р)","Нет"]
["Р : Пыль (цементная) (Р) 4 - 160 мг/м3",21382,"4 - 160 мг/м3","Р","Х",null,null,null,"Р11",null,"В-во","Нет","Х","Х","Нет","Х","Х","Нет","Пыль (цементная) (Р)",null,null,null,null,null,null,8,null,null,"С","Cex (Х)","С;Cex (Х)","ГАНК-4С для определения: Пыль (цементная) (Р)","Нет",102138,1021382,"ГАНК-4СEx (Х) для определения: Пыль (цементная) (Р)","Х",1026138,"ГАНК-4ФEx (Х) для определения: Пыль (цементная) (Р)","Нет"]
["Р : Свинец и его неорганические соединения (Р) 0,025 - 1 мг/м3",21392,"0,025 - 1 мг/м3","Р","Х",null,null,null,"Р10",null,"В-во","Нет","Х","Х","Нет","Х","Х","Нет","Свинец и его неорганические соединения (Р)",null,null,null,null,null,"Pb, PbО, PbО2, Pb3О4",0.05,null,null,"С","Cex (Х)","С;Cex (Х)","ГАНК-4С для определения: Свинец и его неорганические соединения (Р)","Нет",102139,1021392,"ГАНК-4СEx (Х) для определения: Свинец и его неорганические соединения (Р)","Х",1026139,"ГАНК-4ФEx (Х) для определения: Свинец и его неорганические соединения (Р)","Нет"]
["Р : Элегаз (сера гексафторид) (Р) 10 - 12000 мг/м3",21402,"10 - 12000 мг/м3","Р","Д - РБ",null,null,null,null,"АР3","В-во","Нет","Нет","Нет","Нет","Нет","Нет","Нет","Элегаз (сера гексафторид) (Р)",null,null,null,null,null,"SF6",500,null,null,"М","Cex (Д)","М;Cex (Д)","Нет","ГАНК-4М для определения: Элегаз (сера гексафторид) (Р)",{"$f":"102000+(B135-2)/10-2000","v":102140},{"$f":"IF(AC135=\"Нет\",\"Нет\",AH135*10+2)","v":1021402},"ГАНК-4СEx (Д) для определения: Элегаз (сера гексафторид) (Р)","Д",1026140,"ГАНК-4ФEx (Д) для определения: Элегаз (сера гексафторид) (Р)","Нет"]
["Р : Ангидрид сернистый (сера диоксид, оксид серы (IV)) (Р) 5 - 200 мг/м3",21412,"5 - 200 мг/м3","Р","Х",null,null,null,null,null,"В-во","Нет","Х","Х","Нет","Х","Х","Д","Ангидрид сернистый (сера диоксид, оксид серы (IV)) (Р)",null,null,null,null,null,"SO2",10,null,"Да","М","Cex (Д)","М;Cex (Д)","Нет","ГАНК-4М для определения: Ангидрид сернистый (сера диоксид, оксид серы (IV)) (Р)",102141,1021412,"ГАНК-4СEx (Д) для определения: Ангидрид сернистый (сера диоксид, оксид серы (IV)) (Р)","Д",1026141,"ГАНК-4ФEx (Д) для определения: Ангидрид сернистый (сера диоксид, оксид серы (IV)) (Р)","Нет"]
["Р : Кислота серная (Р) 0,5 - 20 мг/м3",21422,"0,5 - 20 мг/м3","Р","Х",null,null,null,"Р03",null,"В-во","Нет","Х","Х","Нет","Х","Х","Нет","Кислота серная (Р)",null,null,null,null,null,"H2SO4",1,null,"Да","С","Cex (Х)","С;Cex (Х)","ГАНК-4С для определения: Кислота серная (Р)","Нет",102142,1021422,"ГАНК-4СEx (Х) для определения: Кислота серная (Р)","Х",1026142,"ГАНК-4ФEx (Х) для определения: Кислота серная (Р)","Да"]
["Р : Сероуглерод (углерод дисульфид, сульфид углерода (IV)) (Р) 1,5 - 60 мг/м3",21432,"1,5 - 60 мг/м3","Р","Д",null,null,null,null,null,"В-во","Нет","Д","Д","Нет","Д","Д","Д","Сероуглерод (углерод дисульфид, сульфид углерода (IV)) (Р)",null,null,null,null,null,"CS2",3,null,"ОТ","М","Cex (Д)","М;Cex (Д)","Нет","ГАНК-4М для определения: Сероуглерод (углерод дисульфид, сульфид углерода (IV)) (Р)",102143,1021432,"ГАНК-4СEx (Д) для определения: Сероуглерод (углерод дисульфид, сульфид углерода (IV)) (Р)","Д",1026143,"ГАНК-4ФEx (Д) для определения: Сероуглерод (углерод дисульфид, сульфид углерода (IV)) (Р)","Нет"]
["Р : Скипидар (Р) 150 - 6000 мг/м3",21442,"150 - 6000 мг/м3","Р","Д",null,null,null,"Р07",null,"В-во","Нет","Д","Д","Нет","Д","Д","Д","Скипидар (Р)",null,null,null,null,null,null,300,null,null,"М","Cex (Д)","М;Cex (Д)","Нет","ГАНК-4М для определения: Скипидар (Р)",102144,1021442,"ГАНК-4СEx (Д) для определения: Скипидар (Р)","Д",1026144,"ГАНК-4ФEx (Д) для определения: Скипидар (Р)","Нет"]
["Р : Сольвент-нафта (Р) 50 - 2000 мг/м3",21452,"50 - 2000 мг/м3","Р","Д",null,null,null,"Р07",null,"В-во","Нет","Д","Д","Нет","Д","Д","Д","Сольвент-нафта (Р)",null,null,null,null,null,null,100,null,null,"М","Cex (Д)","М;Cex (Д)","Нет","ГАНК-4М для определения: Сольвент-нафта (Р)",102145,1021452,"ГАНК-4СEx (Д) для определения: Сольвент-нафта (Р)","Д",1026145,"ГАНК-4ФEx (Д) для определения: Сольвент-нафта (Р)","Нет"]
["Р : Спирт аллиловый (Р) 1 - 40 мг/м3",21462,"1 - 40 мг/м3","Р","Д",null,null,null,"Р09",null,"В-во","Нет","Д","Д","Нет","Д","Д","Д","Спирт аллиловый (Р)",null,null,null,null,null,"С3Н5ОН",2,null,null,"М","Cex (Д)","М;Cex (Д)","Нет","ГАНК-4М для определения: Спирт аллиловый (Р)",102146,1021462,"ГАНК-4СEx (Д) для определения: Спирт аллиловый (Р)","Д",1026146,"ГАНК-4ФEx (Д) для определения: Спирт аллиловый (Р)","Нет"]
["Р : Тетралин (Р) 12 - 400 мг/м3",21482,"12 - 400 мг/м3","Р","Д",null,null,null,"Р06",null,"В-во","Нет","Д","Д","Нет","Д","Д","Д","Тетралин (Р)",null,null,null,null,null,"С10Н12",20,null,null,"М","Cex (Д)","М;Cex (Д)","Нет","ГАНК-4М для определения: Тетралин (Р)",102148,1021482,"ГАНК-4СEx (Д) для определения: Тетралин (Р)","Д",1026148,"ГАНК-4ФEx (Д) для определения: Тетралин (Р)","Нет"]
["Р : Тетрахлорэтилен (Р) 5 - 200 мг/м3",21492,"5 - 200 мг/м3","Р","Х - ДОЖ",null,null,null,"Р08",null,"В-во","Нет","Х - ДОЖ","Х - ДОЖ","Нет","Нет","Нет","Нет","Тетрахлорэтилен (Р)",".0403",null,null,null,null,"С2Cl4",10,null,null,"М",{"$f":"IF(AC143=\"НЕТ\",\"Нет\",IF(AC143=\"С\",\"Cex (Х)\",IF(AC143=\"М\",\"Cex (Д)\",\" \")))","v":"Cex (Д)"},{"$f":"CONCATENATE(IF(AC143=\"Нет\",\"\",CONCATENATE(AC143,\";\")),IF(AD143=\"Нет\",\"\",AD143))","v":"М;Cex (Д)"},"Нет","ГАНК-4М для определения: Тетрахлорэтилен (Р)",102149,1021492,"ГАНК-4СEx (Д) для определения: Тетрахлорэтилен (Р)","Д",1026149,"ГАНК-4ФEx (Д) для определения: Тетрахлорэтилен (Р)","Нет"]
["Р : Тетрахлорметан (углерод 4-х хлористый, перхлорметан) (Р) 5 - 200 мг/м3",21502,"5 - 200 мг/м3","Р","Х - ДОЖ",null,null,null,null,null,"В-во","Нет","Х - ДОЖ","Х - ДОЖ","Нет","Нет","Нет","Нет","Тетрахлорметан (углерод 4-х хлористый, перхлорметан) (Р)",".0403",null,null,null,null,"CCl4",10,null,"ОТ","М","Cex (Д)","М;Cex (Д)","Нет","ГАНК-4М для определения: Тетрахлорметан (углерод 4-х хлористый, перхлорметан) (Р)",102150,1021502,"ГАНК-4СEx (Д) для определения: Тетрахлорметан (углерод 4-х хлористый, перхлорметан) (Р)","Д",1026150,"ГАНК-4ФEx (Д) для определения: Тетрахлорметан (углерод 4-х хлористый, перхлорметан) (Р)","Нет"]
["Р : Тиокарбамид (Тиомочевина) (Р) 0,15 - 6 мг/м3",21512,"0,15 - 6 мг/м3","Р","Х",null,null,null,"Р04",null,"В-во","Нет","Х","Х","Нет","Х","Х","Д","Тиокарбамид (Тиомочевина) (Р)",null,null,null,null,null,"NН2СSNН2",0.3,null,null,"М","Cex (Д)","М;Cex (Д)","Нет","ГАНК-4М для определения: Тиокарбамид (Тиомочевина) (Р)",102151,1021512,"ГАНК-4СEx (Д) для определения: Тиокарбамид (Тиомочевина) (Р)","Д",1026151,"ГАНК-4ФEx (Д) для определения: Тиокарбамид (Тиомочевина) (Р)","Нет"]
["Р : Бромоформ (Р) 2,5 - 100 мг/м3",21522,"2,5 - 100 мг/м3","Р","Д",null,null,null,"Р08",null,"В-во","Нет","Д","Д","Нет","Д","Д","Д","Бромоформ (Р)",null,null,null,null,null,"СНВr3",5,null,null,"М","Cex (Д)","М;Cex (Д)","Нет","ГАНК-4М для определения: Бромоформ (Р)",102152,1021522,"ГАНК-4СEx (Д) для определения: Бромоформ (Р)","Д",1026152,"ГАНК-4ФEx (Д) для определения: Бромоформ (Р)","Нет"]
["Р : Трихлорметан (Р) 2,5 - 100 мг/м3",21532,"2,5 - 100 мг/м3","Р","Д",null,null,null,"Р08",null,"В-во","Нет","Д","Д","Нет","Д","Д","Д","Трихлорметан (Р)",null,null,null,null,null,"СНCl3",5,null,null,"М","Cex (Д)","М;Cex (Д)","Нет","ГАНК-4М для определения: Трихлорметан (Р)",102153,1021532,"ГАНК-4СEx (Д) для определения: Трихлорметан (Р)","Д",1026153,"ГАНК-4ФEx (Д) для определения: Трихлорметан (Р)","Нет"]
["Р : Трихлорэтилен (Р) 5 - 200 мг/м3",21542,"5 - 200 мг/м3","Р","Х - ДОЖ",null,null,null,"Р08",null,"В-во","Нет","Х - ДОЖ","Х - ДОЖ","Нет","Нет","Нет","Нет","Трихлорэтилен (Р)",".0403",null,null,null,null,"С2НCl3",10,null,null,"М","Cex (Д)","М;Cex (Д)","Нет","ГАНК-4М для определения: Трихлорэтилен (Р)",102154,1021542,"ГАНК-4СEx (Д) для определения: Трихлорэтилен (Р)","Д",1026154,"ГАНК-4ФEx (Д) для определения: Трихлорэтилен (Р)","Нет"]
["Р : Триэтаноламин (Р) 2,5 - 100 мг/м3",21552,"2,5 - 100 мг/м3","Р","Х",null,null,null,"Р03",null,"В-во","Нет","Х","Х","Нет","Х","Х","Д","Триэтаноламин (Р)",null,null,null,null,null,"C6H15NO3",5,null,null,"М","Cex (Д)","М;Cex (Д)","Нет","ГАНК-4М для определения: Триэтаноламин (Р)",102155,1021552,"ГАНК-4СEx (Д) для определения: Триэтаноламин (Р)","Д",1026155,"ГАНК-4ФEx (Д) для определения: Триэтаноламин (Р)","Нет"]
["Р : Триэтиламин (Р) 5 - 200 мг/м3",21562,"5 - 200 мг/м3","Р","Х",null,null,null,"Р03",null,"В-во","Нет","Х","Х","Нет","Х","Х","Д","Триэтиламин (Р)",null,null,null,null,null,"C6H15N",10,null,null,"М","Cex (Д)","М;Cex (Д)","Нет","ГАНК-4М для определения: Триэтиламин (Р)",102156,1021562,"ГАНК-4СEx (Д) для определения: Триэтиламин (Р)","Д",1026156,"ГАНК-4ФEx (Д) для определения: Триэтиламин (Р)","Нет"]
["Р : Уайт-спирит (Р) 150 - 6000 мг/м3",21572,"150 - 6000 мг/м3","Р","Д",null,null,null,"Р07",null,"В-во","Нет","Д","Д","Нет","Д","Д","Д","Уайт-спирит (Р)",null,null,null,null,null,null,300,null,null,"М","Cex (Д)","М;Cex (Д)","Нет","ГАНК-4М для определения: Уайт-спирит (Р)",102157,1021572,"ГАНК-4СEx (Д) для определения: Уайт-спирит (Р)","Д",1026157,"ГАНК-4ФEx (Д) для определения: Уайт-спирит (Р)","Нет"]
["Р : Углеводороды предельные С1-С5 в пересчете на метан (Р) 3500 - 35000 мг/м3",21582,"3500 - 35000 мг/м3","Р","Д",null,null,null,"Р07",null,"В-во","Нет","Д","Д","Нет","Д","Д","Д","Углеводороды предельные С1-С5 в пересчете на метан (Р)",null,null,null,null,null,"С1-С5",7000,null,null,"М","Cex (Д)","М;Cex (Д)","Нет","ГАНК-4М для определения: Углеводороды предельные С1-С5 в пересчете на метан (Р)",102158,1021582,"ГАНК-4СEx (Д) для определения: Углеводороды предельные С1-С5 в пересчете на метан (Р)","Д",1026158,"ГАНК-4ФEx (Д) для определения: Углеводороды предельные С1-С5 в пересчете на метан (Р)","Нет"]
["Р : Предельные углеводороды С1-С10 в пересчете на гексан (Р) 150 - 6000 мг/м3",21592,"150 - 6000 мг/м3","Р","Д",null,null,null,"Р07",null,"В-во","Нет","Д","Д","Нет","Д","Д","Д","Предельные углеводороды С1-С10 в пересчете на гексан (Р)",null,null,null,null,null,"С1-С10",300,null,null,"М","Cex (Д)","М;Cex (Д)","Нет","ГАНК-4М для определения: Предельные углеводороды С1-С10 в пересчете на гексан (Р)",102159,1021592,"ГАНК-4СEx (Д) для определения: Предельные углеводороды С1-С10 в пересчете на гексан (Р)","Д",1026159,"ГАНК-4ФEx (Д) для определения: Предельные углеводороды С1-С10 в пересчете на гексан (Р)","Нет"]
["Р : Предельные углеводороды С6-С10 в пересчете на гексан (Р) 150 - 6000 мг/м3",21602,"150 - 6000 мг/м3","Р","Д",null,null,null,"Р07",null,"В-во","Нет","Д","Д","Нет","Д","Д","Д","Предельные углеводороды С6-С10 в пересчете на гексан (Р)",null,null,null,null,null,"С6-С10",300,null,null,"М","Cex (Д)","М;Cex (Д)","Нет","ГАНК-4М для определения: Предельные углеводороды С6-С10 в пересчете на гексан (Р)",102160,1021602,"ГАНК-4СEx (Д) для определения: Предельные углеводороды С6-С10 в пересчете на гексан (Р)","Д",1026160,"ГАНК-4ФEx (Д) для определения: Предельные углеводороды С6-С10 в пересчете на гексан (Р)","Нет"]
["Р : Углеводороды предельные С12-С19 (Р) 50 - 2000 мг/м3",21612,"50 - 2000 мг/м3","Р","Д",null,null,null,"Р07",null,"В-во","Нет","Д","Д","Нет","Д","Д","Д","Углеводороды предельные С12-С19 (Р)",null,null,null,null,null,"С12-С16",100,null,"Да","М","Cex (Д)","М;Cex (Д)","Нет","ГАНК-4М для определения: Углеводороды предельные С12-С19 (Р)",102161,1021612,"ГАНК-4СEx (Д) для определения: Углеводороды предельные С12-С19 (Р)","Д",1026161,"ГАНК-4ФEx (Д) для определения: Углеводороды предельные С12-С19 (Р)","Нет"]
["Р : Углерода диоксид (диоксид углерода) (Р) 4500 - 180000 мг/м3",21622,"4500 - 180000 мг/м3","Р","Х",null,null,null,null,null,"В-во","Нет","Х","Х","Нет","Х","Х","Д","Углерода диоксид (диоксид углерода) (Р)",null,null,null,null,null,"CO2",9000,null,"Да","М","Cex (Д)","М;Cex (Д)","Нет","ГАНК-4М для определения: Углерода диоксид (диоксид углерода) (Р)",102162,1021622,"ГАНК-4СEx (Д) для определения: Углерода диоксид (диоксид углерода) (Р)","Д",1026162,"ГАНК-4ФEx (Д) для определения: Углерода диоксид (диоксид углерода) (Р)","Нет"]
["Р : Углерод оксид (угарный газ, монооксид углерода) (Р) 10 - 400 мг/м3",21632,"10 - 400 мг/м3","Р","Д",null,null,null,null,null,"В-во","Нет","Д","Д","Нет","Д","Д","Д","Углерод оксид (угарный газ, монооксид углерода) (Р)",null,null,null,null,null,"СО",20,null,"Да","М","Cex (Д)","М;Cex (Д)","Нет","ГАНК-4М для определения: Углерод оксид (угарный газ, монооксид углерода) (Р)",102163,1021632,"ГАНК-4СEx (Д) для определения: Углерод оксид (угарный газ, монооксид углерода) (Р)","Д",1026163,"ГАНК-4ФEx (Д) для определения: Углерод оксид (угарный газ, монооксид углерода) (Р)","Нет"]
["Р : Углерод (сажа) (Р) 2 - 80 мг/м3",21642,"2 - 80 мг/м3","Р","Х",null,null,null,null,null,"В-во","Нет","Х","Х","Нет","Х","Х","Нет","Углерод (сажа) (Р)",null,null,null,null,null,null,4,null,"ОТ","С","Cex (Х)","С;Cex (Х)","ГАНК-4С для определения: Углерод (сажа) (Р)","Нет",102164,1021642,"ГАНК-4СEx (Х) для определения: Углерод (сажа) (Р)","Х",1026164,"ГАНК-4ФEx (Х) для определения: Углерод (сажа) (Р)","Нет"]
["Р : Спирт бензиловый (Р) 2,5 - 100 мг/м3",21652,"2,5 - 100 мг/м3","Р","Д",null,null,null,"Р09",null,"В-во","Нет","Д","Д","Нет","Д","Д","Д","Спирт бензиловый (Р)",null,null,null,null,null,"С6Н5СН2ОН",5,null,null,"М","Cex (Д)","М;Cex (Д)","Нет","ГАНК-4М для определения: Спирт бензиловый (Р)",102165,1021652,"ГАНК-4СEx (Д) для определения: Спирт бензиловый (Р)","Д",1026165,"ГАНК-4ФEx (Д) для определения: Спирт бензиловый (Р)","Нет"]
["Р : Ацетофенон (Р) 2,5 - 100 мг/м3",21662,"2,5 - 100 мг/м3","Р","Д",null,null,null,"Р06",null,"В-во","Нет","Д","Д","Нет","Д","Д","Д","Ацетофенон (Р)",null,null,null,null,null,"С8Н8O",5,null,null,"М","Cex (Д)","М;Cex (Д)","Нет","ГАНК-4М для определения: Ацетофенон (Р)",102166,1021662,"ГАНК-4СEx (Д) для определения: Ацетофенон (Р)","Д",1026166,"ГАНК-4ФEx (Д) для определения: Ацетофенон (Р)","Нет"]
["Р : Формальдегид (метаналь) (Р) 0,25 - 10 мг/м3",21672,"0,25 - 10 мг/м3","Р","Д",null,null,null,null,null,"В-во","Нет","Д","Д","Нет","Д","Д","Д","Формальдегид (метаналь) (Р)",null,null,null,null,null,"CH2O",0.5,null,"Да","М","Cex (Д)","М;Cex (Д)","Нет","ГАНК-4М для определения: Формальдегид (метаналь) (Р)",102167,1021672,"ГАНК-4СEx (Д) для определения: Формальдегид (метаналь) (Р)","Д",1026167,"ГАНК-4ФEx (Д) для определения: Формальдегид (метаналь) (Р)","Нет"]
["Р : Формамид (Р) 1,5 - 60 мг/м3",21682,"1,5 - 60 мг/м3","Р","Д",null,null,null,"Р04",null,"В-во","Нет","Д","Д","Нет","Д","Д","Д","Формамид (Р)",null,null,null,null,null,"НСОNН2",3,null,null,"М","Cex (Д)","М;Cex (Д)","Нет","ГАНК-4М для определения: Формамид (Р)",102168,1021682,"ГАНК-4СEx (Д) для определения: Формамид (Р)","Д",1026168,"ГАНК-4ФEx (Д) для определения: Формамид (Р)","Нет"]
["Р : Трифторхлорметан (Фреон 13) (Р) 1500 - 9000 мг/м3",21692,"1500 - 9000 мг/м3","Р","Д - РБ",null,null,null,null,"АР2","В-во","Нет","Нет","Нет","Нет","Нет","Нет","Нет","Трифторхлорметан (Фреон 13) (Р)",null,null,null,null,null,"CClF3",3000,null,null,"М","Cex (Д)","М;Cex (Д)","Нет","ГАНК-4М для определения: Трифторхлорметан (Фреон 13) (Р)",102169,1021692,"ГАНК-4СEx (Д) для определения: Трифторхлорметан (Фреон 13) (Р)","Д",1026169,"ГАНК-4ФEx (Д) для определения: Трифторхлорметан (Фреон 13) (Р)","Нет"]
["Р : Тетрафторметан (Фреон 14) (Р) 1500 - 8000 мг/м3",21702,"1500 - 8000 мг/м3","Р","Д - РБ",null,null,null,null,"АР2","В-во","Нет","Нет","Нет","Нет","Нет","Нет","Нет","Тетрафторметан (Фреон 14) (Р)",null,null,null,null,null,"CF4",3000,null,null,"М",{"$f":"IF(AC164=\"НЕТ\",\"Нет\",IF(AC164=\"С\",\"Cex (Х)\",IF(AC164=\"М\",\"Cex (Д)\",\" \")))","v":"Cex (Д)"},{"$f":"CONCATENATE(IF(AC164=\"Нет\",\"\",CONCATENATE(AC164,\";\")),IF(AD164=\"Нет\",\"\",AD164))","v":"М;Cex (Д)"},"Нет","ГАНК-4М для определения: Тетрафторметан (Фреон 14) (Р)",102170,1021702,"ГАНК-4СEx (Д) для определения: Тетрафторметан (Фреон 14) (Р)","Д",1026170,"ГАНК-4ФEx (Д) для определения: Тетрафторметан (Фреон 14) (Р)","Нет"]
["Р : Дихлорфторметан (Фреон 21) (Р) 1500 - 9000 мг/м3",21712,"1500 - 9000 мг/м3","Р","Д - РБ",null,null,null,null,"АР2","В-во","Нет","Нет","Нет","Нет","Нет","Нет","Нет","Дихлорфторметан (Фреон 21) (Р)",null,null,null,null,null,"СНFCl2",3000,null,null,"М","Cex (Д)","М;Cex (Д)","Нет","ГАНК-4М для определения: Дихлорфторметан (Фреон 21) (Р)",102171,1021712,"ГАНК-4СEx (Д) для определения: Дихлорфторметан (Фреон 21) (Р)","Д",1026171,"ГАНК-4ФEx (Д) для определения: Дихлорфторметан (Фреон 21) (Р)","Нет"]
["Р : Дифторхлорметан (фреон 22) (Р) 1500 - 8000 мг/м3",21722,"1500 - 8000 мг/м3","Р","Д - РБ",null,null,null,null,"АР2","В-во","Нет","Нет","Нет","Нет","Нет","Нет","Нет","Дифторхлорметан (фреон 22) (Р)",null,null,null,null,null,"CHClF₂\n",3000,null,null,"М","Cex (Д)","М;Cex (Д)","Нет","ГАНК-4М для определения: Дифторхлорметан (фреон 22) (Р)",102172,1021722,"ГАНК-4СEx (Д) для определения: Дифторхлорметан (фреон 22) (Р)","Д",1026172,"ГАНК-4ФEx (Д) для определения: Дифторхлорметан (фреон 22) (Р)","Нет"]
["Р : Трифторметан (Фреон 23) (Р) 1500 - 6000 мг/м3",21732,"1500 - 6000 мг/м3","Р","Д - РБ",null,null,null,null,"АР2","В-во","Нет","Нет","Нет","Нет","Нет","Нет","Нет","Трифторметан (Фреон 23) (Р)",null,null,null,null,null,"СНF3",3000,null,null,"М","Cex (Д)","М;Cex (Д)","Нет","ГАНК-4М для определения: Трифторметан (Фреон 23) (Р)",{"$f":"102000+(B167-2)/10-2000","v":102173},{"$f":"IF(AC167=\"Нет\",\"Нет\",AH167*10+2)","v":1021732},"ГАНК-4СEx (Д) для определения: Трифторметан (Фреон 23) (Р)","Д",1026173,"ГАНК-4ФEx (Д) для определения: Трифторметан (Фреон 23) (Р)","Нет"]
["Р : 1,1,дихлор- 1-фторэтан (Фреон 141в) (Р) 500 - 10000 мг/м3",21742,"500 - 10000 мг/м3","Р","Д - РБ",null,null,null,null,"АР2","В-во","Нет","Нет","Нет","Нет","Нет","Нет","Нет","1,1,дихлор- 1-фторэтан (Фреон 141в) (Р)",null,null,null,null,null,"С2FCl2Н3 ",1000,null,null,"М","Cex (Д)","М;Cex (Д)","Нет","ГАНК-4М для определения: 1,1,дихлор- 1-фторэтан (Фреон 141в) (Р)",102174,1021742,"ГАНК-4СEx (Д) для определения: 1,1,дихлор- 1-фторэтан (Фреон 141в) (Р)","Д",1026174,"ГАНК-4ФEx (Д) для определения: 1,1,дихлор- 1-фторэтан (Фреон 141в) (Р)","Нет"]
["Р : 1,2,2-трифтор-1,1,2-трихлорэтан (фреон 113), (Р) 2500 - 16000 мг/м3",21752,"2500 - 16000 мг/м3","Р","Д - РБ",null,null,null,null,"АР2","В-во","Нет","Нет","Нет","Нет","Нет","Нет","Нет","1,2,2-трифтор-1,1,2-трихлорэтан (фреон 113), (Р)",null,null,null,null,null,"C2Cl3F3",5000,null,null,"М","Cex (Д)","М;Cex (Д)","Нет","ГАНК-4М для определения: 1,2,2-трифтор-1,1,2-трихлорэтан (фреон 113), (Р)",102175,1021752,"ГАНК-4СEx (Д) для определения: 1,2,2-трифтор-1,1,2-трихлорэтан (фреон 113), (Р)","Д",1026175,"ГАНК-4ФEx (Д) для определения: 1,2,2-трифтор-1,1,2-трихлорэтан (фреон 113), (Р)","Нет"]
["Р : 1,1,1-трифтор-2.2-дихлорэтан (Фреон 123) (по фреону 113) (Р) 50 - 13000 мг/м3",21762,"50 - 13000 мг/м3","Р","Д - РБ",null,null,null,null,"АР2","В-во","Нет","Нет","Нет","Нет","Нет","Нет","Нет","1,1,1-трифтор-2.2-дихлорэтан (Фреон 123) (по фреону 113) \n (Р)",null,null,null,null,null,"С2F3НCl2",100,null,null,"М","Cex (Д)","М;Cex (Д)","Нет","ГАНК-4М для определения: 1,1,1-трифтор-2.2-дихлорэтан (Фреон 123) (по фреону 113) \n (Р)",102176,1021762,"ГАНК-4СEx (Д) для определения: 1,1,1-трифтор-2.2-дихлорэтан (Фреон 123) (по фреону 113) \n (Р)","Д",1026176,"ГАНК-4ФEx (Д) для определения: 1,1,1-трифтор-2.2-дихлорэтан (Фреон 123) (по фреону 113) \n (Р)","Нет"]
["Р : 1,1,1,2- тетрафторэтан (Фреон 134 а) (Р) 1500 - 9000 мг/м3",21772,"1500 - 9000 мг/м3","Р","Д - РБ",null,null,null,null,"АР2","В-во","Нет","Нет","Нет","Нет","Нет","Нет","Нет","1,1,1,2- тетрафторэтан (Фреон 134 а) (Р)",null,null,null,null,null,"С2Н2F4",3000,null,null,"М","Cex (Д)","М;Cex (Д)","Нет","ГАНК-4М для определения: 1,1,1,2- тетрафторэтан (Фреон 134 а) (Р)",102177,1021772,"ГАНК-4СEx (Д) для определения: 1,1,1,2- тетрафторэтан (Фреон 134 а) (Р)","Д",1026177,"ГАНК-4ФEx (Д) для определения: 1,1,1,2- тетрафторэтан (Фреон 134 а) (Р)","Нет"]
["Р : Пентафторэтан (Фреон 125) (Р) 1500 - 10000 мг/м3",21782,"1500 - 10000 мг/м3","Р","Д - РБ",null,null,null,null,"АР2","В-во","Нет","Нет","Нет","Нет","Нет","Нет","Нет","Пентафторэтан (Фреон 125) (Р)",null,null,null,null,null,"С2F5Н",3000,null,null,"М","Cex (Д)","М;Cex (Д)","Нет","ГАНК-4М для определения: Пентафторэтан (Фреон 125) (Р)",102178,1021782,"ГАНК-4СEx (Д) для определения: Пентафторэтан (Фреон 125) (Р)","Д",1026178,"ГАНК-4ФEx (Д) для определения: Пентафторэтан (Фреон 125) (Р)","Нет"]
["Р : 1,1,1-Трифторэтан (Фреон 143) (Р) 1500 - 7000 мг/м3",21792,"1500 - 7000 мг/м3","Р","Д - РБ",null,null,null,null,"АР2","В-во","Нет","Нет","Нет","Нет","Нет","Нет","Нет","1,1,1-Трифторэтан (Фреон 143) (Р)",null,null,null,null,null,"С2Н3F3",3000,null,null,"М","Cex (Д)","М;Cex (Д)","Нет","ГАНК-4М для определения: 1,1,1-Трифторэтан (Фреон 143) (Р)",102179,1021792,"ГАНК-4СEx (Д) для определения: 1,1,1-Трифторэтан (Фреон 143) (Р)","Д",1026179,"ГАНК-4ФEx (Д) для определения: 1,1,1-Трифторэтан (Фреон 143) (Р)","Нет"]
["Р : 1,2 Дибром- 1,1,2,2-тетрафторэтан (Фреон 114 в2) (Р) 500 - 22000 мг/м3",21802,"500 - 22000 мг/м3","Р","Д - РБ",null,null,null,null,"АР2","В-во","Нет","Нет","Нет","Нет","Нет","Нет","Нет","1,2 Дибром- 1,1,2,2-тетрафторэтан (Фреон 114 в2) (Р)",null,null,null,null,null,"С2Br2F4",1000,null,null,"М","Cex (Д)","М;Cex (Д)","Нет","ГАНК-4М для определения: 1,2 Дибром- 1,1,2,2-тетрафторэтан (Фреон 114 в2) (Р)",102180,1021802,"ГАНК-4СEx (Д) для определения: 1,2 Дибром- 1,1,2,2-тетрафторэтан (Фреон 114 в2) (Р)","Д",1026180,"ГАНК-4ФEx (Д) для определения: 1,2 Дибром- 1,1,2,2-тетрафторэтан (Фреон 114 в2) (Р)","Нет"]
["Р : Фреон 404а (Смесь фреонов 125, 134а, 143а) (Р) 2000 - 8000 мг/м3",21812,"2000 - 8000 мг/м3","Р","Д - РБ",null,null,null,null,"АР2","В-во","Нет","Нет","Нет","Нет","Нет","Нет","Нет","Фреон 404а (Смесь фреонов 125, 134а, 143а) (Р)",null,null,null,null,null,null,4000,null,null,"М","Cex (Д)","М;Cex (Д)","Нет","ГАНК-4М для определения: Фреон 404а (Смесь фреонов 125, 134а, 143а) (Р)",102181,1021812,"ГАНК-4СEx (Д) для определения: Фреон 404а (Смесь фреонов 125, 134а, 143а) (Р)","Д",1026181,"ГАНК-4ФEx (Д) для определения: Фреон 404а (Смесь фреонов 125, 134а, 143а) (Р)","Нет"]
["Р : Фреон 407а (Смесь фреонов R32, R125, R134a) (Р) 1750 - 8000 мг/м3",21822,"1750 - 8000 мг/м3","Р","Д - РБ",null,null,null,null,"АР2","В-во","Нет","Нет","Нет","Нет","Нет","Нет","Нет","Фреон 407а (Смесь фреонов R32, R125, R134a) (Р)",null,null,null,null,null,null,3500,null,null,"М","Cex (Д)","М;Cex (Д)","Нет","ГАНК-4М для определения: Фреон 407а (Смесь фреонов R32, R125, R134a) (Р)",102182,1021822,"ГАНК-4СEx (Д) для определения: Фреон 407а (Смесь фреонов R32, R125, R134a) (Р)","Д",1026182,"ГАНК-4ФEx (Д) для определения: Фреон 407а (Смесь фреонов R32, R125, R134a) (Р)","Нет"]
["Р : Фреон 507а (Смесь фреонов 125, 143) (Р) 2000 - 9000 мг/м3",21832,"2000 - 9000 мг/м3","Р","Д - РБ",null,null,null,null,"АР2","В-во","Нет","Нет","Нет","Нет","Нет","Нет","Нет","Фреон 507а (Смесь фреонов 125, 143) (Р)",null,null,null,null,null,null,4000,null,null,"М","Cex (Д)","М;Cex (Д)","Нет","ГАНК-4М для определения: Фреон 507а (Смесь фреонов 125, 143) (Р)",102183,1021832,"ГАНК-4СEx (Д) для определения: Фреон 507а (Смесь фреонов 125, 143) (Р)","Д",1026183,"ГАНК-4ФEx (Д) для определения: Фреон 507а (Смесь фреонов 125, 143) (Р)","Нет"]
["Р : Фреон 410а (Смесь фреонов 125,32) (Р) 1500 - 6000 мг/м3",21842,"1500 - 6000 мг/м3","Р","Д - РБ",null,null,null,null,"АР2","В-во","Нет","Нет","Нет","Нет","Нет","Нет","Нет","Фреон 410а (Смесь фреонов 125,32) (Р)",null,null,null,null,null,null,3000,null,null,"М","Cex (Д)","М;Cex (Д)","Нет","ГАНК-4М для определения: Фреон 410а (Смесь фреонов 125,32) (Р)",102184,1021842,"ГАНК-4СEx (Д) для определения: Фреон 410а (Смесь фреонов 125,32) (Р)","Д",1026184,"ГАНК-4ФEx (Д) для определения: Фреон 410а (Смесь фреонов 125,32) (Р)","Нет"]
["Р : Фурфурол (Р) 5 - 200 мг/м3",21862,"5 - 200 мг/м3","Р","Д",null,null,null,"Р05",null,"В-во","Нет","Д","Д","Нет","Д","Д","Д","Фурфурол (Р)",null,null,null,null,null,"C5H4O2",10,null,null,"М","Cex (Д)","М;Cex (Д)","Нет","ГАНК-4М для определения: Фурфурол (Р)",102186,1021862,"ГАНК-4СEx (Д) для определения: Фурфурол (Р)","Д",1026186,"ГАНК-4ФEx (Д) для определения: Фурфурол (Р)","Нет"]
["Р : Хлор (Р) 0,5 - 20 мг/м3",21872,"0,5 - 20 мг/м3","Р","Х",null,null,null,null,null,"В-во","Нет","Х","Х","Нет","Х","Х","Д","Хлор (Р)",null,null,null,null,null,"Cl2",1,null,"ОТ","М","Cex (Д)","М;Cex (Д)","Нет","ГАНК-4М для определения: Хлор (Р)",102187,1021872,"ГАНК-4СEx (Д) для определения: Хлор (Р)","Д",1026187,"ГАНК-4ФEx (Д) для определения: Хлор (Р)","Нет"]
["Р : Хлористый аллил (Р) 0,15 - 6 мг/м3",21882,"0,15 - 6 мг/м3","Р","Д",null,null,null,"Р08",null,"В-во","Нет","Д","Д","Нет","Д","Д","Д","Хлористый аллил (Р)",null,null,null,null,null,"С3Н5Cl",0.3,null,null,"М","Cex (Д)","М;Cex (Д)","Нет","ГАНК-4М для определения: Хлористый аллил (Р)",102188,1021882,"ГАНК-4СEx (Д) для определения: Хлористый аллил (Р)","Д",1026188,"ГАНК-4ФEx (Д) для определения: Хлористый аллил (Р)","Нет"]
["Р : Хлорбензол (Р) 25 - 1000 мг/м3",21892,"25 - 1000 мг/м3","Р","Д",null,null,null,null,null,"В-во","Нет","Д","Д","Нет","Д","Д","Д","Хлорбензол (Р)",null,null,null,null,null,"C6H5Cl",50,null,"ОТ","М","Cex (Д)","М;Cex (Д)","Нет","ГАНК-4М для определения: Хлорбензол (Р)",102189,1021892,"ГАНК-4СEx (Д) для определения: Хлорбензол (Р)","Д",1026189,"ГАНК-4ФEx (Д) для определения: Хлорбензол (Р)","Нет"]
["Р : Хлоропрен (Р) 1 - 40 мг/м3",21902,"1 - 40 мг/м3","Р","Д",null,null,null,"Р08",null,"В-во","Нет","Д","Д","Нет","Д","Д","Д","Хлоропрен (Р)",null,null,null,null,null,"С4Н5Cl",2,null,null,"М","Cex (Д)","М;Cex (Д)","Нет","ГАНК-4М для определения: Хлоропрен (Р)",102190,1021902,"ГАНК-4СEx (Д) для определения: Хлоропрен (Р)","Д",1026190,"ГАНК-4ФEx (Д) для определения: Хлоропрен (Р)","Нет"]
["Р : Хлортолуол (Р) 5 - 200 мг/м3",21912,"5 - 200 мг/м3","Р","Д",null,null,null,"Р08",null,"В-во","Нет","Д","Д","Нет","Д","Д","Д","Хлортолуол (Р)",null,null,null,null,null,"С7Н7Cl",10,null,null,"М","Cex (Д)","М;Cex (Д)","Нет","ГАНК-4М для определения: Хлортолуол (Р)",102191,1021912,"ГАНК-4СEx (Д) для определения: Хлортолуол (Р)","Д",1026191,"ГАНК-4ФEx (Д) для определения: Хлортолуол (Р)","Нет"]
["Р : (Хлорметил)оксиран (Эпихлоргидрин) (Р) 0,5 - 20 мг/м3",21922,"0,5 - 20 мг/м3","Р","Д",null,null,null,null,"АР4","В-во","Нет","Д","Д","Нет","Д","Д","Д","(Хлорметил)оксиран (Эпихлоргидрин) (Р)",null,null,null,null,null,"С3Н5ClО",1,null,null,"М","Cex (Д)","М;Cex (Д)","Нет","ГАНК-4М для определения: (Хлорметил)оксиран (Эпихлоргидрин) (Р)",102192,1021922,"ГАНК-4СEx (Д) для определения: (Хлорметил)оксиран (Эпихлоргидрин) (Р)","Д",1026192,"ГАНК-4ФEx (Д) для определения: (Хлорметил)оксиран (Эпихлоргидрин) (Р)","Нет"]
["Р : Этилхлорид (Р) 25 - 1000 мг/м3",21932,"25 - 1000 мг/м3","Р","Д",null,null,null,"Р08",null,"В-во","Нет","Д","Д","Нет","Д","Д","Д","Этилхлорид (Р)",null,null,null,null,null,"С2Н5Cl",50,null,null,"М","Cex (Д)","М;Cex (Д)","Нет","ГАНК-4М для определения: Этилхлорид (Р)",{"$f":"102000+(B186-2)/10-2000","v":102193},1021932,"ГАНК-4СEx (Д) для определения: Этилхлорид (Р)","Д",1026193,"ГАНК-4ФEx (Д) для определения: Этилхлорид (Р)","Нет"]
["Р : 2-Хлорэтанол-1 (Р) 0,25 - 10 мг/м3",21942,"0,25 - 10 мг/м3","Р","Д",null,null,null,"Р08",null,"В-во","Нет","Д","Д","Нет","Д","Д","Д","2-Хлорэтанол-1 (Р)",null,null,null,null,null,"С2Н4(ОН)Cl",0.5,null,null,"М",{"$f":"IF(AC187=\"НЕТ\",\"Нет\",IF(AC187=\"С\",\"Cex (Х)\",IF(AC187=\"М\",\"Cex (Д)\",\" \")))","v":"Cex (Д)"},{"$f":"CONCATENATE(IF(AC187=\"Нет\",\"\",CONCATENATE(AC187,\";\")),IF(AD187=\"Нет\",\"\",AD187))","v":"М;Cex (Д)"},"Нет","ГАНК-4М для определения: 2-Хлорэтанол-1 (Р)",102194,1021942,"ГАНК-4СEx (Д) для определения: 2-Хлорэтанол-1 (Р)","Д",1026194,"ГАНК-4ФEx (Д) для определения: 2-Хлорэтанол-1 (Р)","Нет"]
["Р : Винилхлорид (Р) 0,5 - 20 мг/м3",21952,"0,5 - 20 мг/м3","Р","Х - ДОЖ",null,null,null,"Р08",null,"В-во","Нет","Х - ДОЖ","Х - ДОЖ","Нет","Нет","Нет","Нет","Винилхлорид (Р)",".0403",null,null,null,null,"С2Н3Cl",1,null,null,"М","Cex (Д)","М;Cex (Д)","Нет","ГАНК-4М для определения: Винилхлорид (Р)",102195,1021952,"ГАНК-4СEx (Д) для определения: Винилхлорид (Р)","Д",1026195,"ГАНК-4ФEx (Д) для определения: Винилхлорид (Р)","Нет"]
["Р : Ди-Хром триоксид (по хрому (III)) (Р) 0,5 - 20 мг/м3",21962,"0,5 - 20 мг/м3","Р","Х",null,null,null,null,"АР5","В-во","Нет","Х","Х","Нет","Х","Х","Нет","Ди-Хром триоксид (по хрому (III)) (Р)",null,null,null,null,null,"Cr2О3",1,null,null,"С","Cex (Х)","С;Cex (Х)","ГАНК-4С для определения: Ди-Хром триоксид (по хрому (III)) (Р)","Нет",102196,1021962,"ГАНК-4СEx (Х) для определения: Ди-Хром триоксид (по хрому (III)) (Р)","Х",1026196,"ГАНК-4ФEx (Х) для определения: Ди-Хром триоксид (по хрому (III)) (Р)","Нет"]
["Р : Циклогексанон (Р) 5 - 200 мг/м3",21982,"5 - 200 мг/м3","Р","Д",null,null,null,null,null,"В-во","Нет","Д","Д","Нет","Д","Д","Д","Циклогексанон (Р)",null,null,null,null,null,"C6H10O",10,null,"ОТ","М","Cex (Д)","М;Cex (Д)","Нет","ГАНК-4М для определения: Циклогексанон (Р)",102198,1021982,"ГАНК-4СEx (Д) для определения: Циклогексанон (Р)","Д",1026198,"ГАНК-4ФEx (Д) для определения: Циклогексанон (Р)","Нет"]
["Р : Эпоксиэтан (этилена оксид, оксиран) (Р) 0,5 - 20 мг/м3",22012,"0,5 - 20 мг/м3","Р","Д",null,null,null,null,null,"В-во","Нет","Д","Д","Нет","Д","Д","Д","Эпоксиэтан (этилена оксид, оксиран) (Р)",null,null,null,null,null,"C2H4O",1,null,"ОТ","М","Cex (Д)","М;Cex (Д)","Нет","ГАНК-4М для определения: Эпоксиэтан (этилена оксид, оксиран) (Р)",102201,1022012,"ГАНК-4СEx (Д) для определения: Эпоксиэтан (этилена оксид, оксиран) (Р)","Д",1026201,"ГАНК-4ФEx (Д) для определения: Эпоксиэтан (этилена оксид, оксиран) (Р)","Нет"]
["Р : Этан (Р) 150 - 6000 мг/м3",22022,"150 - 6000 мг/м3","Р","Д",null,null,null,"Р07",null,"В-во","Нет","Д","Д","Нет","Д","Д","Д","Этан (Р)",null,null,null,null,null,"С2Н6",300,null,null,"М","Cex (Д)","М;Cex (Д)","Нет","ГАНК-4М для определения: Этан (Р)",102202,1022022,{"$f":"IF(AC192=\"М\",CONCATENATE(\"ГАНК-4СEx (Д) для определения: \",S192),IF(AC192=\"С\",CONCATENATE(\"ГАНК-4СEx (Х) для определения: \",S192),\"Нет\"))","v":"ГАНК-4СEx (Д) для определения: Этан (Р)"},"Д",{"$f":"IF(AC192=\"нет\",\"Нет\",1026000+(B192-2)/10-2000)","v":1026202},{"$f":"IF(AC192=\"М\",CONCATENATE(\"ГАНК-4ФEx (Д) для определения: \",S192),IF(AC192=\"С\",CONCATENATE(\"ГАНК-4ФEx (Х) для определения: \",S192),\"Нет\"))","v":"ГАНК-4ФEx (Д) для определения: Этан (Р)"},"Нет"]
["Р : Этанол (этиловый спирт) (Р) 500 - 20000 мг/м3",22032,"500 - 20000 мг/м3","Р","Д",null,null,null,null,null,"В-во","Нет","Д","Д","Нет","Д","Д","Д","Этанол (этиловый спирт) (Р)",null,null,null,null,null,"C2H5OH",1000,null,"Да","М","Cex (Д)","М;Cex (Д)","Нет","ГАНК-4М для определения: Этанол (этиловый спирт) (Р)",102203,1022032,"ГАНК-4СEx (Д) для определения: Этанол (этиловый спирт) (Р)","Д",1026203,"ГАНК-4ФEx (Д) для определения: Этанол (этиловый спирт) (Р)","Нет"]
["Р : Этиленгликоль (Р) 2,5 - 100 мг/м3",22042,"2,5 - 100 мг/м3","Р","Д",null,null,null,"Р09",null,"В-во","Нет","Д","Д","Нет","Д","Д","Д","Этиленгликоль (Р)",null,null,null,null,null,"С2Н4(ОН)2",5,null,null,"М","Cex (Д)","М;Cex (Д)","Нет","ГАНК-4М для определения: Этиленгликоль (Р)",102204,1022042,"ГАНК-4СEx (Д) для определения: Этиленгликоль (Р)","Д",1026204,"ГАНК-4ФEx (Д) для определения: Этиленгликоль (Р)","Нет"]
["Р : Кислота уксусная (Р) 2,5 - 100 мг/м3",22052,"2,5 - 100 мг/м3","Р","Х",null,null,null,"Р03",null,"В-во","Нет","Х","Х","Нет","Х","Х","Д","Кислота уксусная (Р)",null,null,null,null,null,"C2H4O2",5,null,"Да","М","Cex (Д)","М;Cex (Д)","Нет","ГАНК-4М для определения: Кислота уксусная (Р)",102205,1022052,"ГАНК-4СEx (Д) для определения: Кислота уксусная (Р)","Д",1026205,"ГАНК-4ФEx (Д) для определения: Кислота уксусная (Р)","Да"]
["Р : Этилен (Р) 25 - 1000 мг/м3",22062,"25 - 1000 мг/м3","Р","Д",null,null,null,"Р06",null,"В-во","Нет","Д","Д","Нет","Д","Д","Д","Этилен (Р)",null,null,null,null,null,"С2Н4",50,null,null,"М","Cex (Д)","М;Cex (Д)","Нет","ГАНК-4М для определения: Этилен (Р)",102206,1022062,"ГАНК-4СEx (Д) для определения: Этилен (Р)","Д",1026206,"ГАНК-4ФEx (Д) для определения: Этилен (Р)","Нет"]
["Р : Винилацетат (этенилацетат, уксусной кислоты виниловый эфир) (Р) 5 - 200 мг/м3",22072,"5 - 200 мг/м3","Р","Д",null,null,null,null,null,"В-во","Нет","Д","Д","Нет","Д","Д","Д","Винилацетат (этенилацетат, уксусной кислоты виниловый эфир) (Р)",null,null,null,null,null,"C4H6O2",10,null,"ОТ","М","Cex (Д)","М;Cex (Д)","Нет","ГАНК-4М для определения: Винилацетат (этенилацетат, уксусной кислоты виниловый эфир) (Р)",102207,1022072,"ГАНК-4СEx (Д) для определения: Винилацетат (этенилацетат, уксусной кислоты виниловый эфир) (Р)","Д",1026207,"ГАНК-4ФEx (Д) для определения: Винилацетат (этенилацетат, уксусной кислоты виниловый эфир) (Р)","Нет"]
["Р : Этенилбензол (стирол) (Р) 5 - 200 мг/м3",22082,"5 - 200 мг/м3","Р","Д",null,null,null,null,null,"В-во","Нет","Д","Д","Нет","Д","Д","Д","Этенилбензол (стирол) (Р)",null,null,null,null,null,"C8H8",10,null,"Да","М","Cex (Д)","М;Cex (Д)","Нет","ГАНК-4М для определения: Этенилбензол (стирол) (Р)",102208,{"$f":"IF(AC198=\"Нет\",\"Нет\",AH198*10+2)","v":1022082},"ГАНК-4СEx (Д) для определения: Этенилбензол (стирол) (Р)","Д",1026208,"ГАНК-4ФEx (Д) для определения: Этенилбензол (стирол) (Р)","Нет"]
["Р : Этиламин (Р) 5 - 200 мг/м3",22092,"5 - 200 мг/м3","Р","Х",null,null,null,"Р03",null,"В-во","Нет","Х","Х","Нет","Х","Х","Д","Этиламин (Р)",null,null,null,null,null,"C2H7N",10,null,null,"М","Cex (Д)","М;Cex (Д)","Нет","ГАНК-4М для определения: Этиламин (Р)",102209,1022092,"ГАНК-4СEx (Д) для определения: Этиламин (Р)","Д",1026209,"ГАНК-4ФEx (Д) для определения: Этиламин (Р)","Нет"]
["Р : Этилацетат (Р) 25 - 1000 мг/м3",22102,"25 - 1000 мг/м3","Р","Д",null,null,null,"Р06",null,"В-во","Нет","Д","Д","Нет","Д","Д","Д","Этилацетат (Р)",null,null,null,null,null,"С4Н8О2",50,null,null,"М","Cex (Д)","М;Cex (Д)","Нет","ГАНК-4М для определения: Этилацетат (Р)",102210,1022102,"ГАНК-4СEx (Д) для определения: Этилацетат (Р)","Д",1026210,"ГАНК-4ФEx (Д) для определения: Этилацетат (Р)","Нет"]
["Р : Этилбензол (Р) 25 - 1000 мг/м3",22112,"25 - 1000 мг/м3","Р","Д",null,null,null,"Р06",null,"В-во","Нет","Д","Д","Нет","Д","Д","Д","Этилбензол (Р)",null,null,null,null,null,"С8Н10",50,null,null,"М","Cex (Д)","М;Cex (Д)","Нет","ГАНК-4М для определения: Этилбензол (Р)",102211,1022112,"ГАНК-4СEx (Д) для определения: Этилбензол (Р)","Д",1026211,"ГАНК-4ФEx (Д) для определения: Этилбензол (Р)","Нет"]
["Р : Спирт изооктиловый (Р) 5 - 200 мг/м3",22122,"5 - 200 мг/м3","Р","Д",null,null,null,"Р09",null,"В-во","Нет","Д","Д","Нет","Д","Д","Д","Спирт изооктиловый (Р)",null,null,null,null,null,"С2Н4(ОН)2",10,null,null,"М","Cex (Д)","М;Cex (Д)","Нет","ГАНК-4М для определения: Спирт изооктиловый (Р)",102212,1022122,"ГАНК-4СEx (Д) для определения: Спирт изооктиловый (Р)","Д",1026212,"ГАНК-4ФEx (Д) для определения: Спирт изооктиловый (Р)","Нет"]
["Р : Диэтиловый эфир (Р) 150 - 6000 мг/м3",22132,"150 - 6000 мг/м3","Р","Д",null,null,null,"Р05",null,"В-во","Нет","Д","Д","Нет","Д","Д","Д","Диэтиловый эфир (Р)",null,null,null,null,null,"C4H10O",300,null,null,"М","Cex (Д)","М;Cex (Д)","Нет","ГАНК-4М для определения: Диэтиловый эфир (Р)",102213,1022132,"ГАНК-4СEx (Д) для определения: Диэтиловый эфир (Р)","Д",1026213,"ГАНК-4ФEx (Д) для определения: Диэтиловый эфир (Р)","Нет"]
["Р : Этантиол (этилмеркаптан) (Р) 0,5 - 20 мг/м3",22142,"0,5 - 20 мг/м3","Р","Х",null,null,null,null,null,"В-во","Нет","Х","Х","Нет","Х","Х","Д","Этантиол (этилмеркаптан) (Р)",null,null,null,null,null,"C2H5SH",1,null,"ОТ","М","Cex (Д)","М;Cex (Д)","Нет","ГАНК-4М для определения: Этантиол (этилмеркаптан) (Р)",102214,1022142,"ГАНК-4СEx (Д) для определения: Этантиол (этилмеркаптан) (Р)","Д",1026214,"ГАНК-4ФEx (Д) для определения: Этантиол (этилмеркаптан) (Р)","Нет"]
["Р : 2-Этоксиэтанол (этилцеллозольв) (Р) 5 - 200 мг/м3",22152,"5 - 200 мг/м3","Р","Д",null,null,null,null,null,"В-во","Нет","Д","Д","Нет","Д","Д","Д","2-Этоксиэтанол (этилцеллозольв) (Р)",null,null,null,null,null,"C4H10O2",10,null,"ОТ","М","Cex (Д)","М;Cex (Д)","Нет","ГАНК-4М для определения: 2-Этоксиэтанол (этилцеллозольв) (Р)",102215,1022152,"ГАНК-4СEx (Д) для определения: 2-Этоксиэтанол (этилцеллозольв) (Р)","Д",1026215,"ГАНК-4ФEx (Д) для определения: 2-Этоксиэтанол (этилцеллозольв) (Р)","Нет"]
["Р : Трихлорфторметан (Фреон 11) (Р) 500 - 9000 мг/м3",22172,"500 - 9000 мг/м3","Р","Д - РБ",null,null,null,null,"АР2","В-во","Нет","Нет","Нет","Нет","Нет","Нет","Нет","Трихлорфторметан (Фреон 11) (Р)",null,null,null,null,null,"СFCl3",1000,null,null,"М","Cex (Д)","М;Cex (Д)","Нет","ГАНК-4М для определения: Трихлорфторметан (Фреон 11) (Р)",102217,1022172,"ГАНК-4СEx (Д) для определения: Трихлорфторметан (Фреон 11) (Р)","Д",1026217,"ГАНК-4ФEx (Д) для определения: Трихлорфторметан (Фреон 11) (Р)","Нет"]
["Р : Дифтордихлорметан (Фреон 12) (Р) 1500 - 9000 мг/м3",22182,"1500 - 9000 мг/м3","Р","Д - РБ",null,null,null,null,"АР2","В-во","Нет","Нет","Нет","Нет","Нет","Нет","Нет","Дифтордихлорметан (Фреон 12) (Р)",null,null,null,null,null,"СF2Cl2",3000,null,null,"М","Cex (Д)","М;Cex (Д)","Нет","ГАНК-4М для определения: Дифтордихлорметан (Фреон 12) (Р)",102218,1022182,"ГАНК-4СEx (Д) для определения: Дифтордихлорметан (Фреон 12) (Р)","Д",1026218,"ГАНК-4ФEx (Д) для определения: Дифтордихлорметан (Фреон 12) (Р)","Нет"]
["Р : Изооктан в пересчете на гексан (Р) 150 - 6000 мг/м3",22202,"150 - 6000 мг/м3","Р","Д",null,null,null,"Р07",null,"В-во","Нет","Д","Д","Нет","Д","Д","Д","Изооктан в пересчете на гексан (Р)",null,null,null,null,null,"С8Н18",300,null,null,"М","Cex (Д)","М;Cex (Д)","Нет","ГАНК-4М для определения: Изооктан в пересчете на гексан (Р)",102220,1022202,"ГАНК-4СEx (Д) для определения: Изооктан в пересчете на гексан (Р)","Д",1026220,"ГАНК-4ФEx (Д) для определения: Изооктан в пересчете на гексан (Р)","Нет"]
["Р : Карбамид (мочевина) (Р) 5 - 200 мг/м3",22212,"5 - 200 мг/м3","Р","Д",null,null,null,"Р04",null,"В-во","Нет","Д","Д","Нет","Д","Д","Д","Карбамид (мочевина) (Р)",null,null,null,null,null,"СН4N2О",10,null,null,"М","Cex (Д)","М;Cex (Д)","Нет","ГАНК-4М для определения: Карбамид (мочевина) (Р)",102221,1022212,"ГАНК-4СEx (Д) для определения: Карбамид (мочевина) (Р)","Д",1026221,"ГАНК-4ФEx (Д) для определения: Карбамид (мочевина) (Р)","Нет"]
["Р : Марганец в сварочном аэрозоле (с содержанием от 20 до 30 %) (Р) 0,05 - 2 мг/м3",22242,"0,05 - 2 мг/м3","Р","Х",null,null,null,"Р13",null,"В-во","Нет","Х","Х","Нет","Х","Х","Нет","Марганец в сварочном аэрозоле (с содержанием от 20 до 30 %) (Р)",null,null,null,null,null,"Mn (до 30%)",0.1,null,null,"С",{"$f":"IF(AC210=\"НЕТ\",\"Нет\",IF(AC210=\"С\",\"Cex (Х)\",IF(AC210=\"М\",\"Cex (Д)\",\" \")))","v":"Cex (Х)"},{"$f":"CONCATENATE(IF(AC210=\"Нет\",\"\",CONCATENATE(AC210,\";\")),IF(AD210=\"Нет\",\"\",AD210))","v":"С;Cex (Х)"},"ГАНК-4С для определения: Марганец в сварочном аэрозоле (с содержанием от 20 до 30 %) (Р)","Нет",{"$f":"102000+(B210-2)/10-2000","v":102224},1022242,"ГАНК-4СEx (Х) для определения: Марганец в сварочном аэрозоле (с содержанием от 20 до 30 %) (Р)","Х",1026224,"ГАНК-4ФEx (Х) для определения: Марганец в сварочном аэрозоле (с содержанием от 20 до 30 %) (Р)","Нет"]
["Р : Марганец сульфат (Р) 0,25 - 10 мг/м3",22252,"0,25 - 10 мг/м3","Р","Х",null,null,null,"Р14",null,"В-во","Нет","Х","Х","Нет","Х","Х","Нет","Марганец сульфат (Р)",null,null,null,null,null,"МnSО4",0.5,null,null,"С","Cex (Х)","С;Cex (Х)","ГАНК-4С для определения: Марганец сульфат (Р)","Нет",102225,1022252,"ГАНК-4СEx (Х) для определения: Марганец сульфат (Р)","Х",1026225,"ГАНК-4ФEx (Х) для определения: Марганец сульфат (Р)","Нет"]
["Р : Медь сульфат (Р) 0,25 - 10 мг/м3",22262,"0,25 - 10 мг/м3","Р","Х",null,null,null,"Р14",null,"В-во","Нет","Х","Х","Нет","Х","Х","Нет","Медь сульфат (Р)",null,null,null,null,null,"CuSО4",0.5,null,null,"С","Cex (Х)","С;Cex (Х)","ГАНК-4С для определения: Медь сульфат (Р)","Нет",102226,1022262,"ГАНК-4СEx (Х) для определения: Медь сульфат (Р)","Х",1026226,"ГАНК-4ФEx (Х) для определения: Медь сульфат (Р)","Нет"]
["Р : Алюминий фосфат (алюминий фосфорнокислый) (Р) 3 - 120 мг/м3",22272,"3 - 120 мг/м3","Р","Х",null,null,null,"Р14",null,"В-во","Нет","Х","Х","Нет","Х","Х","Нет","Алюминий фосфат (алюминий фосфорнокислый) (Р)",null,null,null,null,null,"АlРO4",6,null,null,"С","Cex (Х)","С;Cex (Х)","ГАНК-4С для определения: Алюминий фосфат (алюминий фосфорнокислый) (Р)","Нет",102227,1022272,"ГАНК-4СEx (Х) для определения: Алюминий фосфат (алюминий фосфорнокислый) (Р)","Х",1026227,"ГАНК-4ФEx (Х) для определения: Алюминий фосфат (алюминий фосфорнокислый) (Р)","Нет"]
["Р : Железа сульфат (Р) 1 - 40 мг/м3",22282,"1 - 40 мг/м3","Р","Х",null,null,null,"Р14",null,"В-во","Нет","Х","Х","Нет","Х","Х","Нет","Железа сульфат (Р)",null,null,null,null,null,"FeSО4",2,null,null,"С","Cex (Х)","С;Cex (Х)","ГАНК-4С для определения: Железа сульфат (Р)","Нет",102228,1022282,"ГАНК-4СEx (Х) для определения: Железа сульфат (Р)","Х",1026228,"ГАНК-4ФEx (Х) для определения: Железа сульфат (Р)","Нет"]
["Р : Железо (Р) 5 - 200 мг/м3",22292,"5 - 200 мг/м3","Р","Х",null,null,null,"Р10",null,"В-во","Нет","Х","Х","Нет","Х","Х","Нет","Железо (Р)",null,null,null,null,null,"Fe",10,null,null,"С","Cex (Х)","С;Cex (Х)","ГАНК-4С для определения: Железо (Р)","Нет",102229,1022292,"ГАНК-4СEx (Х) для определения: Железо (Р)","Х",1026229,"ГАНК-4ФEx (Х) для определения: Железо (Р)","Нет"]
["Р : Кальций сульфат (Р) 1 - 40 мг/м3",22302,"1 - 40 мг/м3","Р","Х",null,null,null,"Р14",null,"В-во","Нет","Х","Х","Нет","Х","Х","Нет","Кальций сульфат (Р)",null,null,null,null,null,"СаSО4",2,null,null,"С","Cex (Х)","С;Cex (Х)","ГАНК-4С для определения: Кальций сульфат (Р)","Нет",102230,1022302,"ГАНК-4СEx (Х) для определения: Кальций сульфат (Р)","Х",1026230,"ГАНК-4ФEx (Х) для определения: Кальций сульфат (Р)","Нет"]
["Р : Магний сульфат (Р) 1 - 40 мг/м3",22312,"1 - 40 мг/м3","Р","Х",null,null,null,"Р14",null,"В-во","Нет","Х","Х","Нет","Х","Х","Нет","Магний сульфат (Р)",null,null,null,null,null,"MgSО4",2,null,null,"С","Cex (Х)","С;Cex (Х)","ГАНК-4С для определения: Магний сульфат (Р)","Нет",102231,1022312,"ГАНК-4СEx (Х) для определения: Магний сульфат (Р)","Х",1026231,"ГАНК-4ФEx (Х) для определения: Магний сульфат (Р)","Нет"]
["Р : Олово четыреххлористое (Р) 2 - 80 мг/м3",22322,"2 - 80 мг/м3","Р","Х",null,null,null,"Р14",null,"В-во","Нет","Х","Х","Нет","Х","Х","Нет","Олово четыреххлористое (Р)",null,null,null,null,null,"SnCl4",4,null,null,"С","Cex (Х)","С;Cex (Х)","ГАНК-4С для определения: Олово четыреххлористое (Р)","Нет",102232,1022322,"ГАНК-4СEx (Х) для определения: Олово четыреххлористое (Р)","Х",1026232,"ГАНК-4ФEx (Х) для определения: Олово четыреххлористое (Р)","Нет"]
["Р : Хром (III) фосфат (Р) 1 - 40 мг/м3",22332,"1 - 40 мг/м3","Р","Х",null,null,null,"Р14",null,"В-во","Нет","Х","Х","Нет","Х","Х","Нет","Хром (III) фосфат (Р)",null,null,null,null,null,"CrРО4",2,null,null,"С","Cex (Х)","С;Cex (Х)","ГАНК-4С для определения: Хром (III) фосфат (Р)","Нет",102233,1022332,"ГАНК-4СEx (Х) для определения: Хром (III) фосфат (Р)","Х",1026233,"ГАНК-4ФEx (Х) для определения: Хром (III) фосфат (Р)","Нет"]
["Р : Хромовой кислоты соли (в пересчете на Cr (VI)) (Р) 0,005 - 0,2 мг/м3",22342,"0,005 - 0,2 мг/м3","Р","Х",null,null,null,"Р14",null,"В-во","Нет","Х","Х","Нет","Х","Х","Нет","Хромовой кислоты соли (в пересчете на Cr (VI)) (Р)",null,null,null,null,null,"Хромой кислоты соли",0.01,null,null,"С","Cex (Х)","С;Cex (Х)","ГАНК-4С для определения: Хромовой кислоты соли (в пересчете на Cr (VI)) (Р)","Нет",102234,1022342,"ГАНК-4СEx (Х) для определения: Хромовой кислоты соли (в пересчете на Cr (VI)) (Р)","Х",1026234,"ГАНК-4ФEx (Х) для определения: Хромовой кислоты соли (в пересчете на Cr (VI)) (Р)","Нет"]
["Р : Цинк сульфид (Р) 2,5 - 100 мг/м3",22352,"2,5 - 100 мг/м3","Р","Х",null,null,null,"Р14",null,"В-во","Нет","Х","Х","Нет","Х","Х","Нет","Цинк сульфид (Р)",null,null,null,null,null,"ZnS",5,null,null,"С","Cex (Х)","С;Cex (Х)","ГАНК-4С для определения: Цинк сульфид (Р)","Нет",102235,1022352,"ГАНК-4СEx (Х) для определения: Цинк сульфид (Р)","Х",1026235,"ГАНК-4ФEx (Х) для определения: Цинк сульфид (Р)","Нет"]
["Р : Масло сивушное (Р) 5 - 200 мг/м3",22362,"5 - 200 мг/м3","Р","Д",null,null,null,"Р09",null,"В-во","Нет","Д","Д","Нет","Д","Д","Д","Масло сивушное (Р)",null,null,null,null,null,"Масло сивушное",10,null,null,"М","Cex (Д)","М;Cex (Д)","Нет","ГАНК-4М для определения: Масло сивушное (Р)",102236,1022362,"ГАНК-4СEx (Д) для определения: Масло сивушное (Р)","Д",1026236,"ГАНК-4ФEx (Д) для определения: Масло сивушное (Р)","Нет"]
["Р : Метилбутандиол (Р) 2,5 - 100 мг/м3",22372,"2,5 - 100 мг/м3","Р","Д",null,null,null,"Р09",null,"В-во","Нет","Д","Д","Нет","Д","Д","Д","Метилбутандиол (Р)",null,null,null,null,null,"С5Н10(ОН)2",5,null,null,"М","Cex (Д)","М;Cex (Д)","Нет","ГАНК-4М для определения: Метилбутандиол (Р)",102237,1022372,"ГАНК-4СEx (Д) для определения: Метилбутандиол (Р)","Д",1026237,"ГАНК-4ФEx (Д) для определения: Метилбутандиол (Р)","Нет"]
["Р : Октан-1-ол по изоамиловому спирту (Р) 5 - 200 мг/м3",22382,"5 - 200 мг/м3","Р","Д",null,null,null,"Р09",null,"В-во","Нет","Д","Д","Нет","Д","Д","Д","Октан-1-ол по изоамиловому спирту (Р)",null,null,null,null,null,"С8Н17ОН",10,null,null,"М","Cex (Д)","М;Cex (Д)","Нет","ГАНК-4М для определения: Октан-1-ол по изоамиловому спирту (Р)",{"$f":"102000+(B224-2)/10-2000","v":102238},1022382,"ГАНК-4СEx (Д) для определения: Октан-1-ол по изоамиловому спирту (Р)","Д",1026238,"ГАНК-4ФEx (Д) для определения: Октан-1-ол по изоамиловому спирту (Р)","Нет"]
["Р : Спирт изоамиловый по изоамиловому спирту (Р) 5 - 200 мг/м3",22392,"5 - 200 мг/м3","Р","Д",null,null,null,"Р09",null,"В-во","Нет","Д","Д","Нет","Д","Д","Д","Спирт изоамиловый по изоамиловому спирту (Р)",null,null,null,null,null,"С5Н11ОН",10,null,null,"М","Cex (Д)","М;Cex (Д)","Нет","ГАНК-4М для определения: Спирт изоамиловый по изоамиловому спирту (Р)",102239,1022392,"ГАНК-4СEx (Д) для определения: Спирт изоамиловый по изоамиловому спирту (Р)","Д",1026239,"ГАНК-4ФEx (Д) для определения: Спирт изоамиловый по изоамиловому спирту (Р)","Нет"]
["Р : Спирт нониловый по изоамиловому спирту (Р) 5 - 200 мг/м3",22402,"5 - 200 мг/м3","Р","Д",null,null,null,"Р09",null,"В-во","Нет","Д","Д","Нет","Д","Д","Д","Спирт нониловый по изоамиловому спирту (Р)",null,null,null,null,null,"С9Н19ОН",10,null,null,"М","Cex (Д)","М;Cex (Д)","Нет","ГАНК-4М для определения: Спирт нониловый по изоамиловому спирту (Р)",102240,1022402,"ГАНК-4СEx (Д) для определения: Спирт нониловый по изоамиловому спирту (Р)","Д",1026240,"ГАНК-4ФEx (Д) для определения: Спирт нониловый по изоамиловому спирту (Р)","Нет"]
["Р : 6-Аминогексановая кислота (Р) 1 - 40 мг/м3",22412,"1 - 40 мг/м3","Р","Д",null,null,null,"Р04",null,"В-во","Нет","Д","Д","Нет","Д","Д","Д","6-Аминогексановая кислота (Р)",null,null,null,null,null,"С6Н13NО2",2,null,null,"М","Cex (Д)","М;Cex (Д)","Нет","ГАНК-4М для определения: 6-Аминогексановая кислота (Р)",102241,1022412,"ГАНК-4СEx (Д) для определения: 6-Аминогексановая кислота (Р)","Д",1026241,"ГАНК-4ФEx (Д) для определения: 6-Аминогексановая кислота (Р)","Нет"]
["Р : Оксид кальция (Р) 0,5 - 20 мг/м3",22422,"0,5 - 20 мг/м3","Р","Х",null,null,null,"Р15",null,"В-во","Нет","Х","Х","Нет","Х","Х","Нет","Оксид кальция (Р)",null,null,null,null,null,"CaO",1,null,null,"С","Cex (Х)","С;Cex (Х)","ГАНК-4С для определения: Оксид кальция (Р)","Нет",102242,1022422,"ГАНК-4СEx (Х) для определения: Оксид кальция (Р)","Х",1026242,"ГАНК-4ФEx (Х) для определения: Оксид кальция (Р)","Нет"]
["Р : Оксид магния (Р) 2 - 80 мг/м3",22432,"2 - 80 мг/м3","Р","Х",null,null,null,"Р15",null,"В-во","Нет","Х","Х","Нет","Х","Х","Нет","Оксид магния (Р)",null,null,null,null,null,"MgO",4,null,null,"С","Cex (Х)","С;Cex (Х)","ГАНК-4С для определения: Оксид магния (Р)","Нет",102243,1022432,"ГАНК-4СEx (Х) для определения: Оксид магния (Р)","Х",1026243,"ГАНК-4ФEx (Х) для определения: Оксид магния (Р)","Нет"]
["Р : Оксид олова (Р)  0,1 - 4 мг/м3",22442,"0,1 - 4 мг/м3","Р","Х",null,null,null,"Р15",null,"В-во","Нет","Х","Х","Нет","Х","Х","Нет","Оксид олова (Р) ",null,null,null,null,null,"SnO2",0.2,null,null,"С","Cex (Х)","С;Cex (Х)","ГАНК-4С для определения: Оксид олова (Р) ","Нет",102244,{"$f":"IF(AC230=\"Нет\",\"Нет\",AH230*10+2)","v":1022442},"ГАНК-4СEx (Х) для определения: Оксид олова (Р) ","Х",1026244,"ГАНК-4ФEx (Х) для определения: Оксид олова (Р) ","Нет"]
["Р : Оксиды свинца (Р) 0,025 - 1 мг/м3",22452,"0,025 - 1 мг/м3","Р","Х",null,null,null,"Р15",null,"В-во","Нет","Х","Х","Нет","Х","Х","Нет","Оксиды свинца (Р)",null,null,null,null,null,"PbxOy",0.05,null,null,"С","Cex (Х)","С;Cex (Х)","ГАНК-4С для определения: Оксиды свинца (Р)","Нет",102245,1022452,"ГАНК-4СEx (Х) для определения: Оксиды свинца (Р)","Х",1026245,"ГАНК-4ФEx (Х) для определения: Оксиды свинца (Р)","Нет"]
["Р : Октан в пересчете на гексан (Р) 150 - 6000 мг/м3",22462,"150 - 6000 мг/м3","Р","Д",null,null,null,"Р07",null,"В-во","Нет","Д","Д","Нет","Д","Д","Д","Октан в пересчете на гексан (Р)",null,null,null,null,null,"С8Н18",300,null,null,"М","Cex (Д)","М;Cex (Д)","Нет","ГАНК-4М для определения: Октан в пересчете на гексан (Р)",102246,1022462,"ГАНК-4СEx (Д) для определения: Октан в пересчете на гексан (Р)","Д",1026246,"ГАНК-4ФEx (Д) для определения: Октан в пересчете на гексан (Р)","Нет"]
["Р : Декан в пересчете на гексан (Р) 150 - 6000 мг/м3",22472,"150 - 6000 мг/м3","Р","Д",null,null,null,"Р07",null,"В-во","Нет","Д","Д","Нет","Д","Д","Д","Декан в пересчете на гексан (Р)",null,null,null,null,null,"С10Н22",300,null,null,"М","Cex (Д)","М;Cex (Д)","Нет","ГАНК-4М для определения: Декан в пересчете на гексан (Р)",102247,1022472,"ГАНК-4СEx (Д) для определения: Декан в пересчете на гексан (Р)","Д",1026247,"ГАНК-4ФEx (Д) для определения: Декан в пересчете на гексан (Р)","Нет"]
["Р : Нонан в пересчете на гексан (Р) 150 - 6000 мг/м3",22482,"150 - 6000 мг/м3","Р","Д",null,null,null,"Р07",null,"В-во","Нет","Д","Д","Нет","Д","Д","Д","Нонан в пересчете на гексан (Р)",null,null,null,null,null,"С9Н20",300,null,null,"М","Cex (Д)","М;Cex (Д)","Нет","ГАНК-4М для определения: Нонан в пересчете на гексан (Р)",102248,1022482,"ГАНК-4СEx (Д) для определения: Нонан в пересчете на гексан (Р)","Д",1026248,"ГАНК-4ФEx (Д) для определения: Нонан в пересчете на гексан (Р)","Нет"]
["Р : Изопентан в пересчете на пентан (Р) 150 - 6000 мг/м3",22542,"150 - 6000 мг/м3","Р","Д",null,null,null,"Р07",null,"В-во","Нет","Д","Д","Нет","Д","Д","Д","Изопентан в пересчете на пентан (Р)",null,null,null,null,null,"С5Н12",300,null,null,"М","Cex (Д)","М;Cex (Д)","Нет","ГАНК-4М для определения: Изопентан в пересчете на пентан (Р)",102254,1022542,"ГАНК-4СEx (Д) для определения: Изопентан в пересчете на пентан (Р)","Д",1026254,"ГАНК-4ФEx (Д) для определения: Изопентан в пересчете на пентан (Р)","Нет"]
["Р : ДМДС (Диметилдисульфид) (Р) 0,35 - 30 мг/м3",22552,"0,35 - 30 мг/м3","Р","Д",null,null,null,null,"АР1","В-во","Нет","Д","Д","Нет","Д","Д","Д","ДМДС (Диметилдисульфид) (Р)",null,null,null,null,null,"(CH3)2S2",0.7,null,null,"М","Cex (Д)","М;Cex (Д)","Нет","ГАНК-4М для определения: ДМДС (Диметилдисульфид) (Р)",102255,1022552,"ГАНК-4СEx (Д) для определения: ДМДС (Диметилдисульфид) (Р)","Д",1026255,"ГАНК-4ФEx (Д) для определения: ДМДС (Диметилдисульфид) (Р)","Нет"]
["Р : Синильная кислота (Р) 0,11 - 33,7 мг/м3",22562,"0,11 - 33,7 мг/м3","Р","Д",null,null,null,null,"АР1","В-во","Нет","Д","Д","Нет","Д","Д","Д","Синильная кислота (Р)",null,null,null,null,null,"CHN",0.3,null,null,"М","Cex (Д)","М;Cex (Д)","Нет","ГАНК-4М для определения: Синильная кислота (Р)",102256,1022562,"ГАНК-4СEx (Д) для определения: Синильная кислота (Р)","Д",1026256,"ГАНК-4ФEx (Д) для определения: Синильная кислота (Р)","Нет"]
["Р : Соли синильной кислоты (Р) 0,11 - 33,7 мг/м3",22572,"0,11 - 33,7 мг/м3","Р","Д",null,null,null,null,"АР1","В-во","Нет","Д","Д","Нет","Д","Д","Д","Соли синильной кислоты (Р)",null,null,null,null,null,"-",0.3,null,null,"М","Cex (Д)","М;Cex (Д)","Нет","ГАНК-4М для определения: Соли синильной кислоты (Р)",102257,1022572,"ГАНК-4СEx (Д) для определения: Соли синильной кислоты (Р)","Д",1026257,"ГАНК-4ФEx (Д) для определения: Соли синильной кислоты (Р)","Нет"]
["Р : Гипохлорит натрия (Р) 2,5 - 100 мг/м3",22582,"2,5 - 100 мг/м3","Р","Х",null,null,null,null,"АР1","В-во","Нет","Х","Х","Нет","Х","Х","Нет","Гипохлорит натрия (Р)",null,null,null,null,null,"ClNaO",5,null,null,"С","Cex (Х)","С;Cex (Х)","ГАНК-4С для определения: Гипохлорит натрия (Р)","Нет",102258,1022582,"ГАНК-4СEx (Х) для определения: Гипохлорит натрия (Р)","Х",1026258,"ГАНК-4ФEx (Х) для определения: Гипохлорит натрия (Р)","Нет"]
["Р : Гипохлорит кальция (Р) 0,5 - 20 мг/м3",22592,"0,5 - 20 мг/м3","Р","Х",null,null,null,null,"АР1","В-во","Нет","Х","Х","Нет","Х","Х","Нет","Гипохлорит кальция (Р)",null,null,null,null,null,"СаСl2O2",1,null,null,"С","Cex (Х)","С;Cex (Х)","ГАНК-4С для определения: Гипохлорит кальция (Р)","Нет",102259,1022592,"ГАНК-4СEx (Х) для определения: Гипохлорит кальция (Р)","Х",1026259,"ГАНК-4ФEx (Х) для определения: Гипохлорит кальция (Р)","Нет"]
["Р : Бром (Р) 0,25 - 10 мг/м3",22602,"0,25 - 10 мг/м3","Р","Х",null,null,null,null,"АР1","В-во","Нет","Х","Х","Нет","Х","Х","Нет","Бром (Р)",null,null,null,null,null,"Br2",0.5,null,null,"С","Cex (Х)","С;Cex (Х)","ГАНК-4С для определения: Бром (Р)","Нет",102260,1022602,"ГАНК-4СEx (Х) для определения: Бром (Р)","Х",1026260,"ГАНК-4ФEx (Х) для определения: Бром (Р)","Нет"]
["Р : Фтор (Р) 0,015 - 3,94 мг/м3",22612,"0,015 - 3,94 мг/м3","Р","Д",null,null,null,null,"АР1","В-во","Нет","Д","Д","Нет","Д","Д","Д","Фтор (Р)",null,null,null,null,null,"F2",0.03,null,null,"М","Cex (Д)","М;Cex (Д)","Нет","ГАНК-4М для определения: Фтор (Р)",102261,1022612,"ГАНК-4СEx (Д) для определения: Фтор (Р)","Д",1026261,"ГАНК-4ФEx (Д) для определения: Фтор (Р)","Нет"]
["Р : НДМГ (гептил) (Р) 0,5 - 20 мг/м3",22622,"0,5 - 20 мг/м3","Р","Х",null,null,null,null,"АР1","В-во","Нет","Х","Х","Нет","Х","Х","Нет","НДМГ (гептил) (Р)",null,null,null,null,null,"C2H8N2",1,null,null,"С","Cex (Х)","С;Cex (Х)","ГАНК-4С для определения: НДМГ (гептил) (Р)","Нет",102262,1022622,"ГАНК-4СEx (Х) для определения: НДМГ (гептил) (Р)","Х",1026262,"ГАНК-4ФEx (Х) для определения: НДМГ (гептил) (Р)","Нет"]
["Р : Водород (Р) 0,2% об. - 10% об.",22632,"0,2% об. - 10% об.","Р","Д - только Ex",null,null,null,null,"АР1","В-во","Нет","Нет","Нет","Нет","Д","Д","Нет","Водород (Р)",null,null,null,null,null,"H2",0.02,null,null,"Нет","Cex (Д)","Cex (Д)","Нет","Нет",null,null,{"$f":"CONCATENATE(\"ГАНК-4СEx (Д) для определения: \",S244)","v":"ГАНК-4СEx (Д) для определения: Водород (Р)"},"Д",1026263,{"$f":"CONCATENATE(\"ГАНК-4ФEx (Д) для определения: \",S244)","v":"ГАНК-4ФEx (Д) для определения: Водород (Р)"},"Нет"]
["Р : Арсин (Р) 0,05 - 2 мг/м3",22642,"0,05 - 2 мг/м3","Р","Х",null,null,null,null,"АР1","В-во","Нет","Х","Х","Нет","Х","Х","Нет","Арсин (Р)",null,null,null,null,null,"AsH3",0.1,null,null,"С","Cex (Х)","С;Cex (Х)","ГАНК-4С для определения: Арсин (Р)","Нет",{"$f":"102000+(B245-2)/10-2000","v":102264},1022642,{"$f":"IF(AC245=\"М\",CONCATENATE(\"ГАНК-4СEx (Д) для определения: \",S245),IF(AC245=\"С\",CONCATENATE(\"ГАНК-4СEx (Х) для определения: \",S245),\"Нет\"))","v":"ГАНК-4СEx (Х) для определения: Арсин (Р)"},"Х",{"$f":"IF(AC245=\"нет\",\"Нет\",1026000+(B245-2)/10-2000)","v":1026264},{"$f":"IF(AC245=\"М\",CONCATENATE(\"ГАНК-4ФEx (Д) для определения: \",S245),IF(AC245=\"С\",CONCATENATE(\"ГАНК-4ФEx (Х) для определения: \",S245),\"Нет\"))","v":"ГАНК-4ФEx (Х) для определения: Арсин (Р)"},"Нет"]
["Р : Перекись водорода (Р) 0,15 - 6 мг/м3",22652,"0,15 - 6 мг/м3","Р","Д",null,null,null,null,"АР1","В-во","Нет","Д","Д","Нет","Д","Д","Д","Перекись водорода (Р)",null,null,null,null,null,"H2O2",0.3,null,null,"М","Cex (Д)","М;Cex (Д)","Нет","ГАНК-4М для определения: Перекись водорода (Р)",102265,1022652,"ГАНК-4СEx (Д) для определения: Перекись водорода (Р)","Д",1026265,"ГАНК-4ФEx (Д) для определения: Перекись водорода (Р)","Нет"]
["Р : Углекислый натрий (Р) 1 - 40 мг/м3",22662,"1 - 40 мг/м3","Р","Х",null,null,null,null,"АР1","В-во","Нет","Х","Х","Нет","Х","Х","Нет","Углекислый натрий (Р)",null,null,null,null,null,"Na2СO3",2,null,null,"С",{"$f":"IF(AC247=\"НЕТ\",\"Нет\",IF(AC247=\"С\",\"Cex (Х)\",IF(AC247=\"М\",\"Cex (Д)\",\" \")))","v":"Cex (Х)"},{"$f":"CONCATENATE(IF(AC247=\"Нет\",\"\",CONCATENATE(AC247,\";\")),IF(AD247=\"Нет\",\"\",AD247))","v":"С;Cex (Х)"},"ГАНК-4С для определения: Углекислый натрий (Р)","Нет",102266,1022662,"ГАНК-4СEx (Х) для определения: Углекислый натрий (Р)","Х",1026266,"ГАНК-4ФEx (Х) для определения: Углекислый натрий (Р)","Нет"]
["Р : Оксид олова (II) (Р) 3 - 120 мг/м3",22672,"3 - 120 мг/м3","Р","Х",null,null,null,null,"АР1","В-во","Нет","Х","Х","Нет","Х","Х","Нет","Оксид олова (II) (Р)",null,null,null,null,null,"OSn",6,null,null,"С","Cex (Х)","С;Cex (Х)","ГАНК-4С для определения: Оксид олова (II) (Р)","Нет",102267,1022672,"ГАНК-4СEx (Х) для определения: Оксид олова (II) (Р)","Х",1026267,"ГАНК-4ФEx (Х) для определения: Оксид олова (II) (Р)","Нет"]
["Р : Сульфат олова (II) (Р) 3 - 120 мг/м3",22682,"3 - 120 мг/м3","Р","Х",null,null,null,null,"АР1","В-во","Нет","Х","Х","Нет","Х","Х","Нет","Сульфат олова (II) (Р)",null,null,null,null,null,"O4SSn",6,null,null,"С","Cex (Х)","С;Cex (Х)","ГАНК-4С для определения: Сульфат олова (II) (Р)","Нет",102268,1022682,"ГАНК-4СEx (Х) для определения: Сульфат олова (II) (Р)","Х",1026268,"ГАНК-4ФEx (Х) для определения: Сульфат олова (II) (Р)","Нет"]
["Р : Хлорид олова (II) (Р) 3 - 120 мг/м3",22692,"3 - 120 мг/м3","Р","Х",null,null,null,null,"АР1","В-во","Нет","Х","Х","Нет","Х","Х","Нет","Хлорид олова (II) (Р)",null,null,null,null,null,"Cl2Sn",6,null,null,"С","Cex (Х)","С;Cex (Х)","ГАНК-4С для определения: Хлорид олова (II) (Р)","Нет",102269,1022692,"ГАНК-4СEx (Х) для определения: Хлорид олова (II) (Р)","Х",1026269,"ГАНК-4ФEx (Х) для определения: Хлорид олова (II) (Р)","Нет"]
["Р : Фурфуриловый спирт (Р) 0,1 - 10 мг/м3",22702,"0,1 - 10 мг/м3","Р","Д",null,null,null,null,"АР4","В-во","Нет","Д","Д","Нет","Д","Д","Д","Фурфуриловый спирт (Р)",null,null,null,null,null,null,0.2,null,null,"М","Cex (Д)","М;Cex (Д)","Нет","ГАНК-4М для определения: Фурфуриловый спирт (Р)",102270,1022702,"ГАНК-4СEx (Д) для определения: Фурфуриловый спирт (Р)","Д",1026270,"ГАНК-4ФEx (Д) для определения: Фурфуриловый спирт (Р)","Нет"]
["Р : Пропиленоксид (Р) 0,5 - 20 мг/м3",22712,"0,5 - 20 мг/м3","Р","Д",null,null,null,null,"АР4","В-во","Нет","Д","Д","Нет","Д","Д","Д","Пропиленоксид (Р)",null,null,null,null,null,null,1,null,null,"М","Cex (Д)","М;Cex (Д)","Нет","ГАНК-4М для определения: Пропиленоксид (Р)",102271,1022712,"ГАНК-4СEx (Д) для определения: Пропиленоксид (Р)","Д",1026271,"ГАНК-4ФEx (Д) для определения: Пропиленоксид (Р)","Нет"]
["Р : Метилдиэтаноламин (Р) 2,5 - 100 мг/м3",22722,"2,5 - 100 мг/м3","Р","Д",null,null,null,null,"АР4","В-во","Нет","Д","Д","Нет","Д","Д","Д","Метилдиэтаноламин (Р)",null,null,null,null,null,null,5,null,null,"М","Cex (Д)","М;Cex (Д)","Нет","ГАНК-4М для определения: Метилдиэтаноламин (Р)",102272,1022722,"ГАНК-4СEx (Д) для определения: Метилдиэтаноламин (Р)","Д",1026272,"ГАНК-4ФEx (Д) для определения: Метилдиэтаноламин (Р)","Нет"]
["Р : Олефины С8-С10 (по октену) (Р) 50 - 2000 мг/м3",22732,"50 - 2000 мг/м3","Р","Д",null,null,null,null,"АР4","В-во","Нет","Д","Д","Нет","Д","Д","Д","Олефины С8-С10 (по октену) (Р)",null,null,null,null,null,null,100,null,null,"М","Cex (Д)","М;Cex (Д)","Нет","ГАНК-4М для определения: Олефины С8-С10 (по октену) (Р)",102273,1022732,"ГАНК-4СEx (Д) для определения: Олефины С8-С10 (по октену) (Р)","Д",1026273,"ГАНК-4ФEx (Д) для определения: Олефины С8-С10 (по октену) (Р)","Нет"]
["Р : 1,1,2-трихлорэтан (Р) 0,5 - 400 мг/м3",22742,"0,5 - 400 мг/м3","Р","Д",null,null,null,null,"АР4","В-во","Нет","Д","Д","Нет","Д","Д","Д","1,1,2-трихлорэтан (Р)",null,null,null,null,null,null,1,null,null,"М","Cex (Д)","М;Cex (Д)","Нет","ГАНК-4М для определения: 1,1,2-трихлорэтан (Р)",102274,1022742,"ГАНК-4СEx (Д) для определения: 1,1,2-трихлорэтан (Р)","Д",1026274,"ГАНК-4ФEx (Д) для определения: 1,1,2-трихлорэтан (Р)","Нет"]
["Р : Дициклопентадиен (Р) 0,5 - 20 мг/м3",22752,"0,5 - 20 мг/м3","Р","Д",null,null,null,null,"АР4","В-во","Нет","Д","Д","Нет","Д","Д","Д","Дициклопентадиен (Р)",null,null,null,null,null,null,1,null,null,"М","Cex (Д)","М;Cex (Д)","Нет","ГАНК-4М для определения: Дициклопентадиен (Р)",102275,1022752,"ГАНК-4СEx (Д) для определения: Дициклопентадиен (Р)","Д",1026275,"ГАНК-4ФEx (Д) для определения: Дициклопентадиен (Р)","Нет"]
["Р : Циклогексан (Р) 40 - 1600 мг/м3",22762,"40 - 1600 мг/м3","Р","Д",null,null,null,null,"АР4","В-во","Нет","Д","Д","Нет","Д","Д","Д","Циклогексан (Р)",null,null,null,null,null,null,80,null,null,"М","Cex (Д)","М;Cex (Д)","Нет","ГАНК-4М для определения: Циклогексан (Р)",102276,1022762,"ГАНК-4СEx (Д) для определения: Циклогексан (Р)","Д",1026276,"ГАНК-4ФEx (Д) для определения: Циклогексан (Р)","Нет"]
["Р : Пары нефти (по сольвенту) (Р) 50 - 2000 мг/м3",22772,"50 - 2000 мг/м3","Р","Д",null,null,null,null,"АР4","В-во","Нет","Д","Д","Нет","Д","Д","Д","Пары нефти (по сольвенту) (Р)",null,null,null,null,null,null,100,null,null,"М","Cex (Д)","М;Cex (Д)","Нет","ГАНК-4М для определения: Пары нефти (по сольвенту) (Р)",102277,1022772,"ГАНК-4СEx (Д) для определения: Пары нефти (по сольвенту) (Р)","Д",1026277,"ГАНК-4ФEx (Д) для определения: Пары нефти (по сольвенту) (Р)","Нет"]
["Р : Малеиновый ангидрид (Р) 0,5 - 10 мг/м3",22782,"0,5 - 10 мг/м3","Р","Х",null,null,null,null,"АР4","В-во","Нет","Х","Х","Нет","Х","Х","Нет","Малеиновый ангидрид (Р)",null,null,null,null,null,null,1,null,null,"С","Cex (Х)","С;Cex (Х)","ГАНК-4С для определения: Малеиновый ангидрид (Р)","Нет",102278,1022782,"ГАНК-4СEx (Х) для определения: Малеиновый ангидрид (Р)","Х",1026278,"ГАНК-4ФEx (Х) для определения: Малеиновый ангидрид (Р)","Нет"]
["Р : Хлорид железа (Р) 0,5 - 10 мг/м3",22802,"0,5 - 10 мг/м3","Р","Х",null,null,null,null,"АР5","В-во","Нет","Х","Х","Нет","Х","Х","Нет","Хлорид железа (Р)",null,null,null,null,null,null,1,null,null,"С","Cex (Х)","С;Cex (Х)","ГАНК-4С для определения: Хлорид железа (Р)","Нет",102280,1022802,"ГАНК-4СEx (Х) для определения: Хлорид железа (Р)","Х",1026280,"ГАНК-4ФEx (Х) для определения: Хлорид железа (Р)","Нет"]
["Р : Сульфат алюминия (Р) 0,5 - 10 мг/м3",22812,"0,5 - 10 мг/м3","Р","Х",null,null,null,null,"АР5","В-во","Нет","Х","Х","Нет","Х","Х","Нет","Сульфат алюминия (Р)",null,null,null,null,null,null,1,null,null,"С","Cex (Х)","С;Cex (Х)","ГАНК-4С для определения: Сульфат алюминия (Р)","Нет",102281,1022812,"ГАНК-4СEx (Х) для определения: Сульфат алюминия (Р)","Х",1026281,"ГАНК-4ФEx (Х) для определения: Сульфат алюминия (Р)","Нет"]
["Р : Гидроксид кальция (Р) 1 - 40 мг/м3",22822,"1 - 40 мг/м3","Р","Х",null,null,null,null,"АР5","В-во","Нет","Х","Х","Нет","Х","Х","Нет","Гидроксид кальция (Р)",null,null,null,null,null,null,2,null,null,"С","Cex (Х)","С;Cex (Х)","ГАНК-4С для определения: Гидроксид кальция (Р)","Нет",102282,{"$f":"IF(AC262=\"Нет\",\"Нет\",AH262*10+2)","v":1022822},"ГАНК-4СEx (Х) для определения: Гидроксид кальция (Р)","Х",1026282,"ГАНК-4ФEx (Х) для определения: Гидроксид кальция (Р)","Да"]
["Р : Марганец и соединения (Р) 1 - 40 мг/м3",22832,"1 - 40 мг/м3","Р","Х",null,null,null,null,"АР5","В-во","Нет","Х","Х","Нет","Х","Х","Нет","Марганец и соединения (Р)",null,null,null,null,null,null,2,null,null,"С","Cex (Х)","С;Cex (Х)","ГАНК-4С для определения: Марганец и соединения (Р)","Нет",102283,1022832,"ГАНК-4СEx (Х) для определения: Марганец и соединения (Р)","Х",1026283,"ГАНК-4ФEx (Х) для определения: Марганец и соединения (Р)","Нет"]
["Р : Аэрозоль сварочный (по марганцу) (Р) 0,1 - 4 мг/м3",22842,"0,1 - 4 мг/м3","Р","Х",null,null,null,null,"АР5","В-во","Нет","Х","Х","Нет","Х","Х","Нет","Аэрозоль сварочный (по марганцу) (Р)",null,null,null,null,null,null,0.2,null,null,"С","Cex (Х)","С;Cex (Х)","ГАНК-4С для определения: Аэрозоль сварочный (по марганцу) (Р)","Нет",102284,1022842,"ГАНК-4СEx (Х) для определения: Аэрозоль сварочный (по марганцу) (Р)","Х",1026284,"ГАНК-4ФEx (Х) для определения: Аэрозоль сварочный (по марганцу) (Р)","Нет"]
["Р : Хром (VI) триоксид (Р) 0,005 - 0,2 мг/м3",22852,"0,005 - 0,2 мг/м3","Р","Х",null,null,null,null,"АР5","В-во","Нет","Х","Х","Нет","Х","Х","Нет","Хром (VI) триоксид (Р)",null,null,null,null,null,null,0.01,null,null,"С","Cex (Х)","С;Cex (Х)","ГАНК-4С для определения: Хром (VI) триоксид (Р)","Нет",102285,1022852,"ГАНК-4СEx (Х) для определения: Хром (VI) триоксид (Р)","Х",1026285,"ГАНК-4ФEx (Х) для определения: Хром (VI) триоксид (Р)","Нет"]
["Р : Железо и соединения (Р) 5 - 200 мг/м3",22882,"5 - 200 мг/м3","Р","Х",null,null,null,null,"АР5","В-во","Нет","Х","Х","Нет","Х","Х","Нет","Железо и соединения (Р)",null,null,null,null,null,null,10,null,null,"С","Cex (Х)","С;Cex (Х)","ГАНК-4С для определения: Железо и соединения (Р)","Нет",102288,1022882,"ГАНК-4СEx (Х) для определения: Железо и соединения (Р)","Х",1026288,"ГАНК-4ФEx (Х) для определения: Железо и соединения (Р)","Нет"]
["Р : Алюминий и соединения (Р) 0,1 - 2,5 мг/м3",22892,"0,1 - 2,5 мг/м3","Р","Х",null,null,null,null,"АР5","В-во","Нет","Х","Х","Нет","Х","Х","Нет","Алюминий и соединения (Р)",null,null,null,null,null,null,0.2,null,null,"С","Cex (Х)","С;Cex (Х)","ГАНК-4С для определения: Алюминий и соединения (Р)","Нет",102289,1022892,"ГАНК-4СEx (Х) для определения: Алюминий и соединения (Р)","Х",1026289,"ГАНК-4ФEx (Х) для определения: Алюминий и соединения (Р)","Нет"]
["Р : Медь и соединения (Р) 0,25 - 10 мг/м3",22912,"0,25 - 10 мг/м3","Р","Х",null,null,null,null,"АР5","В-во","Нет","Х","Х","Нет","Х","Х","Нет","Медь и соединения (Р)",null,null,null,null,null,null,0.5,null,null,"С","Cex (Х)","С;Cex (Х)","ГАНК-4С для определения: Медь и соединения (Р)","Нет",102291,1022912,"ГАНК-4СEx (Х) для определения: Медь и соединения (Р)","Х",1026291,"ГАНК-4ФEx (Х) для определения: Медь и соединения (Р)","Нет"]
["АР : 2,4-толуилендиизоцианат (АР) 0,02 - 1,0 мг/м3",22923,"0,02 - 1,0 мг/м3","АР","Х",null,null,null,null,"АР6","В-во","Нет","Нет","Х","Нет","Нет","Х","Нет","2,4-толуилендиизоцианат (АР)",null,null,null,null,null,null,0.04,null,null,"С","Cex (Х)","С;Cex (Х)","ГАНК-4С для определения: 2,4-толуилендиизоцианат (АР)","Нет",{"$f":"102000+(B269-2)/10-2000","v":102292.1},{"$f":"IF(AC269=\"Нет\",\"Нет\",AH269*10+2)","v":1022923},"ГАНК-4СEx (Х) для определения: 2,4-толуилендиизоцианат (АР)","Х",1026292.1,"ГАНК-4ФEx (Х) для определения: 2,4-толуилендиизоцианат (АР)","Нет"]
["АР : Метилендифенилдиизоцианат (МДИ) (АР) 0,05 - 10 мг/м3",22933,"0,05 - 10 мг/м3","АР","Х",null,null,null,null,"АР6","В-во","Нет","Нет","Х","Нет","Нет","Х","Нет","Метилендифенилдиизоцианат (МДИ) (АР)",null,null,null,null,null,null,0.1,null,null,"С","Cex (Х)","С;Cex (Х)","ГАНК-4С для определения: Метилендифенилдиизоцианат (МДИ) (АР)","Нет",102293.1,1022933,"ГАНК-4СEx (Х) для определения: Метилендифенилдиизоцианат (МДИ) (АР)","Х",1026293.1,"ГАНК-4ФEx (Х) для определения: Метилендифенилдиизоцианат (МДИ) (АР)","Нет"]
["Р: Хром (III) сернокислый 6-водный (Р) 0,01 - 0,4 мг/м3",22942,"0,01 - 0,4 мг/м3","Р","Х",null,null,null,null,"АР7","В-во","Нет","Х","Х","Нет","Х","Х","Нет","Хром (III) сернокислый 6-водный (Р)",null,null,null,null,null,null,0.02,null,null,"С",{"$f":"IF(AC271=\"НЕТ\",\"Нет\",IF(AC271=\"С\",\"Cex (Х)\",IF(AC271=\"М\",\"Cex (Д)\",\" \")))","v":"Cex (Х)"},{"$f":"CONCATENATE(IF(AC271=\"Нет\",\"\",CONCATENATE(AC271,\";\")),IF(AD271=\"Нет\",\"\",AD271))","v":"С;Cex (Х)"},"ГАНК-4С для определения: Хром (III) сернокислый 6-водный (Р)","Нет",102294,1022942,"ГАНК-4СEx (Х) для определения: Хром (III) сернокислый 6-водный (Р)","Х",1026294,"ГАНК-4ФEx (Х) для определения: Хром (III) сернокислый 6-водный (Р)","Нет"]
["Р: Щавелевая кислота (по муравьиной кислоте) (Р) 0,5 - 20,0 мг/м3",22952,"0,5 - 20,0 мг/м3","Р","Х",null,null,null,null,"АР7","В-во","Нет","Х","Х","Нет","Х","Х","Нет","Щавелевая кислота (по муравьиной кислоте) (Р)",null,null,null,null,null,null,1,null,null,"С","Cex (Х)","С;Cex (Х)","ГАНК-4С для определения: Щавелевая кислота (по муравьиной кислоте) (Р)","Нет",102295,1022952,"ГАНК-4СEx (Х) для определения: Щавелевая кислота (по муравьиной кислоте) (Р)","Х",1026295,"ГАНК-4ФEx (Х) для определения: Щавелевая кислота (по муравьиной кислоте) (Р)","Нет"]
["Р: трет-Бутилметиловый эфир (Р) 150 - 6000 мг/м3",22962,"150 - 6000 мг/м3","Р","Д",null,null,null,null,"АР7","В-во","Нет","Д","Д","Нет","Д","Д","Д","трет-Бутилметиловый эфир (Р)",null,null,null,null,null,null,300,null,null,"М","Cex (Д)","М;Cex (Д)","Нет","ГАНК-4М для определения: трет-Бутилметиловый эфир (Р)",102296,1022962,"ГАНК-4СEx (Д) для определения: трет-Бутилметиловый эфир (Р)","Д",1026296,"ГАНК-4ФEx (Д) для определения: трет-Бутилметиловый эфир (Р)","Нет"]
["Р: Фосфин (Р) 0,05 - 2 мг/м3",22982,"0,05 - 2 мг/м3","Р","Х",null,null,null,null,"АР9","В-во","нет","Х","Х","нет","Х","Х","Д","Фосфин (Р)",null,null,null,null,null,null,0.1,null,null,"С",{"$f":"IF(AC274=\"НЕТ\",\"Нет\",IF(AC274=\"С\",\"Cex (Х)\",IF(AC274=\"М\",\"Cex (Д)\",\" \")))","v":"Cex (Х)"},{"$f":"CONCATENATE(IF(AC274=\"Нет\",\"\",CONCATENATE(AC274,\";\")),IF(AD274=\"Нет\",\"\",AD274))","v":"С;Cex (Х)"},"ГАНК-4С для определения: Фосфин (Р)","Нет",102298,1022982,"ГАНК-4СEx (Х) для определения: Фосфин (Р)","Х",1026298,"ГАНК-4ФEx (Х) для определения: Фосфин (Р)","Нет"]
["Р: Фосген (Р) 0,25 - 10 мг/м3",22992,"0,25 - 10 мг/м3","Р","Д",null,null,null,null,"АР9","В-во","нет","Д","Д","нет","Д","Д","Д","Фосген (Р)",null,null,null,null,null,null,0.5,null,null,"М",{"$f":"IF(AC275=\"НЕТ\",\"Нет\",IF(AC275=\"С\",\"Cex (Х)\",IF(AC275=\"М\",\"Cex (Д)\",\" \")))","v":"Cex (Д)"},{"$f":"CONCATENATE(IF(AC275=\"Нет\",\"\",CONCATENATE(AC275,\";\")),IF(AD275=\"Нет\",\"\",AD275))","v":"М;Cex (Д)"},"Нет","ГАНК-4М для определения: Фосген (Р)",102299,1022992,"ГАНК-4СEx (Д) для определения: Фосген (Р)","Д",1026299,"ГАНК-4ФEx (Д) для определения: Фосген (Р)","Нет"]
["Р: Ацетилен (Р) 150 - 60000 мг/м3",23002,"150 - 60000 мг/м3","Р","Д - Ex!",null,null,null,null,"АР9","В-во","нет","Д","Д","нет","Д","Д","Д","Ацетилен (Р)",null,null,null,null,null,null,300,null,null,"Нет","Cex (Д)","Cex (Д)","Нет","Нет",102300,"Нет",{"$f":"CONCATENATE(\"ГАНК-4СEx (Д) для определения: \",S276)","v":"ГАНК-4СEx (Д) для определения: Ацетилен (Р)"},"Д",1026300,{"$f":"CONCATENATE(\"ГАНК-4ФEx (Д) для определения: \",S276)","v":"ГАНК-4ФEx (Д) для определения: Ацетилен (Р)"},"Нет"]
["Р: МИБК (метил изобутил кетон) (Р) 10 - 400 мг/м3",23012,"10 - 400 мг/м3","Р","Д",null,null,null,null,"АР9","В-во","нет","Д","Д","нет","Д","Д","Д","МИБК (метил изобутил кетон) (Р)",null,null,null,null,null,null,20,null,null,"М",{"$f":"IF(AC277=\"НЕТ\",\"Нет\",IF(AC277=\"С\",\"Cex (Х)\",IF(AC277=\"М\",\"Cex (Д)\",\" \")))","v":"Cex (Д)"},{"$f":"CONCATENATE(IF(AC277=\"Нет\",\"\",CONCATENATE(AC277,\";\")),IF(AD277=\"Нет\",\"\",AD277))","v":"М;Cex (Д)"},"Нет","ГАНК-4М для определения: МИБК (метил изобутил кетон) (Р)",102301,1023012,{"$f":"IF(AC277=\"М\",CONCATENATE(\"ГАНК-4СEx (Д) для определения: \",S277),IF(AC277=\"С\",CONCATENATE(\"ГАНК-4СEx (Х) для определения: \",S277),\"Нет\"))","v":"ГАНК-4СEx (Д) для определения: МИБК (метил изобутил кетон) (Р)"},"Д",{"$f":"IF(AC277=\"нет\",\"Нет\",1026000+(B277-2)/10-2000)","v":1026301},{"$f":"IF(AC277=\"М\",CONCATENATE(\"ГАНК-4ФEx (Д) для определения: \",S277),IF(AC277=\"С\",CONCATENATE(\"ГАНК-4ФEx (Х) для определения: \",S277),\"Нет\"))","v":"ГАНК-4ФEx (Д) для определения: МИБК (метил изобутил кетон) (Р)"},"Нет"]
["Р: Оксид диазота (Р) 10 - 200 мг/м3",23022,"10 - 200 мг/м3","Р","Д",null,null,null,null,"АР9","В-во","нет","Д","Д","нет","Д","Д","Д","Оксид диазота (Р)",null,null,null,null,null,null,20,null,null,"М",{"$f":"IF(AC278=\"НЕТ\",\"Нет\",IF(AC278=\"С\",\"Cex (Х)\",IF(AC278=\"М\",\"Cex (Д)\",\" \")))","v":"Cex (Д)"},{"$f":"CONCATENATE(IF(AC278=\"Нет\",\"\",CONCATENATE(AC278,\";\")),IF(AD278=\"Нет\",\"\",AD278))","v":"М;Cex (Д)"},"Нет","ГАНК-4М для определения: Оксид диазота (Р)",102302,1023022,"ГАНК-4СEx (Д) для определения: Оксид диазота (Р)","Д",1026302,"ГАНК-4ФEx (Д) для определения: Оксид диазота (Р)","Нет"]
["Р: Лимонная кислота (Р) 0,5 - 20 мг/м3",23032,"0,5 - 20 мг/м3","Р","Х",null,null,null,null,"АР8","В-во","нет","Х","Х","нет","Х","Х","Д","Лимонная кислота (Р)",null,null,null,null,null,null,1,null,null,"С",{"$f":"IF(AC279=\"НЕТ\",\"Нет\",IF(AC279=\"С\",\"Cex (Х)\",IF(AC279=\"М\",\"Cex (Д)\",\" \")))","v":"Cex (Х)"},{"$f":"CONCATENATE(IF(AC279=\"Нет\",\"\",CONCATENATE(AC279,\";\")),IF(AD279=\"Нет\",\"\",AD279))","v":"С;Cex (Х)"},"ГАНК-4С для определения: Лимонная кислота (Р)","Нет",102303,1023032,"ГАНК-4СEx (Х) для определения: Лимонная кислота (Р)","Х",1026303,"ГАНК-4ФEx (Х) для определения: Лимонная кислота (Р)","Нет"]
["Р: Кобальт сернокислый семиводный (Р) 0,5 - 20 мг/м3",23042,"0,5 - 20 мг/м3","Р","Х",null,null,null,null,"АР8","В-во","нет","Х","Х","нет","Х","Х","Д","Кобальт сернокислый семиводный (Р)",null,null,null,null,null,null,1,null,null,"С",{"$f":"IF(AC280=\"НЕТ\",\"Нет\",IF(AC280=\"С\",\"Cex (Х)\",IF(AC280=\"М\",\"Cex (Д)\",\" \")))","v":"Cex (Х)"},{"$f":"CONCATENATE(IF(AC280=\"Нет\",\"\",CONCATENATE(AC280,\";\")),IF(AD280=\"Нет\",\"\",AD280))","v":"С;Cex (Х)"},"ГАНК-4С для определения: Кобальт сернокислый семиводный (Р)","Нет",102304,1023042,"ГАНК-4СEx (Х) для определения: Кобальт сернокислый семиводный (Р)","Х",1026304,"ГАНК-4ФEx (Х) для определения: Кобальт сернокислый семиводный (Р)","Нет"]
["Р: Цинк сульфат (в пересчете на цинк) (Р) 0,004 - 0,16 мг/м3",23052,"0,004 - 0,16 мг/м3","Р","Х",null,null,null,null,"АР8","В-во","нет","Х","Х","нет","Х","Х","Д","Цинк сульфат (в пересчете на цинк) (Р)",null,null,null,null,null,null,0.08,null,null,"С",{"$f":"IF(AC281=\"НЕТ\",\"Нет\",IF(AC281=\"С\",\"Cex (Х)\",IF(AC281=\"М\",\"Cex (Д)\",\" \")))","v":"Cex (Х)"},{"$f":"CONCATENATE(IF(AC281=\"Нет\",\"\",CONCATENATE(AC281,\";\")),IF(AD281=\"Нет\",\"\",AD281))","v":"С;Cex (Х)"},"ГАНК-4С для определения: Цинк сульфат (в пересчете на цинк) (Р)","Нет",102305,1023052,"ГАНК-4СEx (Х) для определения: Цинк сульфат (в пересчете на цинк) (Р)","Х",1026305,"ГАНК-4ФEx (Х) для определения: Цинк сульфат (в пересчете на цинк) (Р)","Нет"]
["Р: Нитрит натрия/ нитрит иона (Р) 0,05 - 4 мг/м3",23062,"0,05 - 4 мг/м3","Р","Х",null,null,null,null,"АР8","В-во","нет","Х","Х","нет","Х","Х","Д","Нитрит натрия/ нитрит иона (Р)",null,null,null,null,null,null,0.1,null,null,"С",{"$f":"IF(AC282=\"НЕТ\",\"Нет\",IF(AC282=\"С\",\"Cex (Х)\",IF(AC282=\"М\",\"Cex (Д)\",\" \")))","v":"Cex (Х)"},{"$f":"CONCATENATE(IF(AC282=\"Нет\",\"\",CONCATENATE(AC282,\";\")),IF(AD282=\"Нет\",\"\",AD282))","v":"С;Cex (Х)"},"ГАНК-4С для определения: Нитрит натрия/ нитрит иона (Р)","Нет",102306,1023062,"ГАНК-4СEx (Х) для определения: Нитрит натрия/ нитрит иона (Р)","Х",1026306,"ГАНК-4ФEx (Х) для определения: Нитрит натрия/ нитрит иона (Р)","Нет"]
["Р: Кальций оксид (Р) 0,5 - 20 мг/м3",23082,"0,5 - 20 мг/м3","Р","Х",null,null,null,null,"АР11","В-во","нет","Х","Х","нет","Х","Х","нет","Кальций оксид (Р)",null,null,null,null,null,"СаО",1,null,null,"С",{"$f":"IF(AC283=\"НЕТ\",\"Нет\",IF(AC283=\"С\",\"Cex (Х)\",IF(AC283=\"М\",\"Cex (Д)\",\" \")))","v":"Cex (Х)"},{"$f":"CONCATENATE(IF(AC283=\"Нет\",\"\",CONCATENATE(AC283,\";\")),IF(AD283=\"Нет\",\"\",AD283))","v":"С;Cex (Х)"},"ГАНК-4С для определения: Кальций оксид (Р)","Нет",102308,1023082,"ГАНК-4СEx (Х) для определения: Кальций оксид (Р)","Х",1026308,"ГАНК-4ФEx (Х) для определения: Кальций оксид (Р)","Нет"]
["Р: Гидросульфит натрия  (Р) 2,5 - 100 мг/м3",23092,"2,5 - 100 мг/м3","Р","Х",null,null,null,null,"АР11","В-во","нет","Х","Х","нет","Х","Х","нет","Гидросульфит натрия  (Р)",null,null,null,null,null,"HNaO3S",5,null,null,"С","Cex (Х)","С;Cex (Х)","ГАНК-4С для определения: Гидросульфит натрия  (Р)","Нет",102309,1023092,"ГАНК-4СEx (Х) для определения: Гидросульфит натрия  (Р)","Х",1026309,"ГАНК-4ФEx (Х) для определения: Гидросульфит натрия  (Р)","Нет"]
["Р: Диметилдитиокарбамат натрия  (Р)  0,25 - 10 мг/м3",23102," 0,25 - 10 мг/м3","Р","Х",null,null,null,null,"АР11","В-во","нет","Х","Х","нет","Х","Х","нет","Диметилдитиокарбамат натрия  (Р)",null,null,null,null,null,"C3H6NNaS2",0.5,null,null,"С","Cex (Х)","С;Cex (Х)","ГАНК-4С для определения: Диметилдитиокарбамат натрия  (Р)","Нет",102310,1023102,"ГАНК-4СEx (Х) для определения: Диметилдитиокарбамат натрия  (Р)","Х",1026310,"ГАНК-4ФEx (Х) для определения: Диметилдитиокарбамат натрия  (Р)","Нет"]
["Р: Тетраэтиленгликоль  (Р)  5 - 200 мг/м3",23112," 5 - 200 мг/м3","Р","Х",null,null,null,null,"АР11","В-во","нет","Х","Х","нет","Х","Х","нет","Тетраэтиленгликоль  (Р)",null,null,null,null,null,"С8Н18О5",10,null,null,"С","Cex (Х)","С;Cex (Х)","ГАНК-4С для определения: Тетраэтиленгликоль  (Р)","Нет",102311,1023112,"ГАНК-4СEx (Х) для определения: Тетраэтиленгликоль  (Р)","Х",1026311,"ГАНК-4ФEx (Х) для определения: Тетраэтиленгликоль  (Р)","Нет"]
["Р: Гидроксид лития  (Р) 0,01 - 0,4 мг/м3",23122,"0,01 - 0,4 мг/м3","Р","Х",null,null,null,null,"АР11","В-во","нет","Х","Х","нет","Х","Х","нет","Гидроксид лития  (Р)",null,null,null,null,null,"LiOH",0.02,null,null,"С","Cex (Х)","С;Cex (Х)","ГАНК-4С для определения: Гидроксид лития  (Р)","Нет",102312,1023122,"ГАНК-4СEx (Х) для определения: Гидроксид лития  (Р)","Х",1026312,"ГАНК-4ФEx (Х) для определения: Гидроксид лития  (Р)","Да"]
["Р: Бутилксантогенат калия  (Р) 5 - 200 мг/м3",23132,"5 - 200 мг/м3","Р","Х",null,null,null,null,"АР11","В-во","нет","Х","Х","нет","Х","Х","нет","Бутилксантогенат калия  (Р)",null,null,null,null,null,"С5H9KOS2",10,null,null,"С","Cex (Х)","С;Cex (Х)","ГАНК-4С для определения: Бутилксантогенат калия  (Р)","Нет",102313,1023132,"ГАНК-4СEx (Х) для определения: Бутилксантогенат калия  (Р)","Х",1026313,"ГАНК-4ФEx (Х) для определения: Бутилксантогенат калия  (Р)","Нет"]
["Р: Малеиновая кислота  (Р) 0,1 - 4 мг/м3",23142,"0,1 - 4 мг/м3","Р","Х",null,null,null,null,"АР11","В-во","нет","Х","Х","нет","Х","Х","нет","Малеиновая кислота  (Р)",null,null,null,null,null,"С4Н4О4",0.2,null,null,"С","Cex (Х)","С;Cex (Х)","ГАНК-4С для определения: Малеиновая кислота  (Р)","Нет",102314,1023142,"ГАНК-4СEx (Х) для определения: Малеиновая кислота  (Р)","Х",1026314,"ГАНК-4ФEx (Х) для определения: Малеиновая кислота  (Р)","Нет"]
["Р: Триэтилфосфат (по фосфорной кислоте)  (Р) 0,5 - 20 мг/м3",23152,"0,5 - 20 мг/м3","Р","Д",null,null,null,null,"АР11","В-во","нет","Д","Д","нет","Д","Д","Д","Триэтилфосфат (по фосфорной кислоте)  (Р)",null,null,null,null,null,"C6H15O4P",1,null,null,"М","Cex (Д)","М;Cex (Д)","Нет","ГАНК-4М для определения: Триэтилфосфат (по фосфорной кислоте)  (Р)",102315,1023152,"ГАНК-4СEx (Д) для определения: Триэтилфосфат (по фосфорной кислоте)  (Р)","Д",1026315,"ГАНК-4ФEx (Д) для определения: Триэтилфосфат (по фосфорной кислоте)  (Р)","Нет"]
["Р: Натрия сульфид (натрий сернистый) (Р) 0,1 - 4 мг/м3",23162,"0,1 - 4 мг/м3","Р","Х",null,null,null,null,"АР11","В-во","нет","Х","Х","нет","Х","Х","нет","Натрия сульфид (натрий сернистый) (Р)",null,null,null,null,null,"Na2S",0.2,null,null,"С","Cex (Х)","С;Cex (Х)","ГАНК-4С для определения: Натрия сульфид (натрий сернистый) (Р)","Нет",102316,1023162,"ГАНК-4СEx (Х) для определения: Натрия сульфид (натрий сернистый) (Р)","Х",1026316,"ГАНК-4ФEx (Х) для определения: Натрия сульфид (натрий сернистый) (Р)","Нет"]
["Р: Кадмий и соли кадмия (Р)  0,025 - 1 мг/м3",23172," 0,025 - 1 мг/м3","Р","Х",null,null,null,null,"АР11","В-во","нет","Х","Х","нет","Х","Х","нет","Кадмий и соли кадмия (Р)",null,null,null,null,null,"-",0.05,null,null,"С","Cex (Х)","С;Cex (Х)","ГАНК-4С для определения: Кадмий и соли кадмия (Р)","Нет",102317,1023172,"ГАНК-4СEx (Х) для определения: Кадмий и соли кадмия (Р)","Х",1026317,"ГАНК-4ФEx (Х) для определения: Кадмий и соли кадмия (Р)","Нет"]
["АР: Трибутилфосфат (АР) 0,005 - 10 мг/м3",23183,"0,005 - 10 мг/м3","АР","Д",null,null,null,null,"АР11","В-во","Д","Д","Д","Д","Д","Д","Д","Трибутилфосфат (АР)",null,null,null,null,null,"С12Н27О4Р",0.01,null,null,"М","Cex (Д)","М;Cex (Д)","Нет","ГАНК-4М для определения: Трибутилфосфат (АР)",102318.1,1023183,"ГАНК-4СEx (Д) для определения: Трибутилфосфат (АР)","Д",1026318,"ГАНК-4ФEx (Д) для определения: Трибутилфосфат (АР)","Нет"]
["Р: Неорганические соединения по ртути (Р) 0,025 - 1 мг/м3",23192,"0,025 - 1 мг/м3","Р","Х",null,null,null,null,"АР11","В-во","нет","Х","Х","нет","Х","Х","нет","Неорганические соединения по ртути (Р)",null,null,null,null,null,"-",0.05,null,null,"С","Cex (Х)","С;Cex (Х)","ГАНК-4С для определения: Неорганические соединения по ртути (Р)","Нет",102319,1023192,"ГАНК-4СEx (Х) для определения: Неорганические соединения по ртути (Р)","Х",{"$f":"IF(AC294=\"нет\",\"Нет\",1026000+(B294-2)/10-2000)","v":1026319},"ГАНК-4ФEx (Х) для определения: Неорганические соединения по ртути (Р)","Нет"]
["Р: Трехокись серы (Р) 0,5 - 20 мг/м3",23202,"0,5 - 20 мг/м3","Р","Х",null,null,null,null,"АР11","В-во","нет","Х","Х","нет","Х","Х","нет","Трехокись серы (Р)",null,null,null,null,null,"SO3",1,null,null,"С","Cex (Х)","С;Cex (Х)","ГАНК-4С для определения: Трехокись серы (Р)","Нет",102320,1023202,"ГАНК-4СEx (Х) для определения: Трехокись серы (Р)","Х",1026320,"ГАНК-4ФEx (Х) для определения: Трехокись серы (Р)","Нет"]
["Р: Диоксановый спирт (Р) 5 - 200 мг/м3",23212,"5 - 200 мг/м3","Р","Д",null,null,null,null,"АР10","В-во","нет","Д","Д","нет","Д","Д","Д","Диоксановый спирт (Р)",null,null,null,null,null,"С7Н14О3",10,null,null,"М","Cex (Д)","М;Cex (Д)","Нет","ГАНК-4М для определения: Диоксановый спирт (Р)",102321,1023212,"ГАНК-4СEx (Д) для определения: Диоксановый спирт (Р)","Д",1026321,"ГАНК-4ФEx (Д) для определения: Диоксановый спирт (Р)","Нет"]
["Р: Бромистый водород (Р) 0,5 - 20 мг/м3",23222,"0,5 - 20 мг/м3","Р","Д",null,null,null,null,"АР10","В-во","нет","Д","Д","нет","Д","Д","Д","Бромистый водород (Р)",null,null,null,null,null,"HBr",1,null,null,"М","Cex (Д)","М;Cex (Д)","Нет","ГАНК-4М для определения: Бромистый водород (Р)",102322,1023222,"ГАНК-4СEx (Д) для определения: Бромистый водород (Р)","Д",1026322,"ГАНК-4ФEx (Д) для определения: Бромистый водород (Р)","Нет"]
["Р: Циклогексиламин (Р) 0,5 - 20 мг/м3",23232,"0,5 - 20 мг/м3","Р","Д",null,null,null,null,"АР10","В-во","нет","Д","Д","нет","Д","Д","Д","Циклогексиламин (Р)",null,null,null,null,null,"C6H13N",1,null,null,"М","Cex (Д)","М;Cex (Д)","Нет","ГАНК-4М для определения: Циклогексиламин (Р)",102323,1023232,"ГАНК-4СEx (Д) для определения: Циклогексиламин (Р)","Д",1026323,"ГАНК-4ФEx (Д) для определения: Циклогексиламин (Р)","Нет"]
["Р: TEB триэтилборан (Р) 17,5 - 700 мг/м3",23242,"17,5 - 700 мг/м3","Р","Д",null,null,null,null,"АР10","В-во","нет","Д","Д","нет","Д","Д","Д","TEB триэтилборан (Р)",null,null,null,null,null,"C6H15ВО3",35,null,null,"М","Cex (Д)","М;Cex (Д)","Нет","ГАНК-4М для определения: TEB триэтилборан (Р)",102324,1023242,"ГАНК-4СEx (Д) для определения: TEB триэтилборан (Р)","Д",1026324,"ГАНК-4ФEx (Д) для определения: TEB триэтилборан (Р)","Нет"]
["Р: Тетраэтоксисилан (Р) 10 - 400 мг/м3",23252,"10 - 400 мг/м3","Р","Д",null,null,null,null,"АР10","В-во","нет","Д","Д","нет","Д","Д","Д","Тетраэтоксисилан (Р)",null,null,null,null,null,"С8Н20О4Si",20,null,null,"М","Cex (Д)","М;Cex (Д)","Нет","ГАНК-4М для определения: Тетраэтоксисилан (Р)",102325,1023252,"ГАНК-4СEx (Д) для определения: Тетраэтоксисилан (Р)","Д",1026325,"ГАНК-4ФEx (Д) для определения: Тетраэтоксисилан (Р)","Нет"]
["Р: Трет-Бутанол (Р) 5 - 200 мг/м3",23262,"5 - 200 мг/м3","Р","Д",null,null,null,null,"АР10","В-во","нет","Д","Д","нет","Д","Д","Д","Трет-Бутанол (Р)",null,null,null,null,null,"C4H10O",10,null,null,"М","Cex (Д)","М;Cex (Д)","Нет","ГАНК-4М для определения: Трет-Бутанол (Р)",102326,1023262,"ГАНК-4СEx (Д) для определения: Трет-Бутанол (Р)","Д",1026326,"ГАНК-4ФEx (Д) для определения: Трет-Бутанол (Р)","Нет"]
["Р: Трифторид бора (по фтороводороду) (Р) 0,5 - 20 мг/м3",23272,"0,5 - 20 мг/м3","Р","Д",null,null,null,null,"АР10","В-во","нет","Д","Д","нет","Д","Д","Д","Трифторид бора (по фтороводороду) (Р)",null,null,null,null,null,"BF3",1,null,null,"М","Cex (Д)","М;Cex (Д)","Нет","ГАНК-4М для определения: Трифторид бора (по фтороводороду) (Р)",102327,1023272,"ГАНК-4СEx (Д) для определения: Трифторид бора (по фтороводороду) (Р)","Д",1026327,"ГАНК-4ФEx (Д) для определения: Трифторид бора (по фтороводороду) (Р)","Нет"]
["Р: Трихлорид бора (по хлороводороду) (Р) 0,5 - 20 мг/м3",23282,"0,5 - 20 мг/м3","Р","Д",null,null,null,null,"АР10","В-во","нет","Д","Д","нет","Д","Д","Д","Трихлорид бора (по хлороводороду) (Р)",null,null,null,null,null,"BCl3",1,null,null,"М","Cex (Д)","М;Cex (Д)","Нет","ГАНК-4М для определения: Трихлорид бора (по хлороводороду) (Р)",102328,1023282,"ГАНК-4СEx (Д) для определения: Трихлорид бора (по хлороводороду) (Р)","Д",1026328,"ГАНК-4ФEx (Д) для определения: Трихлорид бора (по хлороводороду) (Р)","Нет"]
["Р: Дихлорсилан (по хлороводороду) (Р) 2,5 - 100 мг/м3",23292,"2,5 - 100 мг/м3","Р","Д",null,null,null,null,"АР10","В-во","нет","Д","Д","нет","Д","Д","Д","Дихлорсилан (по хлороводороду) (Р)",null,null,null,null,null,"Сl2H2Si",5,null,null,"М","Cex (Д)","М;Cex (Д)","Нет","ГАНК-4М для определения: Дихлорсилан (по хлороводороду) (Р)",102329,1023292,"ГАНК-4СEx (Д) для определения: Дихлорсилан (по хлороводороду) (Р)","Д",1026329,"ГАНК-4ФEx (Д) для определения: Дихлорсилан (по хлороводороду) (Р)","Нет"]
["Р: Нитрил акриловой кислоты (Р) 0,0005 - 0,02 мг/м3",23402,"0,0005 - 0,02 мг/м3","Р","Д",null,null,null,null,"АР10","В-во","нет","Д","Д","нет","Д","Д","Д","Нитрил акриловой кислоты (Р)",null,null,null,null,null,"С3H3N",1E-3,null,null,"М","Cex (Д)","М;Cex (Д)","Нет","ГАНК-4М для определения: Нитрил акриловой кислоты (Р)",102340,1023402,"ГАНК-4СEx (Д) для определения: Нитрил акриловой кислоты (Р)","Д",1026340,"ГАНК-4ФEx (Д) для определения: Нитрил акриловой кислоты (Р)","Нет"]
["АР: Моносилан (АР) 0,01 - 50 мг/м3",23423,"0,01 - 50 мг/м3","АР","Д",null,null,null,null,"АР10","В-во","Нет","Нет","Д","Нет","Нет","Д","Д","Моносилан (АР)",null,null,null,null,null,"SiH4",1.25,null,null,"М","Cex (Д)","М;Cex (Д)","Нет","ГАНК-4М для определения: Моносилан (АР)",102342.1,1023423,"ГАНК-4СEx (Д) для определения: Моносилан (АР)","Д",1026342,"ГАНК-4ФEx (Д) для определения: Моносилан (АР)","Нет"]
["Р: Азот трехфтористый (Р) 0,2 - 8 мг/м3",23432,"0,2 - 8 мг/м3","Р","Д",null,null,null,null,"АР10","В-во","Нет","Д","Д","Нет","Д","Д","Д","Азот трехфтористый (Р)",null,null,null,null,null,"F3N",0.4,null,null,"М","Cex (Д)","М;Cex (Д)","Нет","ГАНК-4М для определения: Азот трехфтористый (Р)",102343,1023432,"ГАНК-4СEx (Д) для определения: Азот трехфтористый (Р)","Д",1026343,"ГАНК-4ФEx (Д) для определения: Азот трехфтористый (Р)","Нет"]
["Р: Гексафторэтан (Р) 1500 - 60000 мг/м3",23442,"1500 - 60000 мг/м3","Р","Д",null,null,null,null,"АР10","В-во","Нет","Д","Д","Нет","Д","Д","Д","Гексафторэтан (Р)",null,null,null,null,null,"С2F6",3000,null,null,"М","Cex (Д)","М;Cex (Д)","Нет","ГАНК-4М для определения: Гексафторэтан (Р)",102344,1023442,"ГАНК-4СEx (Д) для определения: Гексафторэтан (Р)","Д",1026344,"ГАНК-4ФEx (Д) для определения: Гексафторэтан (Р)","Нет"]
["Р: Гексафторид вольфрама (Р) 0,25 - 10 мг/м3",23452,"0,25 - 10 мг/м3","Р","Д",40000,40000,null,"Р17",null,"В-во","Нет","Д","Д","Нет","Д","Д","Д","Гексафторид вольфрама (Р)",null,null,null,null,null,"WF6",null,null,null,"М","Cex (Д)","М;Cex (Д)","Нет",{"$f":"IF(AC309=\"М\",CONCATENATE(\"ГАНК-4М для определения: \",S309),IF(AC309=\"С\",CONCATENATE(\"ГАНК-4С для определения: \",S309),\"Нет\"))","v":"ГАНК-4М для определения: Гексафторид вольфрама (Р)"},{"$f":"102000+(B309-2)/10-2000","v":102345},1023452,"ГАНК-4СEx (Д) для определения: Гексафторид вольфрама (Р)","Д",{"$f":"IF(AC309=\"нет\",\"Нет\",1026000+(B309-2)/10-2000)","v":1026345},"ГАНК-4ФEx (Д) для определения: Гексафторид вольфрама (Р)","Нет"]
["Р: Метилфторид (Р) 1,25 - 50 мг/м3",23462,"1,25 - 50 мг/м3","Р","Д",40000,40000,null,"Р17",null,"В-во","Нет","Д","Д","Нет","Д","Д","Д","Метилфторид (Р)",null,null,null,null,null,"CH3F",null,null,null,"М","Cex (Д)","М;Cex (Д)","Нет","ГАНК-4М для определения: Метилфторид (Р)",102346,1023462,"ГАНК-4СEx (Д) для определения: Метилфторид (Р)","Д",1026346,"ГАНК-4ФEx (Д) для определения: Метилфторид (Р)","Нет"]
["Р: Хлорид кремния(IV) (Р) 0,5 - 20 мг/м3",23472,"0,5 - 20 мг/м3","Р","Д",40000,40000,null,"Р17",null,"В-во","Нет","Д","Д","Нет","Д","Д","Д","Хлорид кремния(IV) (Р)",null,null,null,null,null,null,null,null,null,"М","Cex (Д)","М;Cex (Д)","Нет","ГАНК-4М для определения: Хлорид кремния(IV) (Р)",102347,1023472,"ГАНК-4СEx (Д) для определения: Хлорид кремния(IV) (Р)","Д",1026347,"ГАНК-4ФEx (Д) для определения: Хлорид кремния(IV) (Р)","Нет"]
["Р: Оксихлорид фосфора (Р) 0,025 - 1 мг/м3",23482,"0,025 - 1 мг/м3","Р","Д",40000,40000,null,"Р17",null,"В-во","Нет","Д","Д","Нет","Д","Д","Д","Оксихлорид фосфора (Р)",null,null,null,null,null,null,null,null,null,"М","Cex (Д)","М;Cex (Д)","Нет","ГАНК-4М для определения: Оксихлорид фосфора (Р)",102348,1023482,"ГАНК-4СEx (Д) для определения: Оксихлорид фосфора (Р)","Д",1026348,"ГАНК-4ФEx (Д) для определения: Оксихлорид фосфора (Р)","Нет"]
["Р: Фторид кремния(IV) (Р) 0,5 - 20 мг/м3",23492,"0,5 - 20 мг/м3","Р","Д",40000,40000,null,"Р17",null,"В-во","Нет","Д","Д","Нет","Д","Д","Д","Фторид кремния(IV) (Р)",null,null,null,null,null,null,null,null,null,"М","Cex (Д)","М;Cex (Д)","Нет","ГАНК-4М для определения: Фторид кремния(IV) (Р)",102349,1023492,"ГАНК-4СEx (Д) для определения: Фторид кремния(IV) (Р)","Д",1026349,"ГАНК-4ФEx (Д) для определения: Фторид кремния(IV) (Р)","Нет"]
["Р: Хлорид германия(IV) (Р) 0,5 - 20 мг/м3",23502,"0,5 - 20 мг/м3","Р","Д",40000,40000,null,"Р17",null,"В-во","Нет","Д","Д","Нет","Д","Д","Д","Хлорид германия(IV) (Р)",null,null,null,null,null,null,null,null,null,"М","Cex (Д)","М;Cex (Д)","Нет","ГАНК-4М для определения: Хлорид германия(IV) (Р)",102350,1023502,"ГАНК-4СEx (Д) для определения: Хлорид германия(IV) (Р)","Д",1026350,"ГАНК-4ФEx (Д) для определения: Хлорид германия(IV) (Р)","Нет"]
["Р: Трибромид бора (Р) 1 - 40 мг/м3",23512,"1 - 40 мг/м3","Р","Д",40000,40000,null,"Р17",null,"В-во","Нет","Д","Д","Нет","Д","Д","Д","Трибромид бора (Р)",null,null,null,null,null,null,null,null,null,"М","Cex (Д)","М;Cex (Д)","Нет","ГАНК-4М для определения: Трибромид бора (Р)",102351,1023512,"ГАНК-4СEx (Д) для определения: Трибромид бора (Р)","Д",1026351,"ГАНК-4ФEx (Д) для определения: Трибромид бора (Р)","Нет"]
["Р: Бутилхлорид (1-хлорбутан) (Р) 0,25 - 10 мг/м3",20472,"0,25 - 10 мг/м3","Р","Д",40000,40000,null,"Р18",null,"В-во","Нет","Д","Д","Нет","Д","Д","Д","Бутилхлорид (1-хлорбутан) (Р)",null,null,null,null,null,"C4H9Cl",null,null,null,"М","Cex (Д)","М;Cex (Д)","Нет","ГАНК-4М для определения: Бутилхлорид (1-хлорбутан) (Р)",102047,1020472,"ГАНК-4СEx (Д) для определения: Бутилхлорид (1-хлорбутан) (Р)","Д",1026047,"ГАНК-4ФEx (Д) для определения: Бутилхлорид (1-хлорбутан) (Р)","Нет"]
["Р: Трет-бутилакрилат (Р) 0,25 - 10 мг/м3",20502,"0,25 - 10 мг/м3","Р","Д",40000,40000,null,"Р18",null,"В-во","Нет","Д","Д","Нет","Д","Д","Д","Трет-бутилакрилат (Р)",null,null,null,null,null,"C7H12O2",null,null,null,"М","Cex (Д)","М;Cex (Д)","Нет","ГАНК-4М для определения: Трет-бутилакрилат (Р)",102050,1020502,"ГАНК-4СEx (Д) для определения: Трет-бутилакрилат (Р)","Д",1026050,"ГАНК-4ФEx (Д) для определения: Трет-бутилакрилат (Р)","Нет"]
["Р: 2-этилгексилакрилат (Р) 0,25 - 10 мг/м3",20512,"0,25 - 10 мг/м3","Р","Д",40000,40000,null,"Р18",null,"В-во","Нет","Д","Д","Нет","Д","Д","Д","2-этилгексилакрилат (Р)",null,null,null,null,null,"C11H20O2",null,null,null,"М","Cex (Д)","М;Cex (Д)","Нет","ГАНК-4М для определения: 2-этилгексилакрилат (Р)",102051,1020512,"ГАНК-4СEx (Д) для определения: 2-этилгексилакрилат (Р)","Д",1026051,"ГАНК-4ФEx (Д) для определения: 2-этилгексилакрилат (Р)","Нет"]
["Р: Диизодецилфталат (Р) 2,5 - 100 мг/м3",20582,"2,5 - 100 мг/м3","Р","Д",40000,40000,null,"Р18",null,"В-во","Нет","Д","Д","Нет","Д","Д","Д","Диизодецилфталат (Р)",null,null,null,null,null,"C28H46O4",null,null,null,"М","Cex (Д)","М;Cex (Д)","Нет","ГАНК-4М для определения: Диизодецилфталат (Р)",102058,1020582,"ГАНК-4СEx (Д) для определения: Диизодецилфталат (Р)","Д",1026058,"ГАНК-4ФEx (Д) для определения: Диизодецилфталат (Р)","Нет"]
["Р: Хлорпарафины (Р) 2,5 - 100 мг/м3",20602,"2,5 - 100 мг/м3","Р","Д",40000,40000,null,"Р18",null,"В-во","Нет","Д","Д","Нет","Д","Д","Д","Хлорпарафины (Р)",null,null,null,null,null,"Cl2-32H11-36Cl15-30",null,null,null,"М","Cex (Д)","М;Cex (Д)","Нет","ГАНК-4М для определения: Хлорпарафины (Р)",102060,1020602,"ГАНК-4СEx (Д) для определения: Хлорпарафины (Р)","Д",1026060,"ГАНК-4ФEx (Д) для определения: Хлорпарафины (Р)","Нет"]
["Р: Циклопентадиен (Р) 0,05 - 2 мг/м3",21472,"0,05 - 2 мг/м3","Р","Д",40000,40000,null,"Р18",null,"В-во","Нет","Д","Д","Нет","Д","Д","Д","Циклопентадиен (Р)",null,null,null,null,null,"C5H6",null,null,null,"М","Cex (Д)","М;Cex (Д)","Нет","ГАНК-4М для определения: Циклопентадиен (Р)",102147,1021472,"ГАНК-4СEx (Д) для определения: Циклопентадиен (Р)","Д",1026147,"ГАНК-4ФEx (Д) для определения: Циклопентадиен (Р)","Нет"]
["Р: Диоксид хлора (Р) 0,05 - 2 мг/м3",21852,"0,05 - 2 мг/м3","Р","Д",40000,40000,null,"Р18",null,"В-во","Нет","Д","Д","Нет","Д","Д","Д","Диоксид хлора (Р)",null,null,null,null,null,"ClO2",null,null,null,"М","Cex (Д)","М;Cex (Д)","Нет","ГАНК-4М для определения: Диоксид хлора (Р)",102185,1021852,"ГАНК-4СEx (Д) для определения: Диоксид хлора (Р)","Д",1026185,"ГАНК-4ФEx (Д) для определения: Диоксид хлора (Р)","Нет"]
["Р: Тетракарбонил никеля (Р) 0,1 - 280 мг/м3",21972,"0,1 - 280 мг/м3","Р","Д",40000,40000,null,"Р18",null,"В-во","Нет","Д","Д","Нет","Д","Д","Д","Тетракарбонил никеля (Р)",null,null,null,null,null,"C4NiO4",null,null,null,"М","Cex (Д)","М;Cex (Д)","Нет","ГАНК-4М для определения: Тетракарбонил никеля (Р)",102197,1021972,"ГАНК-4СEx (Д) для определения: Тетракарбонил никеля (Р)","Д",1026197,"ГАНК-4ФEx (Д) для определения: Тетракарбонил никеля (Р)","Нет"]
["Р: Морфолин (Р) 0,25 - 10 мг/м3",21992,"0,25 - 10 мг/м3","Р","Д",40000,40000,null,"Р18",null,"В-во","Нет","Д","Д","Нет","Д","Д","Д","Морфолин (Р)",null,null,null,null,null,"C4H9NO",null,null,null,"М","Cex (Д)","М;Cex (Д)","Нет","ГАНК-4М для определения: Морфолин (Р)",102199,1021992,"ГАНК-4СEx (Д) для определения: Морфолин (Р)","Д",1026199,"ГАНК-4ФEx (Д) для определения: Морфолин (Р)","Нет"]